Workbook

Sheet FT
A1: Celów: | B1: 40
D2: % trafień | G2: =(COUNTIF(G9:G74,1)/COUNTA(G9:G74))*100 -> 100 | H2: =(COUNTIF(H9:H74,1)/COUNTA(H9:H74))*100 -> 93.75 | I2: 81.25 | J2: 81.25 | K2: 81.25 | L2: 68.75 | M2: 68.75 | N2: 68.75 | O2: 100 | P2: 75 | Q2: 50 | R2: 62.5 | S2: 68.75 | T2: 50 | U2: 68.75 | V2: 37.5 | W2: 75 | X2: 31.25 | Y2: 18.75 | Z2: 6.25 | AA2: 81.25 | AB2: 87.5 | AC2: 81.25 | AD2: 87.5 | AE2: 87.5 | AF2: 56.25 | AG2: 37.5 | AH2: 25 | AI2: 62.5 | AJ2: 56.25 | AK2: 87.5 | AL2: 81.25 | AM2: 50 | AN2: 56.25 | AO2: 81.25 | AP2: 62.5 | AQ2: 75 | AR2: 68.75 | AS2: 81.25 | AT2: 87.5
D3: % pudło | G3: =(COUNTIF(G9:G74,0)/COUNTA(G9:G74))*100 -> 0 | H3: =(COUNTIF(H9:H74,0)/COUNTA(H9:H74))*100 -> 6.25 | I3: 18.75 | J3: 18.75 | K3: 18.75 | L3: 31.25 | M3: 31.25 | N3: 31.25 | O3: 0 | P3: 25 | Q3: 50 | R3: 37.5 | S3: 31.25 | T3: 50 | U3: 31.25 | V3: 62.5 | W3: 25 | X3: 68.75 | Y3: 81.25 | Z3: 93.75 | AA3: 18.75 | AB3: 12.5 | AC3: 18.75 | AD3: 12.5 | AE3: 12.5 | AF3: 43.75 | AG3: 62.5 | AH3: 75 | AI3: 37.5 | AJ3: 43.75 | AK3: 12.5 | AL3: 18.75 | AM3: 50 | AN3: 43.75 | AO3: 18.75 | AP3: 37.5 | AQ3: 25 | AR3: 31.25 | AS3: 18.75 | AT3: 12.5
F5: Cel nr | G5: 1 | H5: 2 | I5: 3 | J5: 4 | K5: 5 | L5: 6 | M5: 7 | N5: 8 | O5: 9 | P5: 10 | Q5: 11 | R5: 12 | S5: 13 | T5: 14 | U5: 15 | V5: 16 | W5: 17 | X5: 18 | Y5: 19 | Z5: 20 | AA5: 21 | AB5: 22 | AC5: 23 | AD5: 24 | AE5: 25 | AF5: 26 | AG5: 27 | AH5: 28 | AI5: 29 | AJ5: 30 | AK5: 31 | AL5: 32 | AM5: 33 | AN5: 34 | AO5: 35 | AP5: 36 | AQ5: 37 | AR5: 38 | AS5: 39 | AT5: 40 | AU5: D
A6: Data: | C6: 43611 | F6: dystans [m] | G6: 23 | H6: 20 | I6: 37 | J6: 44 | K6: 30 | L6: 39 | M6: 42 | N6: 49 | O6: 9 | P6: 32 | Q6: 46 | R6: 42 | S6: 38 | T6: 50 | U6: 24 | V6: 30 | W6: 42 | X6: 50 | Y6: 31 | Z6: 38 | AA6: 19 | AB6: 21 | AC6: 25 | AD6: 39 | AE6: 40 | AF6: 33 | AG6: 30 | AH6: 40 | AI6: 22 | AJ6: 37 | AK6: 33 | AL6: 40 | AM6: 41 | AN6: 50 | AO6: 34 | AP6: 22.5 | AQ6: 19 | AR6: 27 | AS6: 31 | AT6: 16
A7: Kategoria: | C7: FT | F7: KZ [mm] | G7: 15 | H7: 20 | I7: 25 | J7: 40 | K7: 25 | L7: 40 | M7: 35 | N7: 40 | O7: 20 | P7: 30 | Q7: 40 | R7: 40 | S7: 35 | T7: 40 | U7: 35 | V7: 40 | W7: 35 | X7: 40 | Y7: 35 | Z7: 40 | AA7: 15 | AB7: 20 | AC7: 20 | AD7: 40 | AE7: 40 | AF7: 25 | AG7: 40 | AH7: 40 | AI7: 15 | AJ7: 30 | AK7: 30 | AL7: 40 | AM7: 35 | AN7: 40 | AO7: 25 | AP7: 15 | AQ7: 15 | AR7: 20 | AS7: 35 | AT7: 35
A8: Miejsce | B8: Imię, nazwisko | C8: Nick | D8: Suma punktów | E8: % do zwycięzcy | F8: postawa/ uwagi | U8: kl | V8: kl | Y8: st | Z8: st | AG8: st | AH8: st | AO8: m | AS8: kl | AT8: kl
A9: 1 | B9: Majda Jarosław | C9: =IF(NOT(B9=""),IF(VLOOKUP(B9,Tabela1[[Nick]:[Imię + Nazwisko]],2,FALSE)<>0,VLOOKUP(B9,Tabela1[[Nick]:[Imię + Nazwisko]],2,FALSE),""),"") -> czaputek | D9: =SUM(G9:AT9) -> 36 | E9: =IF(A9=1,100,IF($D$9<>0,D9/$D$9*100,"")) -> 100 | F9: =IF(B9<>"",IF(VLOOKUP(B9,Tabela1[[#All],[Imię + Nazwisko]:[K]],11,FALSE)=1,"K","")&IF(VLOOKUP(B9,Tabela1[[#All],[Imię + Nazwisko]:[K]],10,FALSE)=1,"W",""),"") ->  | G9: 1 | H9: 1 | I9: 1 | J9: 1 | K9: 1 | L9: 1 | M9: 1 | N9: 1 | O9: 1 | P9: 1 | Q9: 0 | R9: 1 | S9: 1 | T9: 1 | U9: 1 | V9: 1 | W9: 1 | X9: 1 | Y9: 0 | Z9: 0 | AA9: 1 | AB9: 1 | AC9: 1 | AD9: 1 | AE9: 1 | AF9: 1 | AG9: 1 | AH9: 1 | AI9: 0 | AJ9: 1 | AK9: 1 | AL9: 1 | AM9: 1 | AN9: 1 | AO9: 1 | AP9: 1 | AQ9: 1 | AR9: 1 | AS9: 1 | AT9: 1
A10: 2 | B10: Rozum Radosław | C10: =IF(NOT(B10=""),IF(VLOOKUP(B10,Tabela1[[Nick]:[Imię + Nazwisko]],2,FALSE)<>0,VLOOKUP(B10,Tabela1[[Nick]:[Imię + Nazwisko]],2,FALSE),""),"") -> Roar | D10: 34 | E10: 94.44444444 | F10: =IF(B10<>"",IF(VLOOKUP(B10,Tabela1[[#All],[Imię + Nazwisko]:[K]],11,FALSE)=1,"K","")&IF(VLOOKUP(B10,Tabela1[[#All],[Imię + Nazwisko]:[K]],10,FALSE)=1,"W",""),"") ->  | G10: 1 | H10: 1 | I10: 1 | J10: 1 | K10: 1 | L10: 1 | M10: 1 | N10: 1 | O10: 1 | P10: 1 | Q10: 1 | R10: 1 | S10: 1 | T10: 1 | U10: 1 | V10: 0 | W10: 1 | X10: 0 | Y10: 0 | Z10: 0 | AA10: 1 | AB10: 1 | AC10: 1 | AD10: 1 | AE10: 1 | AF10: 1 | AG10: 1 | AH10: 0 | AI10: 1 | AJ10: 1 | AK10: 1 | AL10: 1 | AM10: 1 | AN10: 1 | AO10: 1 | AP10: 0 | AQ10: 1 | AR10: 1 | AS10: 1 | AT10: 1
A11: 3 | B11: Pachnik Rafał | C11: =IF(NOT(B11=""),IF(VLOOKUP(B11,Tabela1[[Nick]:[Imię + Nazwisko]],2,FALSE)<>0,VLOOKUP(B11,Tabela1[[Nick]:[Imię + Nazwisko]],2,FALSE),""),"") -> ralph | D11: 33 | E11: 91.66666667 | F11: =IF(B11<>"",IF(VLOOKUP(B11,Tabela1[[#All],[Imię + Nazwisko]:[K]],11,FALSE)=1,"K","")&IF(VLOOKUP(B11,Tabela1[[#All],[Imię + Nazwisko]:[K]],10,FALSE)=1,"W",""),"") ->  | G11: 1 | H11: 1 | I11: 1 | J11: 1 | K11: 1 | L11: 1 | M11: 1 | N11: 1 | O11: 1 | P11: 1 | Q11: 1 | R11: 1 | S11: 1 | T11: 1 | U11: 0 | V11: 1 | W11: 1 | X11: 0 | Y11: 0 | Z11: 0 | AA11: 1 | AB11: 1 | AC11: 1 | AD11: 1 | AE11: 1 | AF11: 0 | AG11: 0 | AH11: 0 | AI11: 1 | AJ11: 1 | AK11: 1 | AL11: 1 | AM11: 1 | AN11: 1 | AO11: 1 | AP11: 1 | AQ11: 1 | AR11: 1 | AS11: 1 | AT11: 1
A12: 4 | B12: Markisz Marcin | C12: =IF(NOT(B12=""),IF(VLOOKUP(B12,Tabela1[[Nick]:[Imię + Nazwisko]],2,FALSE)<>0,VLOOKUP(B12,Tabela1[[Nick]:[Imię + Nazwisko]],2,FALSE),""),"") -> MarcinMM | D12: 31 | E12: 86.11111111 | F12: =IF(B12<>"",IF(VLOOKUP(B12,Tabela1[[#All],[Imię + Nazwisko]:[K]],11,FALSE)=1,"K","")&IF(VLOOKUP(B12,Tabela1[[#All],[Imię + Nazwisko]:[K]],10,FALSE)=1,"W",""),"") ->  | G12: 1 | H12: 1 | I12: 1 | J12: 1 | K12: 1 | L12: 1 | M12: 1 | N12: 0 | O12: 1 | P12: 1 | Q12: 0 | R12: 1 | S12: 1 | T12: 1 | U12: 1 | V12: 0 | W12: 1 | X12: 1 | Y12: 0 | Z12: 0 | AA12: 1 | AB12: 1 | AC12: 1 | AD12: 1 | AE12: 1 | AF12: 1 | AG12: 1 | AH12: 1 | AI12: 1 | AJ12: 0 | AK12: 1 | AL12: 1 | AM12: 1 | AN12: 0 | AO12: 1 | AP12: 1 | AQ12: 0 | AR12: 0 | AS12: 1 | AT12: 1
A13: 5 | B13: Dylewski Andrzej | C13: =IF(NOT(B13=""),IF(VLOOKUP(B13,Tabela1[[Nick]:[Imię + Nazwisko]],2,FALSE)<>0,VLOOKUP(B13,Tabela1[[Nick]:[Imię + Nazwisko]],2,FALSE),""),"") -> Andrzej | D13: 30 | E13: 83.33333333 | F13: =IF(B13<>"",IF(VLOOKUP(B13,Tabela1[[#All],[Imię + Nazwisko]:[K]],11,FALSE)=1,"K","")&IF(VLOOKUP(B13,Tabela1[[#All],[Imię + Nazwisko]:[K]],10,FALSE)=1,"W",""),"") ->  | G13: 1 | H13: 1 | I13: 1 | J13: 1 | K13: 1 | L13: 1 | M13: 0 | N13: 1 | O13: 1 | P13: 1 | Q13: 1 | R13: 0 | S13: 1 | T13: 1 | U13: 1 | V13: 1 | W13: 0 | X13: 0 | Y13: 1 | Z13: 0 | AA13: 1 | AB13: 0 | AC13: 1 | AD13: 1 | AE13: 1 | AF13: 1 | AG13: 0 | AH13: 1 | AI13: 1 | AJ13: 1 | AK13: 1 | AL13: 1 | AM13: 0 | AN13: 0 | AO13: 1 | AP13: 0 | AQ13: 1 | AR13: 1 | AS13: 1 | AT13: 1
A14: 5 | B14: Rup Dariusz | C14: =IF(NOT(B14=""),IF(VLOOKUP(B14,Tabela1[[Nick]:[Imię + Nazwisko]],2,FALSE)<>0,VLOOKUP(B14,Tabela1[[Nick]:[Imię + Nazwisko]],2,FALSE),""),"") -> Zapp | D14: 30 | E14: 83.33333333 | F14: =IF(B14<>"",IF(VLOOKUP(B14,Tabela1[[#All],[Imię + Nazwisko]:[K]],11,FALSE)=1,"K","")&IF(VLOOKUP(B14,Tabela1[[#All],[Imię + Nazwisko]:[K]],10,FALSE)=1,"W",""),"") ->  | G14: 1 | H14: 1 | I14: 1 | J14: 0 | K14: 1 | L14: 1 | M14: 1 | N14: 0 | O14: 1 | P14: 1 | Q14: 1 | R14: 0 | S14: 1 | T14: 1 | U14: 0 | V14: 1 | W14: 1 | X14: 1 | Y14: 1 | Z14: 0 | AA14: 1 | AB14: 1 | AC14: 1 | AD14: 1 | AE14: 1 | AF14: 1 | AG14: 0 | AH14: 0 | AI14: 1 | AJ14: 1 | AK14: 1 | AL14: 1 | AM14: 0 | AN14: 1 | AO14: 1 | AP14: 1 | AQ14: 1 | AR14: 0 | AS14: 0 | AT14: 1
A15: 5 | B15: Tałaj Szymon | C15: =IF(NOT(B15=""),IF(VLOOKUP(B15,Tabela1[[Nick]:[Imię + Nazwisko]],2,FALSE)<>0,VLOOKUP(B15,Tabela1[[Nick]:[Imię + Nazwisko]],2,FALSE),""),"") -> slowroots | D15: 30 | E15: 83.33333333 | F15: =IF(B15<>"",IF(VLOOKUP(B15,Tabela1[[#All],[Imię + Nazwisko]:[K]],11,FALSE)=1,"K","")&IF(VLOOKUP(B15,Tabela1[[#All],[Imię + Nazwisko]:[K]],10,FALSE)=1,"W",""),"") ->  | G15: 1 | H15: 1 | I15: 1 | J15: 1 | K15: 1 | L15: 1 | M15: 1 | N15: 1 | O15: 1 | P15: 0 | Q15: 1 | R15: 1 | S15: 0 | T15: 0 | U15: 1 | V15: 0 | W15: 1 | X15: 0 | Y15: 0 | Z15: 0 | AA15: 1 | AB15: 1 | AC15: 1 | AD15: 1 | AE15: 1 | AF15: 1 | AG15: 1 | AH15: 0 | AI15: 1 | AJ15: 0 | AK15: 1 | AL15: 1 | AM15: 1 | AN15: 0 | AO15: 1 | AP15: 1 | AQ15: 1 | AR15: 1 | AS15: 1 | AT15: 1
A16: 8 | B16: Adamczak Krzysztof | C16: =IF(NOT(B16=""),IF(VLOOKUP(B16,Tabela1[[Nick]:[Imię + Nazwisko]],2,FALSE)<>0,VLOOKUP(B16,Tabela1[[Nick]:[Imię + Nazwisko]],2,FALSE),""),"") -> krzysieka | D16: 29 | E16: 80.55555556 | F16: =IF(B16<>"",IF(VLOOKUP(B16,Tabela1[[#All],[Imię + Nazwisko]:[K]],11,FALSE)=1,"K","")&IF(VLOOKUP(B16,Tabela1[[#All],[Imię + Nazwisko]:[K]],10,FALSE)=1,"W",""),"") ->  | G16: 1 | H16: 1 | I16: 1 | J16: 1 | K16: 1 | L16: 0 | M16: 1 | N16: 1 | O16: 1 | P16: 1 | Q16: 0 | R16: 1 | S16: 1 | T16: 0 | U16: 1 | V16: 0 | W16: 1 | X16: 1 | Y16: 1 | Z16: 0 | AA16: 1 | AB16: 1 | AC16: 1 | AD16: 0 | AE16: 1 | AF16: 0 | AG16: 1 | AH16: 1 | AI16: 1 | AJ16: 1 | AK16: 1 | AL16: 0 | AM16: 0 | AN16: 1 | AO16: 1 | AP16: 0 | AQ16: 0 | AR16: 1 | AS16: 1 | AT16: 1
A17: 9 | B17: Drabik Marcin | C17: =IF(NOT(B17=""),IF(VLOOKUP(B17,Tabela1[[Nick]:[Imię + Nazwisko]],2,FALSE)<>0,VLOOKUP(B17,Tabela1[[Nick]:[Imię + Nazwisko]],2,FALSE),""),"") -> DrA | D17: 28 | E17: 77.77777778 | F17: =IF(B17<>"",IF(VLOOKUP(B17,Tabela1[[#All],[Imię + Nazwisko]:[K]],11,FALSE)=1,"K","")&IF(VLOOKUP(B17,Tabela1[[#All],[Imię + Nazwisko]:[K]],10,FALSE)=1,"W",""),"") ->  | G17: 1 | H17: 1 | I17: 1 | J17: 1 | K17: 1 | L17: 1 | M17: 0 | N17: 1 | O17: 1 | P17: 1 | Q17: 1 | R17: 1 | S17: 0 | T17: 0 | U17: 0 | V17: 1 | W17: 1 | X17: 0 | Y17: 0 | Z17: 0 | AA17: 0 | AB17: 1 | AC17: 1 | AD17: 1 | AE17: 1 | AF17: 1 | AG17: 0 | AH17: 0 | AI17: 1 | AJ17: 0 | AK17: 1 | AL17: 1 | AM17: 1 | AN17: 1 | AO17: 1 | AP17: 0 | AQ17: 1 | AR17: 1 | AS17: 1 | AT17: 1
A18: 10 | B18: Winiarek Mirosław | C18: =IF(NOT(B18=""),IF(VLOOKUP(B18,Tabela1[[Nick]:[Imię + Nazwisko]],2,FALSE)<>0,VLOOKUP(B18,Tabela1[[Nick]:[Imię + Nazwisko]],2,FALSE),""),"") -> wirek | D18: 27 | E18: 75 | F18: =IF(B18<>"",IF(VLOOKUP(B18,Tabela1[[#All],[Imię + Nazwisko]:[K]],11,FALSE)=1,"K","")&IF(VLOOKUP(B18,Tabela1[[#All],[Imię + Nazwisko]:[K]],10,FALSE)=1,"W",""),"") -> W | G18: 1 | H18: 1 | I18: 1 | J18: 1 | K18: 1 | L18: 0 | M18: 0 | N18: 0 | O18: 1 | P18: 1 | Q18: 1 | R18: 0 | S18: 1 | T18: 1 | U18: 1 | V18: 0 | W18: 1 | X18: 1 | Y18: 0 | Z18: 1 | AA18: 1 | AB18: 1 | AC18: 1 | AD18: 1 | AE18: 1 | AF18: 0 | AG18: 0 | AH18: 0 | AI18: 0 | AJ18: 1 | AK18: 0 | AL18: 1 | AM18: 1 | AN18: 1 | AO18: 0 | AP18: 1 | AQ18: 1 | AR18: 1 | AS18: 1 | AT18: 0
A19: 10 | B19: Poliński Adam | C19: =IF(NOT(B19=""),IF(VLOOKUP(B19,Tabela1[[Nick]:[Imię + Nazwisko]],2,FALSE)<>0,VLOOKUP(B19,Tabela1[[Nick]:[Imię + Nazwisko]],2,FALSE),""),"") -> kadzislaw | D19: 27 | E19: 75 | F19: =IF(B19<>"",IF(VLOOKUP(B19,Tabela1[[#All],[Imię + Nazwisko]:[K]],11,FALSE)=1,"K","")&IF(VLOOKUP(B19,Tabela1[[#All],[Imię + Nazwisko]:[K]],10,FALSE)=1,"W",""),"") ->  | G19: 1 | H19: 1 | I19: 1 | J19: 1 | K19: 1 | L19: 1 | M19: 0 | N19: 1 | O19: 1 | P19: 1 | Q19: 0 | R19: 1 | S19: 1 | T19: 1 | U19: 1 | V19: 0 | W19: 0 | X19: 0 | Y19: 0 | Z19: 0 | AA19: 1 | AB19: 1 | AC19: 1 | AD19: 1 | AE19: 1 | AF19: 0 | AG19: 0 | AH19: 0 | AI19: 1 | AJ19: 0 | AK19: 1 | AL19: 1 | AM19: 0 | AN19: 1 | AO19: 1 | AP19: 1 | AQ19: 1 | AR19: 1 | AS19: 0 | AT19: 1
A20: 12 | B20: Merski Tomasz | C20: =IF(NOT(B20=""),IF(VLOOKUP(B20,Tabela1[[Nick]:[Imię + Nazwisko]],2,FALSE)<>0,VLOOKUP(B20,Tabela1[[Nick]:[Imię + Nazwisko]],2,FALSE),""),"") -> Jester | D20: 25 | E20: 69.44444444 | F20: =IF(B20<>"",IF(VLOOKUP(B20,Tabela1[[#All],[Imię + Nazwisko]:[K]],11,FALSE)=1,"K","")&IF(VLOOKUP(B20,Tabela1[[#All],[Imię + Nazwisko]:[K]],10,FALSE)=1,"W",""),"") ->  | G20: 1 | H20: 1 | I20: 0 | J20: 1 | K20: 0 | L20: 0 | M20: 1 | N20: 1 | O20: 1 | P20: 0 | Q20: 0 | R20: 0 | S20: 0 | T20: 0 | U20: 1 | V20: 1 | W20: 1 | X20: 0 | Y20: 0 | Z20: 0 | AA20: 1 | AB20: 1 | AC20: 1 | AD20: 1 | AE20: 1 | AF20: 1 | AG20: 0 | AH20: 0 | AI20: 1 | AJ20: 1 | AK20: 1 | AL20: 0 | AM20: 0 | AN20: 1 | AO20: 1 | AP20: 1 | AQ20: 1 | AR20: 1 | AS20: 1 | AT20: 1
A21: 13 | B21: Frasińska Katarzyna | C21: =IF(NOT(B21=""),IF(VLOOKUP(B21,Tabela1[[Nick]:[Imię + Nazwisko]],2,FALSE)<>0,VLOOKUP(B21,Tabela1[[Nick]:[Imię + Nazwisko]],2,FALSE),""),"") -> Kasia F | D21: 21 | E21: 58.33333333 | F21: =IF(B21<>"",IF(VLOOKUP(B21,Tabela1[[#All],[Imię + Nazwisko]:[K]],11,FALSE)=1,"K","")&IF(VLOOKUP(B21,Tabela1[[#All],[Imię + Nazwisko]:[K]],10,FALSE)=1,"W",""),"") -> K | G21: 1 | H21: 1 | I21: 1 | J21: 1 | K21: 1 | L21: 1 | M21: 1 | N21: 1 | O21: 1 | P21: 0 | Q21: 0 | R21: 1 | S21: 1 | T21: 0 | U21: 1 | V21: 0 | W21: 1 | X21: 0 | Y21: 0 | Z21: 0 | AA21: 0 | AB21: 1 | AC21: 0 | AD21: 1 | AE21: 0 | AF21: 0 | AG21: 0 | AH21: 0 | AI21: 0 | AJ21: 0 | AK21: 1 | AL21: 1 | AM21: 1 | AN21: 0 | AO21: 1 | AP21: 0 | AQ21: 0 | AR21: 0 | AS21: 1 | AT21: 1
A22: 14 | B22: Domagała Leszek | C22: =IF(NOT(B22=""),IF(VLOOKUP(B22,Tabela1[[Nick]:[Imię + Nazwisko]],2,FALSE)<>0,VLOOKUP(B22,Tabela1[[Nick]:[Imię + Nazwisko]],2,FALSE),""),"") -> Willi | D22: 20 | E22: 55.55555556 | F22: =IF(B22<>"",IF(VLOOKUP(B22,Tabela1[[#All],[Imię + Nazwisko]:[K]],11,FALSE)=1,"K","")&IF(VLOOKUP(B22,Tabela1[[#All],[Imię + Nazwisko]:[K]],10,FALSE)=1,"W",""),"") -> W | G22: 1 | H22: 1 | I22: 1 | J22: 0 | K22: 0 | L22: 1 | M22: 1 | N22: 0 | O22: 1 | P22: 1 | Q22: 0 | R22: 1 | S22: 1 | T22: 0 | U22: 1 | V22: 0 | W22: 0 | X22: 0 | Y22: 0 | Z22: 0 | AA22: 0 | AB22: 1 | AC22: 0 | AD22: 1 | AE22: 1 | AF22: 0 | AG22: 1 | AH22: 0 | AI22: 0 | AJ22: 0 | AK22: 1 | AL22: 0 | AM22: 0 | AN22: 0 | AO22: 0 | AP22: 1 | AQ22: 1 | AR22: 1 | AS22: 1 | AT22: 1
A23: 15 | B23: Czorny Magdalena | C23: =IF(NOT(B23=""),IF(VLOOKUP(B23,Tabela1[[Nick]:[Imię + Nazwisko]],2,FALSE)<>0,VLOOKUP(B23,Tabela1[[Nick]:[Imię + Nazwisko]],2,FALSE),""),"") -> Czorna | D23: 19 | E23: 52.77777778 | F23: =IF(B23<>"",IF(VLOOKUP(B23,Tabela1[[#All],[Imię + Nazwisko]:[K]],11,FALSE)=1,"K","")&IF(VLOOKUP(B23,Tabela1[[#All],[Imię + Nazwisko]:[K]],10,FALSE)=1,"W",""),"") -> K | G23: 1 | H23: 1 | I23: 0 | J23: 1 | K23: 1 | L23: 0 | M23: 0 | N23: 1 | O23: 1 | P23: 1 | Q23: 0 | R23: 0 | S23: 0 | T23: 0 | U23: 0 | V23: 0 | W23: 1 | X23: 0 | Y23: 0 | Z23: 0 | AA23: 1 | AB23: 0 | AC23: 1 | AD23: 1 | AE23: 1 | AF23: 1 | AG23: 0 | AH23: 0 | AI23: 0 | AJ23: 1 | AK23: 0 | AL23: 1 | AM23: 0 | AN23: 0 | AO23: 1 | AP23: 1 | AQ23: 1 | AR23: 0 | AS23: 0 | AT23: 1
A24: 16 | B24: Augustyniak Piotr | C24: =IF(NOT(B24=""),IF(VLOOKUP(B24,Tabela1[[Nick]:[Imię + Nazwisko]],2,FALSE)<>0,VLOOKUP(B24,Tabela1[[Nick]:[Imię + Nazwisko]],2,FALSE),""),"") -> Augustyn | D24: 9 | E24: 25 | F24: =IF(B24<>"",IF(VLOOKUP(B24,Tabela1[[#All],[Imię + Nazwisko]:[K]],11,FALSE)=1,"K","")&IF(VLOOKUP(B24,Tabela1[[#All],[Imię + Nazwisko]:[K]],10,FALSE)=1,"W",""),"") ->  | G24: 1 | H24: 0 | I24: 0 | J24: 0 | K24: 0 | L24: 0 | M24: 1 | N24: 0 | O24: 1 | P24: 0 | Q24: 1 | R24: 0 | S24: 0 | T24: 0 | U24: 0 | V24: 0 | W24: 0 | X24: 0 | Y24: 0 | Z24: 0 | AA24: 1 | AB24: 1 | AC24: 0 | AD24: 0 | AE24: 0 | AF24: 0 | AG24: 0 | AH24: 0 | AI24: 0 | AJ24: 0 | AK24: 1 | AL24: 1 | AM24: 0 | AN24: 0 | AO24: 0 | AP24: 0 | AQ24: 0 | AR24: 0 | AS24: 1 | AT24: 0

Sheet HFT1
A1: Celów: | B1: 40 | D1: % trafień za 2 pkt | G1: =(COUNTIF(G9:G74,2)/COUNTA(G9:G74))*100 -> 100 | H1: =(COUNTIF(H9:H74,2)/COUNTA(H9:H74))*100 -> 81.81818182 | I1: 84.84848485 | J1: 78.78787879 | K1: 63.63636364 | L1: 87.87878788 | M1: 69.6969697 | N1: 81.81818182 | O1: 84.84848485 | P1: 57.57575758 | Q1: 54.54545455 | R1: 63.63636364 | S1: 66.66666667 | T1: 81.81818182 | U1: 60.60606061 | V1: 36.36363636 | W1: 90.90909091 | X1: 72.72727273 | Y1: 24.24242424 | Z1: 24.24242424 | AA1: 81.81818182 | AB1: 75.75757576 | AC1: 93.93939394 | AD1: 72.72727273 | AE1: 69.6969697 | AF1: 69.6969697 | AG1: 36.36363636 | AH1: 18.18181818 | AI1: 66.66666667 | AJ1: 78.78787879 | AK1: 69.6969697 | AL1: 81.81818182 | AM1: 57.57575758 | AN1: 96.96969697 | AO1: 60.60606061 | AP1: 75.75757576 | AQ1: 81.81818182 | AR1: 66.66666667 | AS1: 51.51515152 | AT1: 84.84848485
D2: % trafień za 1 pkt | G2: =(COUNTIF(G9:G74,1)/COUNTA(G9:G74))*100 -> 0 | H2: =(COUNTIF(H9:H74,1)/COUNTA(H9:H74))*100 -> 18.18181818 | I2: 15.15151515 | J2: 21.21212121 | K2: 36.36363636 | L2: 12.12121212 | M2: 30.3030303 | N2: 18.18181818 | O2: 15.15151515 | P2: 42.42424242 | Q2: 42.42424242 | R2: 27.27272727 | S2: 30.3030303 | T2: 18.18181818 | U2: 39.39393939 | V2: 63.63636364 | W2: 9.090909091 | X2: 27.27272727 | Y2: 72.72727273 | Z2: 72.72727273 | AA2: 18.18181818 | AB2: 24.24242424 | AC2: 6.060606061 | AD2: 27.27272727 | AE2: 30.3030303 | AF2: 30.3030303 | AG2: 51.51515152 | AH2: 69.6969697 | AI2: 33.33333333 | AJ2: 21.21212121 | AK2: 27.27272727 | AL2: 18.18181818 | AM2: 39.39393939 | AN2: 3.03030303 | AO2: 27.27272727 | AP2: 24.24242424 | AQ2: 18.18181818 | AR2: 33.33333333 | AS2: 45.45454545 | AT2: 12.12121212
D3: % trafień za 0 pkt | G3: =(COUNTIF(G9:G74,0)/COUNTA(G9:G74))*100 -> 0 | H3: =(COUNTIF(H9:H74,0)/COUNTA(H9:H74))*100 -> 0 | I3: 0 | J3: 0 | K3: 0 | L3: 0 | M3: 0 | N3: 0 | O3: 0 | P3: 0 | Q3: 3.03030303 | R3: 9.090909091 | S3: 3.03030303 | T3: 0 | U3: 0 | V3: 0 | W3: 0 | X3: 0 | Y3: 3.03030303 | Z3: 3.03030303 | AA3: 0 | AB3: 0 | AC3: 0 | AD3: 0 | AE3: 0 | AF3: 0 | AG3: 12.12121212 | AH3: 12.12121212 | AI3: 0 | AJ3: 0 | AK3: 3.03030303 | AL3: 0 | AM3: 3.03030303 | AN3: 0 | AO3: 12.12121212 | AP3: 0 | AQ3: 0 | AR3: 0 | AS3: 3.03030303 | AT3: 3.03030303
F5: Cel nr | G5: 1 | H5: 2 | I5: 3 | J5: 4 | K5: 5 | L5: 6 | M5: 7 | N5: 8 | O5: 9 | P5: 10 | Q5: 11 | R5: 12 | S5: 13 | T5: 14 | U5: 15 | V5: 16 | W5: 17 | X5: 18 | Y5: 19 | Z5: 20 | AA5: 21 | AB5: 22 | AC5: 23 | AD5: 24 | AE5: 25 | AF5: 26 | AG5: 27 | AH5: 28 | AI5: 29 | AJ5: 30 | AK5: 31 | AL5: 32 | AM5: 33 | AN5: 34 | AO5: 35 | AP5: 36 | AQ5: 37 | AR5: 38 | AS5: 39 | AT5: 40 | AU5: D
A6: Data: | C6: 43611 | F6: dystans [m] | G6: 23 | H6: 20 | I6: 22.5 | J6: 37 | K6: 18 | L6: 30 | M6: 42 | N6: 38 | O6: 9 | P6: 32 | Q6: 37 | R6: 42 | S6: 38 | T6: 32 | U6: 24 | V6: 30 | W6: 33 | X6: 42 | Y6: 31 | Z6: 30 | AA6: 19 | AB6: 21 | AC6: 25 | AD6: 21 | AE6: 40 | AF6: 33 | AG6: 30 | AH6: 32 | AI6: 22 | AJ6: 37 | AK6: 33 | AL6: 24 | AM6: 41 | AN6: 19 | AO6: 34 | AP6: 22.5 | AQ6: 19 | AR6: 27 | AS6: 31 | AT6: 16
A7: Kategoria: | C7: HFT1 | F7: KZ [mm] | G7: 15 | H7: 20 | I7: 20 | J7: 25 | K7: 15 | L7: 25 | M7: 35 | N7: 40 | O7: 20 | P7: 30 | Q7: 25 | R7: 40 | S7: 35 | T7: 30 | U7: 35 | V7: 40 | W7: 25 | X7: 35 | Y7: 35 | Z7: 40 | AA7: 15 | AB7: 20 | AC7: 20 | AD7: 15 | AE7: 40 | AF7: 25 | AG7: 40 | AH7: 35 | AI7: 15 | AJ7: 30 | AK7: 30 | AL7: 20 | AM7: 35 | AN7: 15 | AO7: 25 | AP7: 15 | AQ7: 15 | AR7: 20 | AS7: 35 | AT7: 35
A8: Miejsce | B8: Imię, nazwisko | C8: Nick | D8: Suma punktów | E8: % do zwycięzcy | F8: postawa/ uwagi | I8: L | J8: L | U8: kl | V8: kl | Y8: st | Z8: st | AC8: L | AD8: L | AG8: st | AH8: st | AO8: m | AS8: kl | AT8: kl
A9: 1 | B9: Kostowski Jacek | C9: =IF(NOT(B9=""),IF(VLOOKUP(B9,Tabela1[[Nick]:[Imię + Nazwisko]],2,FALSE)<>0,VLOOKUP(B9,Tabela1[[Nick]:[Imię + Nazwisko]],2,FALSE),""),"") -> pilot68 | D9: =SUM(G9:AT9) -> 77 | E9: =IF(A9=1,100,IF($D$9<>0,D9/$D$9*100,"")) -> 100 | F9: =IF(B9<>"",IF(VLOOKUP(B9,Tabela1[[#All],[Imię + Nazwisko]:[K]],11,FALSE)=1,"K","")&IF(VLOOKUP(B9,Tabela1[[#All],[Imię + Nazwisko]:[K]],10,FALSE)=1,"W",""),"") ->  | G9: 2 | H9: 2 | I9: 2 | J9: 2 | K9: 2 | L9: 2 | M9: 2 | N9: 2 | O9: 2 | P9: 2 | Q9: 2 | R9: 2 | S9: 2 | T9: 2 | U9: 2 | V9: 2 | W9: 2 | X9: 2 | Y9: 1 | Z9: 2 | AA9: 2 | AB9: 2 | AC9: 2 | AD9: 2 | AE9: 2 | AF9: 2 | AG9: 2 | AH9: 1 | AI9: 2 | AJ9: 1 | AK9: 2 | AL9: 2 | AM9: 2 | AN9: 2 | AO9: 2 | AP9: 2 | AQ9: 2 | AR9: 2 | AS9: 2 | AT9: 2
A10: 2 | B10: Narbut Jarosław | C10: =IF(NOT(B10=""),IF(VLOOKUP(B10,Tabela1[[Nick]:[Imię + Nazwisko]],2,FALSE)<>0,VLOOKUP(B10,Tabela1[[Nick]:[Imię + Nazwisko]],2,FALSE),""),"") -> Jarn | D10: 76 | E10: 98.7012987 | F10: =IF(B10<>"",IF(VLOOKUP(B10,Tabela1[[#All],[Imię + Nazwisko]:[K]],11,FALSE)=1,"K","")&IF(VLOOKUP(B10,Tabela1[[#All],[Imię + Nazwisko]:[K]],10,FALSE)=1,"W",""),"") ->  | G10: 2 | H10: 2 | I10: 2 | J10: 2 | K10: 2 | L10: 2 | M10: 2 | N10: 2 | O10: 2 | P10: 1 | Q10: 2 | R10: 2 | S10: 2 | T10: 2 | U10: 2 | V10: 2 | W10: 2 | X10: 2 | Y10: 2 | Z10: 1 | AA10: 2 | AB10: 2 | AC10: 2 | AD10: 2 | AE10: 2 | AF10: 1 | AG10: 2 | AH10: 1 | AI10: 2 | AJ10: 2 | AK10: 2 | AL10: 2 | AM10: 2 | AN10: 2 | AO10: 2 | AP10: 2 | AQ10: 2 | AR10: 2 | AS10: 2 | AT10: 2 | AU10: 1
A11: 3 | B11: Nachman Norbert | C11: =IF(NOT(B11=""),IF(VLOOKUP(B11,Tabela1[[Nick]:[Imię + Nazwisko]],2,FALSE)<>0,VLOOKUP(B11,Tabela1[[Nick]:[Imię + Nazwisko]],2,FALSE),""),"") -> Groul | D11: 76 | E11: 98.7012987 | F11: =IF(B11<>"",IF(VLOOKUP(B11,Tabela1[[#All],[Imię + Nazwisko]:[K]],11,FALSE)=1,"K","")&IF(VLOOKUP(B11,Tabela1[[#All],[Imię + Nazwisko]:[K]],10,FALSE)=1,"W",""),"") ->  | G11: 2 | H11: 2 | I11: 2 | J11: 2 | K11: 2 | L11: 2 | M11: 1 | N11: 2 | O11: 2 | P11: 2 | Q11: 2 | R11: 2 | S11: 2 | T11: 2 | U11: 2 | V11: 1 | W11: 2 | X11: 2 | Y11: 2 | Z11: 2 | AA11: 2 | AB11: 2 | AC11: 2 | AD11: 2 | AE11: 2 | AF11: 2 | AG11: 2 | AH11: 2 | AI11: 2 | AJ11: 2 | AK11: 2 | AL11: 2 | AM11: 1 | AN11: 2 | AO11: 2 | AP11: 2 | AQ11: 2 | AR11: 2 | AS11: 1 | AT11: 2 | AU11: 2
A12: 4 | B12: Cielepak Tomasz | C12: =IF(NOT(B12=""),IF(VLOOKUP(B12,Tabela1[[Nick]:[Imię + Nazwisko]],2,FALSE)<>0,VLOOKUP(B12,Tabela1[[Nick]:[Imię + Nazwisko]],2,FALSE),""),"") -> MASZOT | D12: 75 | E12: 97.4025974 | F12: =IF(B12<>"",IF(VLOOKUP(B12,Tabela1[[#All],[Imię + Nazwisko]:[K]],11,FALSE)=1,"K","")&IF(VLOOKUP(B12,Tabela1[[#All],[Imię + Nazwisko]:[K]],10,FALSE)=1,"W",""),"") ->  | G12: 2 | H12: 2 | I12: 2 | J12: 2 | K12: 2 | L12: 2 | M12: 2 | N12: 2 | O12: 2 | P12: 2 | Q12: 2 | R12: 2 | S12: 2 | T12: 2 | U12: 2 | V12: 2 | W12: 2 | X12: 1 | Y12: 1 | Z12: 2 | AA12: 2 | AB12: 2 | AC12: 2 | AD12: 2 | AE12: 1 | AF12: 2 | AG12: 2 | AH12: 1 | AI12: 2 | AJ12: 2 | AK12: 2 | AL12: 2 | AM12: 2 | AN12: 2 | AO12: 2 | AP12: 2 | AQ12: 1 | AR12: 2 | AS12: 2 | AT12: 2
A13: 4 | B13: Lisowski Grzegorz | C13: =IF(NOT(B13=""),IF(VLOOKUP(B13,Tabela1[[Nick]:[Imię + Nazwisko]],2,FALSE)<>0,VLOOKUP(B13,Tabela1[[Nick]:[Imię + Nazwisko]],2,FALSE),""),"") -> Lisek | D13: 75 | E13: 97.4025974 | F13: =IF(B13<>"",IF(VLOOKUP(B13,Tabela1[[#All],[Imię + Nazwisko]:[K]],11,FALSE)=1,"K","")&IF(VLOOKUP(B13,Tabela1[[#All],[Imię + Nazwisko]:[K]],10,FALSE)=1,"W",""),"") ->  | G13: 2 | H13: 2 | I13: 2 | J13: 2 | K13: 2 | L13: 2 | M13: 2 | N13: 2 | O13: 1 | P13: 2 | Q13: 2 | R13: 2 | S13: 2 | T13: 2 | U13: 2 | V13: 2 | W13: 2 | X13: 2 | Y13: 1 | Z13: 1 | AA13: 2 | AB13: 2 | AC13: 2 | AD13: 2 | AE13: 2 | AF13: 2 | AG13: 2 | AH13: 1 | AI13: 2 | AJ13: 2 | AK13: 2 | AL13: 2 | AM13: 2 | AN13: 2 | AO13: 2 | AP13: 2 | AQ13: 2 | AR13: 2 | AS13: 1 | AT13: 2
A14: 6 | B14: Szałkowski Krzysztof | C14: =IF(NOT(B14=""),IF(VLOOKUP(B14,Tabela1[[Nick]:[Imię + Nazwisko]],2,FALSE)<>0,VLOOKUP(B14,Tabela1[[Nick]:[Imię + Nazwisko]],2,FALSE),""),"") -> Kris | D14: 72 | E14: 93.50649351 | F14: =IF(B14<>"",IF(VLOOKUP(B14,Tabela1[[#All],[Imię + Nazwisko]:[K]],11,FALSE)=1,"K","")&IF(VLOOKUP(B14,Tabela1[[#All],[Imię + Nazwisko]:[K]],10,FALSE)=1,"W",""),"") ->  | G14: 2 | H14: 2 | I14: 2 | J14: 2 | K14: 2 | L14: 2 | M14: 2 | N14: 2 | O14: 2 | P14: 2 | Q14: 2 | R14: 1 | S14: 2 | T14: 1 | U14: 2 | V14: 1 | W14: 2 | X14: 2 | Y14: 1 | Z14: 2 | AA14: 2 | AB14: 2 | AC14: 2 | AD14: 2 | AE14: 1 | AF14: 2 | AG14: 1 | AH14: 1 | AI14: 2 | AJ14: 2 | AK14: 2 | AL14: 1 | AM14: 2 | AN14: 2 | AO14: 2 | AP14: 2 | AQ14: 2 | AR14: 2 | AS14: 2 | AT14: 2
A15: 6 | B15: Wolski Robert | C15: =IF(NOT(B15=""),IF(VLOOKUP(B15,Tabela1[[Nick]:[Imię + Nazwisko]],2,FALSE)<>0,VLOOKUP(B15,Tabela1[[Nick]:[Imię + Nazwisko]],2,FALSE),""),"") -> Wola | D15: 72 | E15: 93.50649351 | F15: =IF(B15<>"",IF(VLOOKUP(B15,Tabela1[[#All],[Imię + Nazwisko]:[K]],11,FALSE)=1,"K","")&IF(VLOOKUP(B15,Tabela1[[#All],[Imię + Nazwisko]:[K]],10,FALSE)=1,"W",""),"") ->  | G15: 2 | H15: 2 | I15: 2 | J15: 2 | K15: 2 | L15: 2 | M15: 2 | N15: 1 | O15: 2 | P15: 1 | Q15: 2 | R15: 2 | S15: 1 | T15: 2 | U15: 1 | V15: 1 | W15: 2 | X15: 1 | Y15: 2 | Z15: 2 | AA15: 2 | AB15: 1 | AC15: 2 | AD15: 2 | AE15: 2 | AF15: 2 | AG15: 2 | AH15: 1 | AI15: 2 | AJ15: 2 | AK15: 2 | AL15: 2 | AM15: 2 | AN15: 2 | AO15: 2 | AP15: 2 | AQ15: 2 | AR15: 2 | AS15: 2 | AT15: 2
A16: 8 | B16: Szłapka Maciej | C16: =IF(NOT(B16=""),IF(VLOOKUP(B16,Tabela1[[Nick]:[Imię + Nazwisko]],2,FALSE)<>0,VLOOKUP(B16,Tabela1[[Nick]:[Imię + Nazwisko]],2,FALSE),""),"") -> MaciejSz | D16: 71 | E16: 92.20779221 | F16: =IF(B16<>"",IF(VLOOKUP(B16,Tabela1[[#All],[Imię + Nazwisko]:[K]],11,FALSE)=1,"K","")&IF(VLOOKUP(B16,Tabela1[[#All],[Imię + Nazwisko]:[K]],10,FALSE)=1,"W",""),"") ->  | G16: 2 | H16: 2 | I16: 2 | J16: 1 | K16: 2 | L16: 2 | M16: 2 | N16: 2 | O16: 2 | P16: 1 | Q16: 2 | R16: 2 | S16: 2 | T16: 2 | U16: 1 | V16: 2 | W16: 2 | X16: 2 | Y16: 1 | Z16: 1 | AA16: 2 | AB16: 2 | AC16: 2 | AD16: 2 | AE16: 2 | AF16: 2 | AG16: 1 | AH16: 1 | AI16: 2 | AJ16: 2 | AK16: 2 | AL16: 2 | AM16: 2 | AN16: 2 | AO16: 2 | AP16: 2 | AQ16: 2 | AR16: 1 | AS16: 2 | AT16: 1
A17: 8 | B17: Remiszewski Piotr | C17: =IF(NOT(B17=""),IF(VLOOKUP(B17,Tabela1[[Nick]:[Imię + Nazwisko]],2,FALSE)<>0,VLOOKUP(B17,Tabela1[[Nick]:[Imię + Nazwisko]],2,FALSE),""),"") -> red5555 | D17: 71 | E17: 92.20779221 | F17: =IF(B17<>"",IF(VLOOKUP(B17,Tabela1[[#All],[Imię + Nazwisko]:[K]],11,FALSE)=1,"K","")&IF(VLOOKUP(B17,Tabela1[[#All],[Imię + Nazwisko]:[K]],10,FALSE)=1,"W",""),"") ->  | G17: 2 | H17: 2 | I17: 2 | J17: 2 | K17: 2 | L17: 2 | M17: 2 | N17: 2 | O17: 2 | P17: 1 | Q17: 2 | R17: 2 | S17: 1 | T17: 2 | U17: 1 | V17: 1 | W17: 2 | X17: 2 | Y17: 1 | Z17: 0 | AA17: 2 | AB17: 2 | AC17: 2 | AD17: 2 | AE17: 2 | AF17: 2 | AG17: 2 | AH17: 2 | AI17: 2 | AJ17: 2 | AK17: 2 | AL17: 2 | AM17: 2 | AN17: 2 | AO17: 1 | AP17: 2 | AQ17: 2 | AR17: 2 | AS17: 1 | AT17: 2
A18: 10 | B18: Kowalczyk Krzysztof | C18: =IF(NOT(B18=""),IF(VLOOKUP(B18,Tabela1[[Nick]:[Imię + Nazwisko]],2,FALSE)<>0,VLOOKUP(B18,Tabela1[[Nick]:[Imię + Nazwisko]],2,FALSE),""),"") -> krzysztofk | D18: 69 | E18: 89.61038961 | F18: =IF(B18<>"",IF(VLOOKUP(B18,Tabela1[[#All],[Imię + Nazwisko]:[K]],11,FALSE)=1,"K","")&IF(VLOOKUP(B18,Tabela1[[#All],[Imię + Nazwisko]:[K]],10,FALSE)=1,"W",""),"") ->  | G18: 2 | H18: 2 | I18: 2 | J18: 2 | K18: 2 | L18: 2 | M18: 2 | N18: 2 | O18: 2 | P18: 1 | Q18: 2 | R18: 2 | S18: 2 | T18: 2 | U18: 1 | V18: 1 | W18: 2 | X18: 2 | Y18: 1 | Z18: 1 | AA18: 2 | AB18: 2 | AC18: 2 | AD18: 2 | AE18: 2 | AF18: 1 | AG18: 1 | AH18: 0 | AI18: 2 | AJ18: 1 | AK18: 2 | AL18: 2 | AM18: 2 | AN18: 2 | AO18: 2 | AP18: 2 | AQ18: 2 | AR18: 2 | AS18: 1 | AT18: 2
A19: 10 | B19: Kaczmarek Mariusz | C19: =IF(NOT(B19=""),IF(VLOOKUP(B19,Tabela1[[Nick]:[Imię + Nazwisko]],2,FALSE)<>0,VLOOKUP(B19,Tabela1[[Nick]:[Imię + Nazwisko]],2,FALSE),""),"") -> Mario_64 | D19: 69 | E19: 89.61038961 | F19: =IF(B19<>"",IF(VLOOKUP(B19,Tabela1[[#All],[Imię + Nazwisko]:[K]],11,FALSE)=1,"K","")&IF(VLOOKUP(B19,Tabela1[[#All],[Imię + Nazwisko]:[K]],10,FALSE)=1,"W",""),"") ->  | G19: 2 | H19: 2 | I19: 2 | J19: 2 | K19: 2 | L19: 2 | M19: 1 | N19: 1 | O19: 2 | P19: 2 | Q19: 2 | R19: 2 | S19: 2 | T19: 2 | U19: 2 | V19: 2 | W19: 2 | X19: 2 | Y19: 2 | Z19: 1 | AA19: 2 | AB19: 2 | AC19: 2 | AD19: 1 | AE19: 2 | AF19: 2 | AG19: 1 | AH19: 1 | AI19: 2 | AJ19: 2 | AK19: 1 | AL19: 2 | AM19: 1 | AN19: 2 | AO19: 1 | AP19: 1 | AQ19: 2 | AR19: 2 | AS19: 1 | AT19: 2
A20: 12 | B20: Krempczyński Marek | C20: =IF(NOT(B20=""),IF(VLOOKUP(B20,Tabela1[[Nick]:[Imię + Nazwisko]],2,FALSE)<>0,VLOOKUP(B20,Tabela1[[Nick]:[Imię + Nazwisko]],2,FALSE),""),"") -> Łysy | D20: 68 | E20: 88.31168831 | F20: =IF(B20<>"",IF(VLOOKUP(B20,Tabela1[[#All],[Imię + Nazwisko]:[K]],11,FALSE)=1,"K","")&IF(VLOOKUP(B20,Tabela1[[#All],[Imię + Nazwisko]:[K]],10,FALSE)=1,"W",""),"") ->  | G20: 2 | H20: 2 | I20: 2 | J20: 2 | K20: 1 | L20: 2 | M20: 2 | N20: 2 | O20: 2 | P20: 1 | Q20: 2 | R20: 2 | S20: 2 | T20: 2 | U20: 2 | V20: 1 | W20: 2 | X20: 2 | Y20: 1 | Z20: 1 | AA20: 2 | AB20: 2 | AC20: 2 | AD20: 2 | AE20: 2 | AF20: 1 | AG20: 0 | AH20: 1 | AI20: 2 | AJ20: 2 | AK20: 0 | AL20: 2 | AM20: 2 | AN20: 2 | AO20: 2 | AP20: 2 | AQ20: 2 | AR20: 2 | AS20: 1 | AT20: 2
A21: 12 | B21: Korpalski Artur | C21: =IF(NOT(B21=""),IF(VLOOKUP(B21,Tabela1[[Nick]:[Imię + Nazwisko]],2,FALSE)<>0,VLOOKUP(B21,Tabela1[[Nick]:[Imię + Nazwisko]],2,FALSE),""),"") -> Artkor | D21: 68 | E21: 88.31168831 | F21: =IF(B21<>"",IF(VLOOKUP(B21,Tabela1[[#All],[Imię + Nazwisko]:[K]],11,FALSE)=1,"K","")&IF(VLOOKUP(B21,Tabela1[[#All],[Imię + Nazwisko]:[K]],10,FALSE)=1,"W",""),"") ->  | G21: 2 | H21: 2 | I21: 1 | J21: 2 | K21: 1 | L21: 2 | M21: 2 | N21: 2 | O21: 2 | P21: 2 | Q21: 2 | R21: 0 | S21: 2 | T21: 2 | U21: 2 | V21: 1 | W21: 2 | X21: 2 | Y21: 1 | Z21: 1 | AA21: 2 | AB21: 2 | AC21: 2 | AD21: 2 | AE21: 2 | AF21: 2 | AG21: 1 | AH21: 0 | AI21: 2 | AJ21: 1 | AK21: 2 | AL21: 2 | AM21: 2 | AN21: 2 | AO21: 2 | AP21: 2 | AQ21: 2 | AR21: 2 | AS21: 2 | AT21: 1
A22: 12 | B22: Zacharzewski Arkadiusz | C22: =IF(NOT(B22=""),IF(VLOOKUP(B22,Tabela1[[Nick]:[Imię + Nazwisko]],2,FALSE)<>0,VLOOKUP(B22,Tabela1[[Nick]:[Imię + Nazwisko]],2,FALSE),""),"") -> Rek | D22: 68 | E22: 88.31168831 | F22: =IF(B22<>"",IF(VLOOKUP(B22,Tabela1[[#All],[Imię + Nazwisko]:[K]],11,FALSE)=1,"K","")&IF(VLOOKUP(B22,Tabela1[[#All],[Imię + Nazwisko]:[K]],10,FALSE)=1,"W",""),"") ->  | G22: 2 | H22: 2 | I22: 2 | J22: 2 | K22: 2 | L22: 2 | M22: 2 | N22: 2 | O22: 2 | P22: 2 | Q22: 1 | R22: 2 | S22: 1 | T22: 2 | U22: 2 | V22: 1 | W22: 2 | X22: 2 | Y22: 1 | Z22: 1 | AA22: 2 | AB22: 2 | AC22: 2 | AD22: 1 | AE22: 2 | AF22: 2 | AG22: 1 | AH22: 1 | AI22: 1 | AJ22: 2 | AK22: 2 | AL22: 2 | AM22: 1 | AN22: 2 | AO22: 0 | AP22: 2 | AQ22: 2 | AR22: 2 | AS22: 2 | AT22: 2
A23: 15 | B23: Maciejewicz Mirosław | C23: =IF(NOT(B23=""),IF(VLOOKUP(B23,Tabela1[[Nick]:[Imię + Nazwisko]],2,FALSE)<>0,VLOOKUP(B23,Tabela1[[Nick]:[Imię + Nazwisko]],2,FALSE),""),"") -> Krauser | D23: 67 | E23: 87.01298701 | F23: =IF(B23<>"",IF(VLOOKUP(B23,Tabela1[[#All],[Imię + Nazwisko]:[K]],11,FALSE)=1,"K","")&IF(VLOOKUP(B23,Tabela1[[#All],[Imię + Nazwisko]:[K]],10,FALSE)=1,"W",""),"") ->  | G23: 2 | H23: 2 | I23: 2 | J23: 2 | K23: 1 | L23: 2 | M23: 1 | N23: 2 | O23: 2 | P23: 2 | Q23: 2 | R23: 2 | S23: 2 | T23: 2 | U23: 2 | V23: 1 | W23: 2 | X23: 1 | Y23: 2 | Z23: 1 | AA23: 2 | AB23: 2 | AC23: 1 | AD23: 1 | AE23: 2 | AF23: 1 | AG23: 2 | AH23: 2 | AI23: 1 | AJ23: 2 | AK23: 1 | AL23: 2 | AM23: 1 | AN23: 2 | AO23: 1 | AP23: 2 | AQ23: 2 | AR23: 1 | AS23: 2 | AT23: 2
A24: 15 | B24: Kerber Jakub | C24: =IF(NOT(B24=""),IF(VLOOKUP(B24,Tabela1[[Nick]:[Imię + Nazwisko]],2,FALSE)<>0,VLOOKUP(B24,Tabela1[[Nick]:[Imię + Nazwisko]],2,FALSE),""),"") -> Lord Rzeźnik | D24: 67 | E24: 87.01298701 | F24: =IF(B24<>"",IF(VLOOKUP(B24,Tabela1[[#All],[Imię + Nazwisko]:[K]],11,FALSE)=1,"K","")&IF(VLOOKUP(B24,Tabela1[[#All],[Imię + Nazwisko]:[K]],10,FALSE)=1,"W",""),"") ->  | G24: 2 | H24: 1 | I24: 2 | J24: 2 | K24: 2 | L24: 2 | M24: 2 | N24: 2 | O24: 2 | P24: 2 | Q24: 1 | R24: 1 | S24: 2 | T24: 2 | U24: 2 | V24: 1 | W24: 2 | X24: 1 | Y24: 1 | Z24: 1 | AA24: 2 | AB24: 2 | AC24: 2 | AD24: 2 | AE24: 1 | AF24: 1 | AG24: 1 | AH24: 1 | AI24: 2 | AJ24: 2 | AK24: 2 | AL24: 2 | AM24: 2 | AN24: 2 | AO24: 1 | AP24: 2 | AQ24: 2 | AR24: 1 | AS24: 2 | AT24: 2
A25: 17 | B25: Białek Józef | C25: =IF(NOT(B25=""),IF(VLOOKUP(B25,Tabela1[[Nick]:[Imię + Nazwisko]],2,FALSE)<>0,VLOOKUP(B25,Tabela1[[Nick]:[Imię + Nazwisko]],2,FALSE),""),"") -> Josef | D25: 66 | E25: 85.71428571 | F25: =IF(B25<>"",IF(VLOOKUP(B25,Tabela1[[#All],[Imię + Nazwisko]:[K]],11,FALSE)=1,"K","")&IF(VLOOKUP(B25,Tabela1[[#All],[Imię + Nazwisko]:[K]],10,FALSE)=1,"W",""),"") -> W | G25: 2 | H25: 2 | I25: 1 | J25: 2 | K25: 2 | L25: 2 | M25: 1 | N25: 2 | O25: 2 | P25: 2 | Q25: 1 | R25: 2 | S25: 2 | T25: 2 | U25: 2 | V25: 1 | W25: 2 | X25: 2 | Y25: 1 | Z25: 1 | AA25: 2 | AB25: 1 | AC25: 2 | AD25: 2 | AE25: 1 | AF25: 2 | AG25: 1 | AH25: 2 | AI25: 1 | AJ25: 2 | AK25: 1 | AL25: 2 | AM25: 2 | AN25: 2 | AO25: 0 | AP25: 1 | AQ25: 2 | AR25: 2 | AS25: 2 | AT25: 2
A26: 17 | B26: Wietrzykowski Paweł | C26: =IF(NOT(B26=""),IF(VLOOKUP(B26,Tabela1[[Nick]:[Imię + Nazwisko]],2,FALSE)<>0,VLOOKUP(B26,Tabela1[[Nick]:[Imię + Nazwisko]],2,FALSE),""),"") -> PawełW | D26: 66 | E26: 85.71428571 | F26: =IF(B26<>"",IF(VLOOKUP(B26,Tabela1[[#All],[Imię + Nazwisko]:[K]],11,FALSE)=1,"K","")&IF(VLOOKUP(B26,Tabela1[[#All],[Imię + Nazwisko]:[K]],10,FALSE)=1,"W",""),"") ->  | G26: 2 | H26: 2 | I26: 1 | J26: 1 | K26: 2 | L26: 2 | M26: 2 | N26: 1 | O26: 2 | P26: 1 | Q26: 1 | R26: 2 | S26: 1 | T26: 2 | U26: 2 | V26: 1 | W26: 1 | X26: 2 | Y26: 1 | Z26: 1 | AA26: 2 | AB26: 2 | AC26: 2 | AD26: 2 | AE26: 2 | AF26: 1 | AG26: 1 | AH26: 1 | AI26: 2 | AJ26: 1 | AK26: 2 | AL26: 2 | AM26: 2 | AN26: 2 | AO26: 2 | AP26: 2 | AQ26: 2 | AR26: 2 | AS26: 2 | AT26: 2
A27: 17 | B27: Krystek Jacek | C27: =IF(NOT(B27=""),IF(VLOOKUP(B27,Tabela1[[Nick]:[Imię + Nazwisko]],2,FALSE)<>0,VLOOKUP(B27,Tabela1[[Nick]:[Imię + Nazwisko]],2,FALSE),""),"") -> zantara | D27: 66 | E27: 85.71428571 | F27: =IF(B27<>"",IF(VLOOKUP(B27,Tabela1[[#All],[Imię + Nazwisko]:[K]],11,FALSE)=1,"K","")&IF(VLOOKUP(B27,Tabela1[[#All],[Imię + Nazwisko]:[K]],10,FALSE)=1,"W",""),"") ->  | G27: 2 | H27: 1 | I27: 2 | J27: 2 | K27: 1 | L27: 2 | M27: 2 | N27: 2 | O27: 2 | P27: 1 | Q27: 1 | R27: 2 | S27: 2 | T27: 2 | U27: 2 | V27: 2 | W27: 2 | X27: 2 | Y27: 2 | Z27: 1 | AA27: 2 | AB27: 2 | AC27: 2 | AD27: 1 | AE27: 1 | AF27: 2 | AG27: 1 | AH27: 1 | AI27: 2 | AJ27: 2 | AK27: 2 | AL27: 2 | AM27: 1 | AN27: 2 | AO27: 0 | AP27: 2 | AQ27: 2 | AR27: 1 | AS27: 1 | AT27: 2
A28: 20 | B28: Dominiak Mateusz | C28: =IF(NOT(B28=""),IF(VLOOKUP(B28,Tabela1[[Nick]:[Imię + Nazwisko]],2,FALSE)<>0,VLOOKUP(B28,Tabela1[[Nick]:[Imię + Nazwisko]],2,FALSE),""),"") -> Domin | D28: 65 | E28: 84.41558442 | F28: =IF(B28<>"",IF(VLOOKUP(B28,Tabela1[[#All],[Imię + Nazwisko]:[K]],11,FALSE)=1,"K","")&IF(VLOOKUP(B28,Tabela1[[#All],[Imię + Nazwisko]:[K]],10,FALSE)=1,"W",""),"") ->  | G28: 2 | H28: 2 | I28: 1 | J28: 2 | K28: 1 | L28: 1 | M28: 2 | N28: 2 | O28: 2 | P28: 2 | Q28: 2 | R28: 1 | S28: 2 | T28: 2 | U28: 2 | V28: 1 | W28: 2 | X28: 1 | Y28: 1 | Z28: 1 | AA28: 2 | AB28: 2 | AC28: 2 | AD28: 1 | AE28: 2 | AF28: 2 | AG28: 2 | AH28: 0 | AI28: 1 | AJ28: 2 | AK28: 2 | AL28: 2 | AM28: 2 | AN28: 2 | AO28: 1 | AP28: 2 | AQ28: 1 | AR28: 2 | AS28: 1 | AT28: 2
A29: 20 | B29: Machowicz Krzysztof | C29: =IF(NOT(B29=""),IF(VLOOKUP(B29,Tabela1[[Nick]:[Imię + Nazwisko]],2,FALSE)<>0,VLOOKUP(B29,Tabela1[[Nick]:[Imię + Nazwisko]],2,FALSE),""),"") -> yamrt | D29: 65 | E29: 84.41558442 | F29: =IF(B29<>"",IF(VLOOKUP(B29,Tabela1[[#All],[Imię + Nazwisko]:[K]],11,FALSE)=1,"K","")&IF(VLOOKUP(B29,Tabela1[[#All],[Imię + Nazwisko]:[K]],10,FALSE)=1,"W",""),"") ->  | G29: 2 | H29: 2 | I29: 2 | J29: 1 | K29: 2 | L29: 2 | M29: 2 | N29: 2 | O29: 2 | P29: 2 | Q29: 2 | R29: 0 | S29: 1 | T29: 2 | U29: 1 | V29: 1 | W29: 2 | X29: 2 | Y29: 2 | Z29: 1 | AA29: 2 | AB29: 2 | AC29: 2 | AD29: 2 | AE29: 2 | AF29: 2 | AG29: 1 | AH29: 1 | AI29: 1 | AJ29: 2 | AK29: 1 | AL29: 1 | AM29: 1 | AN29: 2 | AO29: 1 | AP29: 2 | AQ29: 1 | AR29: 2 | AS29: 2 | AT29: 2
A30: 22 | B30: Sadowski Eugeniusz | C30: =IF(NOT(B30=""),IF(VLOOKUP(B30,Tabela1[[Nick]:[Imię + Nazwisko]],2,FALSE)<>0,VLOOKUP(B30,Tabela1[[Nick]:[Imię + Nazwisko]],2,FALSE),""),"") -> eugsad | D30: 64 | E30: 83.11688312 | F30: =IF(B30<>"",IF(VLOOKUP(B30,Tabela1[[#All],[Imię + Nazwisko]:[K]],11,FALSE)=1,"K","")&IF(VLOOKUP(B30,Tabela1[[#All],[Imię + Nazwisko]:[K]],10,FALSE)=1,"W",""),"") -> W | G30: 2 | H30: 2 | I30: 2 | J30: 2 | K30: 1 | L30: 2 | M30: 2 | N30: 2 | O30: 2 | P30: 2 | Q30: 2 | R30: 1 | S30: 2 | T30: 2 | U30: 1 | V30: 1 | W30: 2 | X30: 2 | Y30: 1 | Z30: 1 | AA30: 1 | AB30: 2 | AC30: 2 | AD30: 1 | AE30: 1 | AF30: 1 | AG30: 2 | AH30: 0 | AI30: 1 | AJ30: 2 | AK30: 2 | AL30: 2 | AM30: 1 | AN30: 2 | AO30: 2 | AP30: 1 | AQ30: 2 | AR30: 2 | AS30: 1 | AT30: 2
A31: 22 | B31: Wziętek Marek | C31: =IF(NOT(B31=""),IF(VLOOKUP(B31,Tabela1[[Nick]:[Imię + Nazwisko]],2,FALSE)<>0,VLOOKUP(B31,Tabela1[[Nick]:[Imię + Nazwisko]],2,FALSE),""),"") -> Maruch | D31: 64 | E31: 83.11688312 | F31: =IF(B31<>"",IF(VLOOKUP(B31,Tabela1[[#All],[Imię + Nazwisko]:[K]],11,FALSE)=1,"K","")&IF(VLOOKUP(B31,Tabela1[[#All],[Imię + Nazwisko]:[K]],10,FALSE)=1,"W",""),"") ->  | G31: 2 | H31: 1 | I31: 2 | J31: 2 | K31: 2 | L31: 2 | M31: 2 | N31: 2 | O31: 2 | P31: 2 | Q31: 1 | R31: 2 | S31: 2 | T31: 1 | U31: 1 | V31: 1 | W31: 1 | X31: 2 | Y31: 1 | Z31: 1 | AA31: 1 | AB31: 2 | AC31: 2 | AD31: 1 | AE31: 2 | AF31: 1 | AG31: 0 | AH31: 2 | AI31: 2 | AJ31: 2 | AK31: 1 | AL31: 2 | AM31: 2 | AN31: 2 | AO31: 2 | AP31: 2 | AQ31: 2 | AR31: 1 | AS31: 1 | AT31: 2
A32: 22 | B32: Brandys Piotr | C32: =IF(NOT(B32=""),IF(VLOOKUP(B32,Tabela1[[Nick]:[Imię + Nazwisko]],2,FALSE)<>0,VLOOKUP(B32,Tabela1[[Nick]:[Imię + Nazwisko]],2,FALSE),""),"") -> Brandon | D32: 64 | E32: 83.11688312 | F32: =IF(B32<>"",IF(VLOOKUP(B32,Tabela1[[#All],[Imię + Nazwisko]:[K]],11,FALSE)=1,"K","")&IF(VLOOKUP(B32,Tabela1[[#All],[Imię + Nazwisko]:[K]],10,FALSE)=1,"W",""),"") ->  | G32: 2 | H32: 2 | I32: 2 | J32: 1 | K32: 2 | L32: 2 | M32: 2 | N32: 2 | O32: 1 | P32: 1 | Q32: 1 | R32: 1 | S32: 2 | T32: 2 | U32: 1 | V32: 2 | W32: 2 | X32: 1 | Y32: 1 | Z32: 1 | AA32: 2 | AB32: 2 | AC32: 2 | AD32: 2 | AE32: 1 | AF32: 1 | AG32: 1 | AH32: 1 | AI32: 1 | AJ32: 2 | AK32: 1 | AL32: 2 | AM32: 2 | AN32: 2 | AO32: 2 | AP32: 1 | AQ32: 2 | AR32: 2 | AS32: 2 | AT32: 2
A33: 22 | B33: Gacek Tomasz | C33: =IF(NOT(B33=""),IF(VLOOKUP(B33,Tabela1[[Nick]:[Imię + Nazwisko]],2,FALSE)<>0,VLOOKUP(B33,Tabela1[[Nick]:[Imię + Nazwisko]],2,FALSE),""),"") -> WuDe | D33: 64 | E33: 83.11688312 | F33: =IF(B33<>"",IF(VLOOKUP(B33,Tabela1[[#All],[Imię + Nazwisko]:[K]],11,FALSE)=1,"K","")&IF(VLOOKUP(B33,Tabela1[[#All],[Imię + Nazwisko]:[K]],10,FALSE)=1,"W",""),"") ->  | G33: 2 | H33: 2 | I33: 2 | J33: 2 | K33: 1 | L33: 2 | M33: 2 | N33: 2 | O33: 2 | P33: 2 | Q33: 1 | R33: 0 | S33: 2 | T33: 1 | U33: 2 | V33: 2 | W33: 2 | X33: 2 | Y33: 1 | Z33: 1 | AA33: 1 | AB33: 1 | AC33: 2 | AD33: 2 | AE33: 2 | AF33: 2 | AG33: 1 | AH33: 1 | AI33: 2 | AJ33: 2 | AK33: 2 | AL33: 1 | AM33: 1 | AN33: 2 | AO33: 2 | AP33: 2 | AQ33: 1 | AR33: 1 | AS33: 1 | AT33: 2
A34: 22 | B34: Szymanowski Darek | C34: =IF(NOT(B34=""),IF(VLOOKUP(B34,Tabela1[[Nick]:[Imię + Nazwisko]],2,FALSE)<>0,VLOOKUP(B34,Tabela1[[Nick]:[Imię + Nazwisko]],2,FALSE),""),"") -> sindbad | D34: 64 | E34: 83.11688312 | F34: =IF(B34<>"",IF(VLOOKUP(B34,Tabela1[[#All],[Imię + Nazwisko]:[K]],11,FALSE)=1,"K","")&IF(VLOOKUP(B34,Tabela1[[#All],[Imię + Nazwisko]:[K]],10,FALSE)=1,"W",""),"") ->  | G34: 2 | H34: 1 | I34: 2 | J34: 2 | K34: 1 | L34: 2 | M34: 2 | N34: 2 | O34: 1 | P34: 2 | Q34: 1 | R34: 1 | S34: 1 | T34: 2 | U34: 1 | V34: 2 | W34: 2 | X34: 1 | Y34: 1 | Z34: 2 | AA34: 1 | AB34: 2 | AC34: 2 | AD34: 2 | AE34: 2 | AF34: 2 | AG34: 0 | AH34: 1 | AI34: 2 | AJ34: 2 | AK34: 1 | AL34: 2 | AM34: 2 | AN34: 2 | AO34: 2 | AP34: 2 | AQ34: 2 | AR34: 1 | AS34: 1 | AT34: 2
A35: 27 | B35: Kaźmierczak Bartłomiej | C35: =IF(NOT(B35=""),IF(VLOOKUP(B35,Tabela1[[Nick]:[Imię + Nazwisko]],2,FALSE)<>0,VLOOKUP(B35,Tabela1[[Nick]:[Imię + Nazwisko]],2,FALSE),""),"") -> BARTEZZ | D35: 63 | E35: 81.81818182 | F35: =IF(B35<>"",IF(VLOOKUP(B35,Tabela1[[#All],[Imię + Nazwisko]:[K]],11,FALSE)=1,"K","")&IF(VLOOKUP(B35,Tabela1[[#All],[Imię + Nazwisko]:[K]],10,FALSE)=1,"W",""),"") ->  | G35: 2 | H35: 2 | I35: 2 | J35: 1 | K35: 1 | L35: 2 | M35: 2 | N35: 2 | O35: 2 | P35: 2 | Q35: 1 | R35: 2 | S35: 2 | T35: 2 | U35: 2 | V35: 1 | W35: 2 | X35: 2 | Y35: 1 | Z35: 1 | AA35: 1 | AB35: 1 | AC35: 2 | AD35: 1 | AE35: 2 | AF35: 2 | AG35: 1 | AH35: 1 | AI35: 1 | AJ35: 2 | AK35: 2 | AL35: 1 | AM35: 1 | AN35: 2 | AO35: 2 | AP35: 2 | AQ35: 2 | AR35: 2 | AS35: 1 | AT35: 0
A36: 27 | B36: Wołowicz Krzysztof | C36: =IF(NOT(B36=""),IF(VLOOKUP(B36,Tabela1[[Nick]:[Imię + Nazwisko]],2,FALSE)<>0,VLOOKUP(B36,Tabela1[[Nick]:[Imię + Nazwisko]],2,FALSE),""),"") -> Piżol | D36: 63 | E36: 81.81818182 | F36: =IF(B36<>"",IF(VLOOKUP(B36,Tabela1[[#All],[Imię + Nazwisko]:[K]],11,FALSE)=1,"K","")&IF(VLOOKUP(B36,Tabela1[[#All],[Imię + Nazwisko]:[K]],10,FALSE)=1,"W",""),"") ->  | G36: 2 | H36: 2 | I36: 2 | J36: 2 | K36: 2 | L36: 2 | M36: 1 | N36: 2 | O36: 1 | P36: 1 | Q36: 2 | R36: 2 | S36: 1 | T36: 1 | U36: 1 | V36: 2 | W36: 2 | X36: 2 | Y36: 0 | Z36: 1 | AA36: 2 | AB36: 2 | AC36: 2 | AD36: 2 | AE36: 2 | AF36: 2 | AG36: 2 | AH36: 1 | AI36: 2 | AJ36: 1 | AK36: 2 | AL36: 2 | AM36: 1 | AN36: 2 | AO36: 0 | AP36: 2 | AQ36: 2 | AR36: 1 | AS36: 0 | AT36: 2
A37: 29 | B37: Mazurek Karol | C37: =IF(NOT(B37=""),IF(VLOOKUP(B37,Tabela1[[Nick]:[Imię + Nazwisko]],2,FALSE)<>0,VLOOKUP(B37,Tabela1[[Nick]:[Imię + Nazwisko]],2,FALSE),""),"") -> lupus | D37: 62 | E37: 80.51948052 | F37: =IF(B37<>"",IF(VLOOKUP(B37,Tabela1[[#All],[Imię + Nazwisko]:[K]],11,FALSE)=1,"K","")&IF(VLOOKUP(B37,Tabela1[[#All],[Imię + Nazwisko]:[K]],10,FALSE)=1,"W",""),"") ->  | G37: 2 | H37: 2 | I37: 2 | J37: 2 | K37: 1 | L37: 1 | M37: 1 | N37: 2 | O37: 2 | P37: 2 | Q37: 0 | R37: 2 | S37: 2 | T37: 2 | U37: 1 | V37: 2 | W37: 2 | X37: 2 | Y37: 2 | Z37: 1 | AA37: 1 | AB37: 1 | AC37: 1 | AD37: 2 | AE37: 1 | AF37: 2 | AG37: 1 | AH37: 1 | AI37: 2 | AJ37: 2 | AK37: 2 | AL37: 2 | AM37: 1 | AN37: 2 | AO37: 1 | AP37: 1 | AQ37: 1 | AR37: 2 | AS37: 2 | AT37: 1
A38: 29 | B38: Machowicz Anna | C38: =IF(NOT(B38=""),IF(VLOOKUP(B38,Tabela1[[Nick]:[Imię + Nazwisko]],2,FALSE)<>0,VLOOKUP(B38,Tabela1[[Nick]:[Imię + Nazwisko]],2,FALSE),""),"") -> Anna | D38: 62 | E38: 80.51948052 | F38: =IF(B38<>"",IF(VLOOKUP(B38,Tabela1[[#All],[Imię + Nazwisko]:[K]],11,FALSE)=1,"K","")&IF(VLOOKUP(B38,Tabela1[[#All],[Imię + Nazwisko]:[K]],10,FALSE)=1,"W",""),"") -> K | G38: 2 | H38: 1 | I38: 2 | J38: 2 | K38: 1 | L38: 2 | M38: 1 | N38: 2 | O38: 2 | P38: 1 | Q38: 1 | R38: 2 | S38: 1 | T38: 2 | U38: 1 | V38: 1 | W38: 2 | X38: 1 | Y38: 1 | Z38: 1 | AA38: 2 | AB38: 1 | AC38: 2 | AD38: 2 | AE38: 2 | AF38: 2 | AG38: 0 | AH38: 1 | AI38: 2 | AJ38: 2 | AK38: 2 | AL38: 2 | AM38: 2 | AN38: 2 | AO38: 1 | AP38: 1 | AQ38: 2 | AR38: 2 | AS38: 1 | AT38: 2
A39: 31 | B39: Sawicki Leszek | C39: =IF(NOT(B39=""),IF(VLOOKUP(B39,Tabela1[[Nick]:[Imię + Nazwisko]],2,FALSE)<>0,VLOOKUP(B39,Tabela1[[Nick]:[Imię + Nazwisko]],2,FALSE),""),"") -> PaPaj | D39: 61 | E39: 79.22077922 | F39: =IF(B39<>"",IF(VLOOKUP(B39,Tabela1[[#All],[Imię + Nazwisko]:[K]],11,FALSE)=1,"K","")&IF(VLOOKUP(B39,Tabela1[[#All],[Imię + Nazwisko]:[K]],10,FALSE)=1,"W",""),"") ->  | G39: 2 | H39: 2 | I39: 2 | J39: 2 | K39: 2 | L39: 2 | M39: 1 | N39: 1 | O39: 1 | P39: 1 | Q39: 1 | R39: 1 | S39: 0 | T39: 1 | U39: 1 | V39: 1 | W39: 2 | X39: 2 | Y39: 1 | Z39: 2 | AA39: 2 | AB39: 2 | AC39: 2 | AD39: 2 | AE39: 1 | AF39: 2 | AG39: 1 | AH39: 1 | AI39: 1 | AJ39: 2 | AK39: 2 | AL39: 2 | AM39: 1 | AN39: 2 | AO39: 2 | AP39: 2 | AQ39: 2 | AR39: 1 | AS39: 2 | AT39: 1
A40: 32 | B40: Dębecka Marta | C40: =IF(NOT(B40=""),IF(VLOOKUP(B40,Tabela1[[Nick]:[Imię + Nazwisko]],2,FALSE)<>0,VLOOKUP(B40,Tabela1[[Nick]:[Imię + Nazwisko]],2,FALSE),""),"") -> Lennox | D40: 54 | E40: 70.12987013 | F40: =IF(B40<>"",IF(VLOOKUP(B40,Tabela1[[#All],[Imię + Nazwisko]:[K]],11,FALSE)=1,"K","")&IF(VLOOKUP(B40,Tabela1[[#All],[Imię + Nazwisko]:[K]],10,FALSE)=1,"W",""),"") -> K | G40: 2 | H40: 2 | I40: 2 | J40: 1 | K40: 1 | L40: 1 | M40: 1 | N40: 1 | O40: 2 | P40: 1 | Q40: 1 | R40: 1 | S40: 1 | T40: 2 | U40: 2 | V40: 1 | W40: 2 | X40: 2 | Y40: 1 | Z40: 1 | AA40: 2 | AB40: 1 | AC40: 2 | AD40: 2 | AE40: 2 | AF40: 2 | AG40: 1 | AH40: 1 | AI40: 1 | AJ40: 1 | AK40: 1 | AL40: 1 | AM40: 1 | AN40: 1 | AO40: 1 | AP40: 1 | AQ40: 1 | AR40: 1 | AS40: 1 | AT40: 2
A41: 33 | B41: Wietrzykowski Krzysztof | C41: =IF(NOT(B41=""),IF(VLOOKUP(B41,Tabela1[[Nick]:[Imię + Nazwisko]],2,FALSE)<>0,VLOOKUP(B41,Tabela1[[Nick]:[Imię + Nazwisko]],2,FALSE),""),"") -> Krzysztof W. | D41: 53 | E41: 68.83116883 | F41: =IF(B41<>"",IF(VLOOKUP(B41,Tabela1[[#All],[Imię + Nazwisko]:[K]],11,FALSE)=1,"K","")&IF(VLOOKUP(B41,Tabela1[[#All],[Imię + Nazwisko]:[K]],10,FALSE)=1,"W",""),"") ->  | G41: 2 | H41: 1 | I41: 1 | J41: 1 | K41: 2 | L41: 1 | M41: 1 | N41: 1 | O41: 2 | P41: 1 | Q41: 1 | R41: 1 | S41: 1 | T41: 1 | U41: 2 | V41: 1 | W41: 1 | X41: 1 | Y41: 1 | Z41: 2 | AA41: 2 | AB41: 1 | AC41: 2 | AD41: 1 | AE41: 1 | AF41: 1 | AG41: 2 | AH41: 2 | AI41: 1 | AJ41: 1 | AK41: 1 | AL41: 1 | AM41: 0 | AN41: 2 | AO41: 2 | AP41: 1 | AQ41: 2 | AR41: 1 | AS41: 2 | AT41: 2

Sheet HFT2
A1: Celów: | B1: 40 | D1: % trafień za 2 pkt | G1: =(COUNTIF(G9:G74,2)/COUNTA(G9:G74))*100 -> 87.5 | H1: =(COUNTIF(H9:H74,2)/COUNTA(H9:H74))*100 -> 50 | I1: 75 | J1: 50 | K1: 50 | L1: 75 | M1: 62.5 | N1: 87.5 | O1: 50 | P1: 50 | Q1: 37.5 | R1: 62.5 | S1: 37.5 | T1: 50 | U1: 37.5 | V1: 12.5 | W1: 62.5 | X1: 50 | Y1: 0 | Z1: 0 | AA1: 25 | AB1: 37.5 | AC1: 62.5 | AD1: 25 | AE1: 37.5 | AF1: 37.5 | AG1: 37.5 | AH1: 37.5 | AI1: 37.5 | AJ1: 25 | AK1: 37.5 | AL1: 62.5 | AM1: 25 | AN1: 87.5 | AO1: 37.5 | AP1: 62.5 | AQ1: 50 | AR1: 50 | AS1: 37.5 | AT1: 75
D2: % trafień za 1 pkt | G2: =(COUNTIF(G9:G74,1)/COUNTA(G9:G74))*100 -> 0 | H2: =(COUNTIF(H9:H74,1)/COUNTA(H9:H74))*100 -> 50 | I2: 25 | J2: 37.5 | K2: 50 | L2: 25 | M2: 25 | N2: 12.5 | O2: 50 | P2: 50 | Q2: 62.5 | R2: 25 | S2: 50 | T2: 50 | U2: 62.5 | V2: 87.5 | W2: 37.5 | X2: 37.5 | Y2: 100 | Z2: 87.5 | AA2: 75 | AB2: 62.5 | AC2: 37.5 | AD2: 75 | AE2: 37.5 | AF2: 50 | AG2: 37.5 | AH2: 50 | AI2: 62.5 | AJ2: 62.5 | AK2: 62.5 | AL2: 37.5 | AM2: 62.5 | AN2: 12.5 | AO2: 37.5 | AP2: 37.5 | AQ2: 50 | AR2: 50 | AS2: 62.5 | AT2: 25
D3: % trafień za 0 pkt | G3: =(COUNTIF(G9:G74,0)/COUNTA(G9:G74))*100 -> 12.5 | H3: =(COUNTIF(H9:H74,0)/COUNTA(H9:H74))*100 -> 0 | I3: 0 | J3: 12.5 | K3: 0 | L3: 0 | M3: 12.5 | N3: 0 | O3: 0 | P3: 0 | Q3: 0 | R3: 12.5 | S3: 12.5 | T3: 0 | U3: 0 | V3: 0 | W3: 0 | X3: 12.5 | Y3: 0 | Z3: 12.5 | AA3: 0 | AB3: 0 | AC3: 0 | AD3: 0 | AE3: 25 | AF3: 12.5 | AG3: 25 | AH3: 12.5 | AI3: 0 | AJ3: 12.5 | AK3: 0 | AL3: 0 | AM3: 12.5 | AN3: 0 | AO3: 25 | AP3: 0 | AQ3: 0 | AR3: 0 | AS3: 0 | AT3: 0
F5: Cel nr | G5: 1 | H5: 2 | I5: 3 | J5: 4 | K5: 5 | L5: 6 | M5: 7 | N5: 8 | O5: 9 | P5: 10 | Q5: 11 | R5: 12 | S5: 13 | T5: 14 | U5: 15 | V5: 16 | W5: 17 | X5: 18 | Y5: 19 | Z5: 20 | AA5: 21 | AB5: 22 | AC5: 23 | AD5: 24 | AE5: 25 | AF5: 26 | AG5: 27 | AH5: 28 | AI5: 29 | AJ5: 30 | AK5: 31 | AL5: 32 | AM5: 33 | AN5: 34 | AO5: 35 | AP5: 36 | AQ5: 37 | AR5: 38 | AS5: 39 | AT5: 40 | AU5: D
A6: Data: | C6: 43611 | F6: dystans [m] | G6: 23 | H6: 20 | I6: 22.5 | J6: 37 | K6: 18 | L6: 30 | M6: 42 | N6: 38 | O6: 9 | P6: 32 | Q6: 37 | R6: 42 | S6: 38 | T6: 32 | U6: 24 | V6: 30 | W6: 33 | X6: 42 | Y6: 31 | Z6: 30 | AA6: 19 | AB6: 21 | AC6: 25 | AD6: 21 | AE6: 40 | AF6: 33 | AG6: 30 | AH6: 32 | AI6: 22 | AJ6: 37 | AK6: 33 | AL6: 24 | AM6: 41 | AN6: 19 | AO6: 34 | AP6: 22.5 | AQ6: 19 | AR6: 27 | AS6: 31 | AT6: 16
A7: Kategoria: | C7: HFT2 | F7: KZ [mm] | G7: 15 | H7: 20 | I7: 20 | J7: 25 | K7: 15 | L7: 25 | M7: 35 | N7: 40 | O7: 20 | P7: 30 | Q7: 25 | R7: 40 | S7: 35 | T7: 30 | U7: 35 | V7: 40 | W7: 25 | X7: 35 | Y7: 35 | Z7: 40 | AA7: 15 | AB7: 20 | AC7: 20 | AD7: 15 | AE7: 40 | AF7: 25 | AG7: 40 | AH7: 35 | AI7: 15 | AJ7: 30 | AK7: 30 | AL7: 20 | AM7: 35 | AN7: 15 | AO7: 25 | AP7: 15 | AQ7: 15 | AR7: 20 | AS7: 35 | AT7: 35
A8: Miejsce | B8: Imię, nazwisko | C8: Nick | D8: Suma punktów | E8: % do zwycięzcy | F8: postawa/ uwagi | I8: L | J8: L | U8: kl | V8: kl | Y8: st | Z8: st | AC8: L | AD8: L | AG8: st | AH8: st | AO8: m | AS8: kl | AT8: kl
A9: 1 | B9: Opiela Sławomir | C9: =IF(NOT(B9=""),IF(VLOOKUP(B9,Tabela1[[Nick]:[Imię + Nazwisko]],2,FALSE)<>0,VLOOKUP(B9,Tabela1[[Nick]:[Imię + Nazwisko]],2,FALSE),""),"") -> AJU | D9: =SUM(G9:AT9) -> 67 | E9: =IF(A9=1,100,IF($D$9<>0,D9/$D$9*100,"")) -> 100 | F9: =IF(B9<>"",IF(VLOOKUP(B9,Tabela1[[#All],[Imię + Nazwisko]:[K]],11,FALSE)=1,"K","")&IF(VLOOKUP(B9,Tabela1[[#All],[Imię + Nazwisko]:[K]],10,FALSE)=1,"W",""),"") ->  | G9: 2 | H9: 2 | I9: 2 | J9: 1 | K9: 2 | L9: 2 | M9: 2 | N9: 2 | O9: 1 | P9: 2 | Q9: 2 | R9: 2 | S9: 2 | T9: 2 | U9: 2 | V9: 1 | W9: 2 | X9: 2 | Y9: 1 | Z9: 1 | AA9: 1 | AB9: 2 | AC9: 2 | AD9: 1 | AE9: 1 | AF9: 2 | AG9: 1 | AH9: 2 | AI9: 2 | AJ9: 1 | AK9: 1 | AL9: 2 | AM9: 2 | AN9: 2 | AO9: 2 | AP9: 2 | AQ9: 1 | AR9: 1 | AS9: 2 | AT9: 2
A10: 2 | B10: Budny Artur | C10: =IF(NOT(B10=""),IF(VLOOKUP(B10,Tabela1[[Nick]:[Imię + Nazwisko]],2,FALSE)<>0,VLOOKUP(B10,Tabela1[[Nick]:[Imię + Nazwisko]],2,FALSE),""),"") -> Artur555 | D10: 63 | E10: 94.02985075 | F10: =IF(B10<>"",IF(VLOOKUP(B10,Tabela1[[#All],[Imię + Nazwisko]:[K]],11,FALSE)=1,"K","")&IF(VLOOKUP(B10,Tabela1[[#All],[Imię + Nazwisko]:[K]],10,FALSE)=1,"W",""),"") ->  | G10: 2 | H10: 2 | I10: 2 | J10: 1 | K10: 1 | L10: 2 | M10: 2 | N10: 2 | O10: 2 | P10: 2 | Q10: 1 | R10: 2 | S10: 2 | T10: 2 | U10: 1 | V10: 1 | W10: 2 | X10: 2 | Y10: 1 | Z10: 1 | AA10: 1 | AB10: 1 | AC10: 1 | AD10: 1 | AE10: 1 | AF10: 1 | AG10: 2 | AH10: 1 | AI10: 1 | AJ10: 2 | AK10: 2 | AL10: 2 | AM10: 1 | AN10: 2 | AO10: 2 | AP10: 2 | AQ10: 2 | AR10: 2 | AS10: 1 | AT10: 2
A11: 3 | B11: Chojnicki Janusz | C11: =IF(NOT(B11=""),IF(VLOOKUP(B11,Tabela1[[Nick]:[Imię + Nazwisko]],2,FALSE)<>0,VLOOKUP(B11,Tabela1[[Nick]:[Imię + Nazwisko]],2,FALSE),""),"") -> Spinner | D11: 61 | E11: 91.04477612 | F11: =IF(B11<>"",IF(VLOOKUP(B11,Tabela1[[#All],[Imię + Nazwisko]:[K]],11,FALSE)=1,"K","")&IF(VLOOKUP(B11,Tabela1[[#All],[Imię + Nazwisko]:[K]],10,FALSE)=1,"W",""),"") -> W | G11: 2 | H11: 2 | I11: 1 | J11: 2 | K11: 2 | L11: 2 | M11: 1 | N11: 2 | O11: 2 | P11: 1 | Q11: 2 | R11: 1 | S11: 1 | T11: 2 | U11: 2 | V11: 1 | W11: 1 | X11: 1 | Y11: 1 | Z11: 1 | AA11: 1 | AB11: 2 | AC11: 2 | AD11: 2 | AE11: 0 | AF11: 1 | AG11: 2 | AH11: 1 | AI11: 2 | AJ11: 1 | AK11: 2 | AL11: 1 | AM11: 1 | AN11: 2 | AO11: 1 | AP11: 2 | AQ11: 2 | AR11: 2 | AS11: 2 | AT11: 2
A12: 4 | B12: Kaczmarek Piotr | C12: =IF(NOT(B12=""),IF(VLOOKUP(B12,Tabela1[[Nick]:[Imię + Nazwisko]],2,FALSE)<>0,VLOOKUP(B12,Tabela1[[Nick]:[Imię + Nazwisko]],2,FALSE),""),"") -> Silart | D12: 60 | E12: 89.55223881 | F12: =IF(B12<>"",IF(VLOOKUP(B12,Tabela1[[#All],[Imię + Nazwisko]:[K]],11,FALSE)=1,"K","")&IF(VLOOKUP(B12,Tabela1[[#All],[Imię + Nazwisko]:[K]],10,FALSE)=1,"W",""),"") ->  | G12: 2 | H12: 1 | I12: 2 | J12: 1 | K12: 2 | L12: 2 | M12: 1 | N12: 2 | O12: 1 | P12: 1 | Q12: 1 | R12: 1 | S12: 2 | T12: 1 | U12: 1 | V12: 1 | W12: 2 | X12: 2 | Y12: 1 | Z12: 1 | AA12: 2 | AB12: 1 | AC12: 2 | AD12: 2 | AE12: 2 | AF12: 1 | AG12: 2 | AH12: 2 | AI12: 2 | AJ12: 1 | AK12: 2 | AL12: 2 | AM12: 1 | AN12: 2 | AO12: 0 | AP12: 2 | AQ12: 1 | AR12: 2 | AS12: 1 | AT12: 2
A13: 5 | B13: Badziński Sławomir | C13: =IF(NOT(B13=""),IF(VLOOKUP(B13,Tabela1[[Nick]:[Imię + Nazwisko]],2,FALSE)<>0,VLOOKUP(B13,Tabela1[[Nick]:[Imię + Nazwisko]],2,FALSE),""),"") -> slawol75 | D13: 57 | E13: 85.07462687 | F13: =IF(B13<>"",IF(VLOOKUP(B13,Tabela1[[#All],[Imię + Nazwisko]:[K]],11,FALSE)=1,"K","")&IF(VLOOKUP(B13,Tabela1[[#All],[Imię + Nazwisko]:[K]],10,FALSE)=1,"W",""),"") ->  | G13: 2 | H13: 2 | I13: 1 | J13: 2 | K13: 1 | L13: 1 | M13: 2 | N13: 2 | O13: 2 | P13: 2 | Q13: 1 | R13: 2 | S13: 1 | T13: 1 | U13: 1 | V13: 1 | W13: 1 | X13: 2 | Y13: 1 | Z13: 1 | AA13: 1 | AB13: 2 | AC13: 2 | AD13: 1 | AE13: 2 | AF13: 2 | AG13: 1 | AH13: 0 | AI13: 1 | AJ13: 1 | AK13: 1 | AL13: 2 | AM13: 1 | AN13: 2 | AO13: 2 | AP13: 2 | AQ13: 1 | AR13: 1 | AS13: 2 | AT13: 1
A14: 6 | B14: Floryn Marek | C14: =IF(NOT(B14=""),IF(VLOOKUP(B14,Tabela1[[Nick]:[Imię + Nazwisko]],2,FALSE)<>0,VLOOKUP(B14,Tabela1[[Nick]:[Imię + Nazwisko]],2,FALSE),""),"") -> StgMechanik | D14: 55 | E14: 82.08955224 | F14: =IF(B14<>"",IF(VLOOKUP(B14,Tabela1[[#All],[Imię + Nazwisko]:[K]],11,FALSE)=1,"K","")&IF(VLOOKUP(B14,Tabela1[[#All],[Imię + Nazwisko]:[K]],10,FALSE)=1,"W",""),"") -> W | G14: 0 | H14: 1 | I14: 2 | J14: 2 | K14: 2 | L14: 2 | M14: 2 | N14: 2 | O14: 1 | P14: 1 | Q14: 1 | R14: 2 | S14: 1 | T14: 1 | U14: 2 | V14: 1 | W14: 2 | X14: 1 | Y14: 1 | Z14: 1 | AA14: 1 | AB14: 1 | AC14: 1 | AD14: 1 | AE14: 2 | AF14: 2 | AG14: 0 | AH14: 1 | AI14: 1 | AJ14: 1 | AK14: 1 | AL14: 2 | AM14: 2 | AN14: 2 | AO14: 1 | AP14: 1 | AQ14: 2 | AR14: 2 | AS14: 1 | AT14: 2
A15: 7 | B15: Zgiernicki Marcin | C15: =IF(NOT(B15=""),IF(VLOOKUP(B15,Tabela1[[Nick]:[Imię + Nazwisko]],2,FALSE)<>0,VLOOKUP(B15,Tabela1[[Nick]:[Imię + Nazwisko]],2,FALSE),""),"") -> Mazgier | D15: 54 | E15: 80.59701493 | F15: =IF(B15<>"",IF(VLOOKUP(B15,Tabela1[[#All],[Imię + Nazwisko]:[K]],11,FALSE)=1,"K","")&IF(VLOOKUP(B15,Tabela1[[#All],[Imię + Nazwisko]:[K]],10,FALSE)=1,"W",""),"") ->  | G15: 2 | H15: 1 | I15: 2 | J15: 2 | K15: 1 | L15: 2 | M15: 2 | N15: 2 | O15: 1 | P15: 2 | Q15: 2 | R15: 2 | S15: 1 | T15: 2 | U15: 1 | V15: 2 | W15: 2 | X15: 1 | Y15: 1 | Z15: 1 | AA15: 1 | AB15: 1 | AC15: 2 | AD15: 1 | AE15: 1 | AF15: 1 | AG15: 0 | AH15: 2 | AI15: 1 | AJ15: 2 | AK15: 1 | AL15: 1 | AM15: 1 | AN15: 1 | AO15: 0 | AP15: 1 | AQ15: 2 | AR15: 1 | AS15: 1 | AT15: 1
A16: 8 | B16: Lamcha Marcin | C16: =IF(NOT(B16=""),IF(VLOOKUP(B16,Tabela1[[Nick]:[Imię + Nazwisko]],2,FALSE)<>0,VLOOKUP(B16,Tabela1[[Nick]:[Imię + Nazwisko]],2,FALSE),""),"") -> Lamus | D16: 36 | E16: 53.73134328 | F16: =IF(B16<>"",IF(VLOOKUP(B16,Tabela1[[#All],[Imię + Nazwisko]:[K]],11,FALSE)=1,"K","")&IF(VLOOKUP(B16,Tabela1[[#All],[Imię + Nazwisko]:[K]],10,FALSE)=1,"W",""),"") ->  | G16: 2 | H16: 1 | I16: 2 | J16: 0 | K16: 1 | L16: 1 | M16: 0 | N16: 1 | O16: 2 | P16: 1 | Q16: 1 | R16: 0 | S16: 0 | T16: 1 | U16: 1 | V16: 1 | W16: 1 | X16: 0 | Y16: 1 | Z16: 0 | AA16: 2 | AB16: 1 | AC16: 1 | AD16: 1 | AE16: 0 | AF16: 0 | AG16: 1 | AH16: 1 | AI16: 1 | AJ16: 0 | AK16: 1 | AL16: 1 | AM16: 0 | AN16: 2 | AO16: 1 | AP16: 1 | AQ16: 1 | AR16: 1 | AS16: 1 | AT16: 2

Sheet nHFT
A1: Celów: | B1: 20 | D1: % trafień za 2 pkt | G1: =(COUNTIF(G9:G74,2)/COUNTA(G9:G74))*100 -> 94.11764706 | H1: =(COUNTIF(H9:H74,2)/COUNTA(H9:H74))*100 -> 76.47058824 | I1: 82.35294118 | J1: 64.70588235 | K1: 58.82352941 | L1: 76.47058824 | M1: 76.47058824 | N1: 76.47058824 | O1: 82.35294118 | P1: 88.23529412 | Q1: 52.94117647 | R1: 35.29411765 | S1: 52.94117647 | T1: 82.35294118 | U1: 94.11764706 | V1: 94.11764706 | W1: 76.47058824 | X1: 94.11764706 | Y1: 76.47058824 | Z1: 64.70588235
D2: % trafień za 1 pkt | G2: =(COUNTIF(G9:G74,1)/COUNTA(G9:G74))*100 -> 5.882352941 | H2: =(COUNTIF(H9:H74,1)/COUNTA(H9:H74))*100 -> 23.52941176 | I2: 17.64705882 | J2: 35.29411765 | K2: 41.17647059 | L2: 23.52941176 | M2: 23.52941176 | N2: 23.52941176 | O2: 17.64705882 | P2: 11.76470588 | Q2: 47.05882353 | R2: 47.05882353 | S2: 41.17647059 | T2: 17.64705882 | U2: 5.882352941 | V2: 5.882352941 | W2: 23.52941176 | X2: 5.882352941 | Y2: 23.52941176 | Z2: 35.29411765
D3: % trafień za 0 pkt | G3: =(COUNTIF(G9:G74,0)/COUNTA(G9:G74))*100 -> 0 | H3: =(COUNTIF(H9:H74,0)/COUNTA(H9:H74))*100 -> 0 | I3: 0 | J3: 0 | K3: 0 | L3: 0 | M3: 0 | N3: 0 | O3: 0 | P3: 0 | Q3: 0 | R3: 17.64705882 | S3: 5.882352941 | T3: 0 | U3: 0 | V3: 0 | W3: 0 | X3: 0 | Y3: 0 | Z3: 0
F5: Cel nr | G5: 1 | H5: 2 | I5: 3 | J5: 4 | K5: 5 | L5: 6 | M5: 7 | N5: 8 | O5: 9 | P5: 10 | Q5: 11 | R5: 12 | S5: 13 | T5: 14 | U5: 15 | V5: 16 | W5: 17 | X5: 18 | Y5: 19 | Z5: 20 | AA5: 21 | AB5: 22 | AC5: 23 | AD5: 24 | AE5: 25 | AF5: 26 | AG5: 27 | AH5: 28 | AI5: 29 | AJ5: 30 | AK5: 31 | AL5: 32 | AM5: 33 | AN5: 34 | AO5: 35 | AP5: 36 | AQ5: 37 | AR5: 38 | AS5: 39 | AT5: 40 | AU5: D
A6: Data: | C6: 43610 | F6: dystans [m] | G6: 18.5 | H6: 20 | I6: 17 | J6: 34 | K6: 18 | L6: 30 | M6: 34 | N6: 38 | O6: 21 | P6: 32 | Q6: 37 | R6: 42 | S6: 41 | T6: 32 | U6: 22.5 | V6: 33 | W6: 19 | X6: 27 | Y6: 31 | Z6: 21
A7: Kategoria: | C7: nHFT | F7: KZ [mm] | G7: 15 | H7: 20 | I7: 20 | J7: 25 | K7: 15 | L7: 25 | M7: 35 | N7: 40 | O7: 20 | P7: 30 | Q7: 25 | R7: 40 | S7: 35 | T7: 30 | U7: 25 | V7: 35 | W7: 15 | X7: 20 | Y7: 25 | Z7: 20
A8: Miejsce | B8: Imię, nazwisko | C8: Nick | D8: Suma punktów | E8: % do zwycięzcy | F8: postawa/ uwagi
A9: 1 | B9: Szłapka Maciej | C9: =IF(NOT(B9=""),IF(VLOOKUP(B9,Tabela1[[Nick]:[Imię + Nazwisko]],2,FALSE)<>0,VLOOKUP(B9,Tabela1[[Nick]:[Imię + Nazwisko]],2,FALSE),""),"") -> MaciejSz | D9: =SUM(G9:AT9) -> 40 | E9: =IF(A9=1,100,IF($D$9<>0,D9/$D$9*100,"")) -> 100 | F9: =IF(B9<>"",IF(VLOOKUP(B9,Tabela1[[#All],[Imię + Nazwisko]:[K]],11,FALSE)=1,"K","")&IF(VLOOKUP(B9,Tabela1[[#All],[Imię + Nazwisko]:[K]],10,FALSE)=1,"W",""),"") ->  | G9: 2 | H9: 2 | I9: 2 | J9: 2 | K9: 2 | L9: 2 | M9: 2 | N9: 2 | O9: 2 | P9: 2 | Q9: 2 | R9: 2 | S9: 2 | T9: 2 | U9: 2 | V9: 2 | W9: 2 | X9: 2 | Y9: 2 | Z9: 2
A10: 2 | B10: Maciejewicz Mirosław | C10: =IF(NOT(B10=""),IF(VLOOKUP(B10,Tabela1[[Nick]:[Imię + Nazwisko]],2,FALSE)<>0,VLOOKUP(B10,Tabela1[[Nick]:[Imię + Nazwisko]],2,FALSE),""),"") -> Krauser | D10: 39 | E10: 97.5 | F10: =IF(B10<>"",IF(VLOOKUP(B10,Tabela1[[#All],[Imię + Nazwisko]:[K]],11,FALSE)=1,"K","")&IF(VLOOKUP(B10,Tabela1[[#All],[Imię + Nazwisko]:[K]],10,FALSE)=1,"W",""),"") ->  | G10: 2 | H10: 2 | I10: 2 | J10: 2 | K10: 2 | L10: 2 | M10: 2 | N10: 2 | O10: 2 | P10: 2 | Q10: 2 | R10: 2 | S10: 1 | T10: 2 | U10: 2 | V10: 2 | W10: 2 | X10: 2 | Y10: 2 | Z10: 2 | AU10: 1
A11: 3 | B11: Lisowski Grzegorz | C11: =IF(NOT(B11=""),IF(VLOOKUP(B11,Tabela1[[Nick]:[Imię + Nazwisko]],2,FALSE)<>0,VLOOKUP(B11,Tabela1[[Nick]:[Imię + Nazwisko]],2,FALSE),""),"") -> Lisek | D11: 39 | E11: 97.5 | F11: =IF(B11<>"",IF(VLOOKUP(B11,Tabela1[[#All],[Imię + Nazwisko]:[K]],11,FALSE)=1,"K","")&IF(VLOOKUP(B11,Tabela1[[#All],[Imię + Nazwisko]:[K]],10,FALSE)=1,"W",""),"") ->  | G11: 2 | H11: 2 | I11: 2 | J11: 2 | K11: 2 | L11: 2 | M11: 2 | N11: 2 | O11: 2 | P11: 2 | Q11: 1 | R11: 2 | S11: 2 | T11: 2 | U11: 2 | V11: 2 | W11: 2 | X11: 2 | Y11: 2 | Z11: 2 | AU11: 2
A12: 4 | B12: Cielepak Tomasz | C12: =IF(NOT(B12=""),IF(VLOOKUP(B12,Tabela1[[Nick]:[Imię + Nazwisko]],2,FALSE)<>0,VLOOKUP(B12,Tabela1[[Nick]:[Imię + Nazwisko]],2,FALSE),""),"") -> MASZOT | D12: 38 | E12: 95 | F12: =IF(B12<>"",IF(VLOOKUP(B12,Tabela1[[#All],[Imię + Nazwisko]:[K]],11,FALSE)=1,"K","")&IF(VLOOKUP(B12,Tabela1[[#All],[Imię + Nazwisko]:[K]],10,FALSE)=1,"W",""),"") ->  | G12: 2 | H12: 2 | I12: 2 | J12: 2 | K12: 2 | L12: 2 | M12: 2 | N12: 2 | O12: 2 | P12: 2 | Q12: 1 | R12: 2 | S12: 2 | T12: 2 | U12: 2 | V12: 2 | W12: 1 | X12: 2 | Y12: 2 | Z12: 2
A13: 4 | B13: Remiszewski Piotr | C13: =IF(NOT(B13=""),IF(VLOOKUP(B13,Tabela1[[Nick]:[Imię + Nazwisko]],2,FALSE)<>0,VLOOKUP(B13,Tabela1[[Nick]:[Imię + Nazwisko]],2,FALSE),""),"") -> red5555 | D13: 38 | E13: 95 | F13: =IF(B13<>"",IF(VLOOKUP(B13,Tabela1[[#All],[Imię + Nazwisko]:[K]],11,FALSE)=1,"K","")&IF(VLOOKUP(B13,Tabela1[[#All],[Imię + Nazwisko]:[K]],10,FALSE)=1,"W",""),"") ->  | G13: 2 | H13: 2 | I13: 2 | J13: 2 | K13: 1 | L13: 2 | M13: 2 | N13: 2 | O13: 2 | P13: 2 | Q13: 2 | R13: 1 | S13: 2 | T13: 2 | U13: 2 | V13: 2 | W13: 2 | X13: 2 | Y13: 2 | Z13: 2
A14: 6 | B14: Szałkowski Krzysztof | C14: =IF(NOT(B14=""),IF(VLOOKUP(B14,Tabela1[[Nick]:[Imię + Nazwisko]],2,FALSE)<>0,VLOOKUP(B14,Tabela1[[Nick]:[Imię + Nazwisko]],2,FALSE),""),"") -> Kris | D14: 36 | E14: 90 | F14: =IF(B14<>"",IF(VLOOKUP(B14,Tabela1[[#All],[Imię + Nazwisko]:[K]],11,FALSE)=1,"K","")&IF(VLOOKUP(B14,Tabela1[[#All],[Imię + Nazwisko]:[K]],10,FALSE)=1,"W",""),"") ->  | G14: 2 | H14: 2 | I14: 2 | J14: 1 | K14: 2 | L14: 2 | M14: 2 | N14: 1 | O14: 2 | P14: 2 | Q14: 2 | R14: 0 | S14: 2 | T14: 2 | U14: 2 | V14: 2 | W14: 2 | X14: 2 | Y14: 2 | Z14: 2
A15: 6 | B15: Sroczyński Michał | C15: =IF(NOT(B15=""),IF(VLOOKUP(B15,Tabela1[[Nick]:[Imię + Nazwisko]],2,FALSE)<>0,VLOOKUP(B15,Tabela1[[Nick]:[Imię + Nazwisko]],2,FALSE),""),"") -> Michał | D15: 36 | E15: 90 | F15: =IF(B15<>"",IF(VLOOKUP(B15,Tabela1[[#All],[Imię + Nazwisko]:[K]],11,FALSE)=1,"K","")&IF(VLOOKUP(B15,Tabela1[[#All],[Imię + Nazwisko]:[K]],10,FALSE)=1,"W",""),"") ->  | G15: 2 | H15: 2 | I15: 2 | J15: 1 | K15: 2 | L15: 2 | M15: 2 | N15: 2 | O15: 2 | P15: 2 | Q15: 2 | R15: 1 | S15: 1 | T15: 1 | U15: 2 | V15: 2 | W15: 2 | X15: 2 | Y15: 2 | Z15: 2
A16: 6 | B16: Kerber Jakub | C16: =IF(NOT(B16=""),IF(VLOOKUP(B16,Tabela1[[Nick]:[Imię + Nazwisko]],2,FALSE)<>0,VLOOKUP(B16,Tabela1[[Nick]:[Imię + Nazwisko]],2,FALSE),""),"") -> Lord Rzeźnik | D16: 36 | E16: 90 | F16: =IF(B16<>"",IF(VLOOKUP(B16,Tabela1[[#All],[Imię + Nazwisko]:[K]],11,FALSE)=1,"K","")&IF(VLOOKUP(B16,Tabela1[[#All],[Imię + Nazwisko]:[K]],10,FALSE)=1,"W",""),"") ->  | G16: 2 | H16: 2 | I16: 2 | J16: 2 | K16: 2 | L16: 1 | M16: 2 | N16: 2 | O16: 2 | P16: 1 | Q16: 2 | R16: 1 | S16: 1 | T16: 2 | U16: 2 | V16: 2 | W16: 2 | X16: 2 | Y16: 2 | Z16: 2
A17: 6 | B17: Dąbrowski Michał | C17: =IF(NOT(B17=""),IF(VLOOKUP(B17,Tabela1[[Nick]:[Imię + Nazwisko]],2,FALSE)<>0,VLOOKUP(B17,Tabela1[[Nick]:[Imię + Nazwisko]],2,FALSE),""),"") -> Michał Alfa | D17: 36 | E17: 90 | F17: =IF(B17<>"",IF(VLOOKUP(B17,Tabela1[[#All],[Imię + Nazwisko]:[K]],11,FALSE)=1,"K","")&IF(VLOOKUP(B17,Tabela1[[#All],[Imię + Nazwisko]:[K]],10,FALSE)=1,"W",""),"") ->  | G17: 2 | H17: 2 | I17: 2 | J17: 1 | K17: 2 | L17: 2 | M17: 1 | N17: 2 | O17: 2 | P17: 2 | Q17: 1 | R17: 1 | S17: 2 | T17: 2 | U17: 2 | V17: 2 | W17: 2 | X17: 2 | Y17: 2 | Z17: 2
A18: 10 | B18: Kowalczyk Krzysztof | C18: =IF(NOT(B18=""),IF(VLOOKUP(B18,Tabela1[[Nick]:[Imię + Nazwisko]],2,FALSE)<>0,VLOOKUP(B18,Tabela1[[Nick]:[Imię + Nazwisko]],2,FALSE),""),"") -> krzysztofk | D18: 35 | E18: 87.5 | F18: =IF(B18<>"",IF(VLOOKUP(B18,Tabela1[[#All],[Imię + Nazwisko]:[K]],11,FALSE)=1,"K","")&IF(VLOOKUP(B18,Tabela1[[#All],[Imię + Nazwisko]:[K]],10,FALSE)=1,"W",""),"") ->  | G18: 2 | H18: 1 | I18: 2 | J18: 2 | K18: 2 | L18: 2 | M18: 1 | N18: 2 | O18: 2 | P18: 2 | Q18: 2 | R18: 1 | S18: 2 | T18: 2 | U18: 2 | V18: 2 | W18: 1 | X18: 2 | Y18: 2 | Z18: 1
A19: 11 | B19: Kaźmierczak Bartłomiej | C19: =IF(NOT(B19=""),IF(VLOOKUP(B19,Tabela1[[Nick]:[Imię + Nazwisko]],2,FALSE)<>0,VLOOKUP(B19,Tabela1[[Nick]:[Imię + Nazwisko]],2,FALSE),""),"") -> BARTEZZ | D19: 33 | E19: 82.5 | F19: =IF(B19<>"",IF(VLOOKUP(B19,Tabela1[[#All],[Imię + Nazwisko]:[K]],11,FALSE)=1,"K","")&IF(VLOOKUP(B19,Tabela1[[#All],[Imię + Nazwisko]:[K]],10,FALSE)=1,"W",""),"") ->  | G19: 2 | H19: 1 | I19: 2 | J19: 1 | K19: 1 | L19: 1 | M19: 2 | N19: 2 | O19: 1 | P19: 2 | Q19: 2 | R19: 2 | S19: 2 | T19: 2 | U19: 2 | V19: 2 | W19: 2 | X19: 2 | Y19: 1 | Z19: 1
A20: 11 | B20: Gacek Tomasz | C20: =IF(NOT(B20=""),IF(VLOOKUP(B20,Tabela1[[Nick]:[Imię + Nazwisko]],2,FALSE)<>0,VLOOKUP(B20,Tabela1[[Nick]:[Imię + Nazwisko]],2,FALSE),""),"") -> WuDe | D20: 33 | E20: 82.5 | F20: =IF(B20<>"",IF(VLOOKUP(B20,Tabela1[[#All],[Imię + Nazwisko]:[K]],11,FALSE)=1,"K","")&IF(VLOOKUP(B20,Tabela1[[#All],[Imię + Nazwisko]:[K]],10,FALSE)=1,"W",""),"") ->  | G20: 2 | H20: 2 | I20: 2 | J20: 2 | K20: 1 | L20: 2 | M20: 2 | N20: 2 | O20: 2 | P20: 2 | Q20: 1 | R20: 0 | S20: 1 | T20: 2 | U20: 2 | V20: 2 | W20: 1 | X20: 2 | Y20: 2 | Z20: 1
A21: 13 | B21: Sadowski Eugeniusz | C21: =IF(NOT(B21=""),IF(VLOOKUP(B21,Tabela1[[Nick]:[Imię + Nazwisko]],2,FALSE)<>0,VLOOKUP(B21,Tabela1[[Nick]:[Imię + Nazwisko]],2,FALSE),""),"") -> eugsad | D21: 32 | E21: 80 | F21: =IF(B21<>"",IF(VLOOKUP(B21,Tabela1[[#All],[Imię + Nazwisko]:[K]],11,FALSE)=1,"K","")&IF(VLOOKUP(B21,Tabela1[[#All],[Imię + Nazwisko]:[K]],10,FALSE)=1,"W",""),"") -> W | G21: 2 | H21: 1 | I21: 1 | J21: 2 | K21: 1 | L21: 2 | M21: 2 | N21: 2 | O21: 1 | P21: 2 | Q21: 1 | R21: 1 | S21: 1 | T21: 2 | U21: 2 | V21: 2 | W21: 2 | X21: 2 | Y21: 2 | Z21: 1
A22: 13 | B22: Zgiernicki Marcin | C22: =IF(NOT(B22=""),IF(VLOOKUP(B22,Tabela1[[Nick]:[Imię + Nazwisko]],2,FALSE)<>0,VLOOKUP(B22,Tabela1[[Nick]:[Imię + Nazwisko]],2,FALSE),""),"") -> Mazgier | D22: 32 | E22: 80 | F22: =IF(B22<>"",IF(VLOOKUP(B22,Tabela1[[#All],[Imię + Nazwisko]:[K]],11,FALSE)=1,"K","")&IF(VLOOKUP(B22,Tabela1[[#All],[Imię + Nazwisko]:[K]],10,FALSE)=1,"W",""),"") ->  | G22: 2 | H22: 1 | I22: 2 | J22: 2 | K22: 1 | L22: 1 | M22: 2 | N22: 1 | O22: 2 | P22: 2 | Q22: 1 | R22: 1 | S22: 1 | T22: 2 | U22: 2 | V22: 1 | W22: 2 | X22: 2 | Y22: 2 | Z22: 2
A23: 15 | B23: Wolski Robert | C23: =IF(NOT(B23=""),IF(VLOOKUP(B23,Tabela1[[Nick]:[Imię + Nazwisko]],2,FALSE)<>0,VLOOKUP(B23,Tabela1[[Nick]:[Imię + Nazwisko]],2,FALSE),""),"") -> Wola | D23: 31 | E23: 77.5 | F23: =IF(B23<>"",IF(VLOOKUP(B23,Tabela1[[#All],[Imię + Nazwisko]:[K]],11,FALSE)=1,"K","")&IF(VLOOKUP(B23,Tabela1[[#All],[Imię + Nazwisko]:[K]],10,FALSE)=1,"W",""),"") ->  | G23: 2 | H23: 2 | I23: 1 | J23: 1 | K23: 2 | L23: 2 | M23: 1 | N23: 2 | O23: 2 | P23: 2 | Q23: 2 | R23: 0 | S23: 0 | T23: 2 | U23: 1 | V23: 2 | W23: 2 | X23: 2 | Y23: 1 | Z23: 2
A24: 15 | B24: Dąbrowski Maciej | C24: =IF(NOT(B24=""),IF(VLOOKUP(B24,Tabela1[[Nick]:[Imię + Nazwisko]],2,FALSE)<>0,VLOOKUP(B24,Tabela1[[Nick]:[Imię + Nazwisko]],2,FALSE),""),"") -> Maciej Alfa | D24: 31 | E24: 77.5 | F24: =IF(B24<>"",IF(VLOOKUP(B24,Tabela1[[#All],[Imię + Nazwisko]:[K]],11,FALSE)=1,"K","")&IF(VLOOKUP(B24,Tabela1[[#All],[Imię + Nazwisko]:[K]],10,FALSE)=1,"W",""),"") ->  | G24: 2 | H24: 2 | I24: 2 | J24: 1 | K24: 1 | L24: 1 | M24: 1 | N24: 1 | O24: 2 | P24: 2 | Q24: 1 | R24: 2 | S24: 2 | T24: 1 | U24: 2 | V24: 2 | W24: 2 | X24: 2 | Y24: 1 | Z24: 1
A25: 17 | B25: Korczyński Antoni | C25: =IF(NOT(B25=""),IF(VLOOKUP(B25,Tabela1[[Nick]:[Imię + Nazwisko]],2,FALSE)<>0,VLOOKUP(B25,Tabela1[[Nick]:[Imię + Nazwisko]],2,FALSE),""),"") -> Antek | D25: 26 | E25: 65 | F25: =IF(B25<>"",IF(VLOOKUP(B25,Tabela1[[#All],[Imię + Nazwisko]:[K]],11,FALSE)=1,"K","")&IF(VLOOKUP(B25,Tabela1[[#All],[Imię + Nazwisko]:[K]],10,FALSE)=1,"W",""),"") ->  | G25: 1 | H25: 2 | I25: 1 | J25: 2 | K25: 1 | L25: 2 | M25: 2 | N25: 1 | O25: 1 | P25: 1 | Q25: 1 | R25: 1 | S25: 1 | T25: 1 | U25: 2 | V25: 2 | W25: 1 | X25: 1 | Y25: 1 | Z25: 1

Sheet JUNIOR
A1: Celów: | B1: 40 | D1: % trafień za 2 pkt | G1: =(COUNTIF(G9:G74,2)/COUNTA(G9:G74))*100 -> 100 | H1: =(COUNTIF(H9:H74,2)/COUNTA(H9:H74))*100 -> 50 | I1: 50 | J1: 0 | K1: 50 | L1: 0 | M1: 50 | N1: 0 | O1: 0 | P1: 0 | Q1: 0 | R1: 0 | S1: 0 | T1: 0 | U1: 0 | V1: 0 | W1: 50 | X1: 50 | Y1: 0 | Z1: 0 | AA1: 50 | AB1: 50 | AC1: 50 | AD1: 50 | AE1: 0 | AF1: 0 | AG1: 0 | AH1: 0 | AI1: 50 | AJ1: 0 | AK1: 50 | AL1: 50 | AM1: 50 | AN1: 50 | AO1: 50 | AP1: 100 | AQ1: 50 | AR1: 50 | AS1: 0 | AT1: 0
D2: % trafień za 1 pkt | G2: =(COUNTIF(G9:G74,1)/COUNTA(G9:G74))*100 -> 0 | H2: =(COUNTIF(H9:H74,1)/COUNTA(H9:H74))*100 -> 50 | I2: 50 | J2: 100 | K2: 50 | L2: 100 | M2: 50 | N2: 50 | O2: 100 | P2: 100 | Q2: 100 | R2: 100 | S2: 100 | T2: 50 | U2: 0 | V2: 0 | W2: 50 | X2: 50 | Y2: 0 | Z2: 0 | AA2: 50 | AB2: 0 | AC2: 50 | AD2: 50 | AE2: 100 | AF2: 100 | AG2: 0 | AH2: 0 | AI2: 50 | AJ2: 50 | AK2: 50 | AL2: 50 | AM2: 50 | AN2: 0 | AO2: 50 | AP2: 0 | AQ2: 50 | AR2: 50 | AS2: 0 | AT2: 0
D3: % trafień za 0 pkt | G3: =(COUNTIF(G9:G74,0)/COUNTA(G9:G74))*100 -> 0 | H3: =(COUNTIF(H9:H74,0)/COUNTA(H9:H74))*100 -> 0 | I3: 0 | J3: 0 | K3: 0 | L3: 0 | M3: 0 | N3: 50 | O3: 0 | P3: 0 | Q3: 0 | R3: 0 | S3: 0 | T3: 50 | U3: 0 | V3: 0 | W3: 0 | X3: 0 | Y3: 0 | Z3: 0 | AA3: 0 | AB3: 50 | AC3: 0 | AD3: 0 | AE3: 0 | AF3: 0 | AG3: 0 | AH3: 0 | AI3: 0 | AJ3: 50 | AK3: 0 | AL3: 0 | AM3: 0 | AN3: 50 | AO3: 0 | AP3: 0 | AQ3: 0 | AR3: 0 | AS3: 0 | AT3: 0
F5: Cel nr | G5: 1 | H5: 2 | I5: 3 | J5: 4 | K5: 5 | L5: 6 | M5: 7 | N5: 8 | O5: 9 | P5: 10 | Q5: 11 | R5: 12 | S5: 13 | T5: 14 | U5: 15 | V5: 16 | W5: 17 | X5: 18 | Y5: 19 | Z5: 20 | AA5: 21 | AB5: 22 | AC5: 23 | AD5: 24 | AE5: 25 | AF5: 26 | AG5: 27 | AH5: 28 | AI5: 29 | AJ5: 30 | AK5: 31 | AL5: 32 | AM5: 33 | AN5: 34 | AO5: 35 | AP5: 36 | AQ5: 37 | AR5: 38 | AS5: 39 | AT5: 40 | AU5: D
A6: Data: | C6: 43611 | F6: dystans [m] | G6: 23 | H6: 20 | I6: 22.5 | J6: 37 | K6: 18 | L6: 30 | M6: 42 | N6: 38 | O6: 9 | P6: 32 | Q6: 37 | R6: 42 | S6: 38 | T6: 32 | U6: 24 | V6: 30 | W6: 3 | X6: 42 | Y6: 19 | Z6: 21 | AA6: 31 | AB6: 30 | AC6: 25 | AD6: 21 | AE6: 40 | AF6: 33 | AG6: 22 | AH6: 37 | AI6: 30 | AJ6: 32 | AK6: 33 | AL6: 24 | AM6: 19 | AN6: 41 | AO6: 34 | AP6: 22.5 | AQ6: 27 | AR6: 19 | AS6: 31 | AT6: 16
A7: Kategoria: | C7: JUNIOR | F7: KZ [mm] | G7: 15 | H7: 20 | I7: 20 | J7: 25 | K7: 15 | L7: 25 | M7: 35 | N7: 40 | O7: 20 | P7: 30 | Q7: 25 | R7: 40 | S7: 35 | T7: 30 | U7: 35 | V7: 40 | W7: 25 | X7: 35 | Y7: 15 | Z7: 20 | AA7: 35 | AB7: 40 | AC7: 20 | AD7: 15 | AE7: 40 | AF7: 25 | AG7: 15 | AH7: 30 | AI7: 40 | AJ7: 35 | AK7: 30 | AL7: 20 | AM7: 15 | AN7: 35 | AO7: 25 | AP7: 15 | AQ7: 20 | AR7: 15 | AS7: 35 | AT7: 35
A8: Miejsce | B8: Imię, nazwisko | C8: Nick | D8: Suma punktów | E8: % do zwycięzcy | F8: postawa/ uwagi | I8: L | J8: L | U8: kl | V8: kl | Y8: st | Z8: st | AC8: L | AD8: L | AG8: st | AH8: st | AS8: kl | AT8: kl
A9: 1 | B9: Korczyński Antoni | C9: =IF(NOT(B9=""),IF(VLOOKUP(B9,Tabela1[[Nick]:[Imię + Nazwisko]],2,FALSE)<>0,VLOOKUP(B9,Tabela1[[Nick]:[Imię + Nazwisko]],2,FALSE),""),"") -> Antek | D9: =SUM(G9:AT9) -> 46 | E9: =IF(A9=1,100,IF($D$9<>0,D9/$D$9*100,"")) -> 100 | F9: =IF(B9<>"",IF(VLOOKUP(B9,Tabela1[[#All],[Imię + Nazwisko]:[K]],11,FALSE)=1,"K","")&IF(VLOOKUP(B9,Tabela1[[#All],[Imię + Nazwisko]:[K]],10,FALSE)=1,"W",""),"") ->  | G9: 2 | H9: 2 | I9: 2 | J9: 1 | K9: 2 | L9: 1 | M9: 2 | N9: 1 | O9: 1 | P9: 1 | Q9: 1 | R9: 1 | S9: 1 | T9: 1 | U9: x | V9: x | W9: 2 | X9: 1 | Y9: x | Z9: x | AA9: 2 | AB9: 2 | AC9: 2 | AD9: 2 | AE9: 1 | AF9: 1 | AG9: x | AH9: x | AI9: 2 | AJ9: 1 | AK9: 1 | AL9: 2 | AM9: 2 | AN9: 0 | AO9: 1 | AP9: 2 | AQ9: 1 | AR9: 2 | AS9: x | AT9: x
A10: 2 | B10: Lamcha Kostek | C10: =IF(NOT(B10=""),IF(VLOOKUP(B10,Tabela1[[Nick]:[Imię + Nazwisko]],2,FALSE)<>0,VLOOKUP(B10,Tabela1[[Nick]:[Imię + Nazwisko]],2,FALSE),""),"") -> Kostek | D10: 35 | E10: 76.08695652 | F10: =IF(B10<>"",IF(VLOOKUP(B10,Tabela1[[#All],[Imię + Nazwisko]:[K]],11,FALSE)=1,"K","")&IF(VLOOKUP(B10,Tabela1[[#All],[Imię + Nazwisko]:[K]],10,FALSE)=1,"W",""),"") ->  | G10: 2 | H10: 1 | I10: 1 | J10: 1 | K10: 1 | L10: 1 | M10: 1 | N10: 0 | O10: 1 | P10: 1 | Q10: 1 | R10: 1 | S10: 1 | T10: 0 | U10: x | V10: x | W10: 1 | X10: 2 | Y10: x | Z10: x | AA10: 1 | AB10: 0 | AC10: 1 | AD10: 1 | AE10: 1 | AF10: 1 | AG10: x | AH10: x | AI10: 1 | AJ10: 0 | AK10: 2 | AL10: 1 | AM10: 1 | AN10: 2 | AO10: 2 | AP10: 2 | AQ10: 2 | AR10: 1 | AS10: x | AT10: x

Sheet DRUŻYNY
A2: Drużyna | B2: Nazwisko, Imię | C2: Konkurencja | D2: punkty (po przeliczeniu) | E2: %
A3: WSST STRZELEC | B3: Kostowski Jacek | C3: =IF(NOT(B3=""),IF(VLOOKUP(B3,DaneZawodnikow!$C$2:$N$81,12,FALSE)<>0,VLOOKUP(B3,DaneZawodnikow!$C$2:$N$81,12,FALSE),""),"") -> HFT 1 | D3: =IF(C3="HFT 1",VLOOKUP(B3,'HFT1'!$B$9:$E$41,3,FALSE),IF(C3="HFT 2",VLOOKUP(B3,'HFT2'!$B$9:$E$16,3,FALSE),IF(C3="FT",VLOOKUP(B3,FT!$B$6:$E$21,3,FALSE),""))) -> 77 | E3: =D3/$H$7 -> 1
A4: WSST STRZELEC | B4: Narbut Jarosław | C4: =IF(NOT(B4=""),IF(VLOOKUP(B4,DaneZawodnikow!$C$2:$N$81,12,FALSE)<>0,VLOOKUP(B4,DaneZawodnikow!$C$2:$N$81,12,FALSE),""),"") -> HFT 1 | D4: =IF(C4="HFT 1",VLOOKUP(B4,'HFT1'!$B$9:$E$41,3,FALSE),IF(C4="HFT 2",VLOOKUP(B4,'HFT2'!$B$9:$E$16,3,FALSE),IF(C4="FT",VLOOKUP(B4,FT!$B$6:$E$21,3,FALSE),""))) -> 76 | E4: =D4/$H$7 -> 0.987012987
A5: WSST STRZELEC | B5: Szłapka Maciej | C5: =IF(NOT(B5=""),IF(VLOOKUP(B5,DaneZawodnikow!$C$2:$N$81,12,FALSE)<>0,VLOOKUP(B5,DaneZawodnikow!$C$2:$N$81,12,FALSE),""),"") -> HFT 1 | D5: =IF(C5="HFT 1",VLOOKUP(B5,'HFT1'!$B$9:$E$41,3,FALSE),IF(C5="HFT 2",VLOOKUP(B5,'HFT2'!$B$9:$E$16,3,FALSE),IF(C5="FT",VLOOKUP(B5,FT!$B$6:$E$21,3,FALSE),""))) -> 71 | E5: 0.9220779221 | G5: przekalkulowane wyniki
A6: WSST STRZELEC | B6: Krempczyński Marek | C6: =IF(NOT(B6=""),IF(VLOOKUP(B6,DaneZawodnikow!$C$2:$N$81,12,FALSE)<>0,VLOOKUP(B6,DaneZawodnikow!$C$2:$N$81,12,FALSE),""),"") -> HFT 1 | D6: =IF(C6="HFT 1",VLOOKUP(B6,'HFT1'!$B$9:$E$41,3,FALSE),IF(C6="HFT 2",VLOOKUP(B6,'HFT2'!$B$9:$E$16,3,FALSE),IF(C6="FT",VLOOKUP(B6,FT!$B$6:$E$21,3,FALSE),""))) -> 68 | E6: 0.8831168831 | G6: FT max | H6: 76
A7: WSST STRZELEC | B7: Gacek Tomasz | C7: =IF(NOT(B7=""),IF(VLOOKUP(B7,DaneZawodnikow!$C$2:$N$81,12,FALSE)<>0,VLOOKUP(B7,DaneZawodnikow!$C$2:$N$81,12,FALSE),""),"") -> HFT 1 | D7: =IF(C7="HFT 1",VLOOKUP(B7,'HFT1'!$B$9:$E$41,3,FALSE),IF(C7="HFT 2",VLOOKUP(B7,'HFT2'!$B$9:$E$16,3,FALSE),IF(C7="FT",VLOOKUP(B7,FT!$B$6:$E$21,3,FALSE),""))) -> 64 | E7: 0.8311688312 | G7: HFT1 max | H7: 77
A8: WSST STRZELEC WYNIK | C8: =IF(NOT(B8=""),IF(VLOOKUP(B8,DaneZawodnikow!$C$2:$N$81,12,FALSE)<>0,VLOOKUP(B8,DaneZawodnikow!$C$2:$N$81,12,FALSE),""),"") ->  | E8: =SUM(LARGE(E3:E7,{1;2;3})) -> 2.909090909 | G8: HFT2 max | H8: 67
A9: WIKINGI | B9: Cielepak Tomasz | C9: =IF(NOT(B9=""),IF(VLOOKUP(B9,DaneZawodnikow!$C$2:$N$81,12,FALSE)<>0,VLOOKUP(B9,DaneZawodnikow!$C$2:$N$81,12,FALSE),""),"") -> HFT 1 | D9: =IF(C9="HFT 1",VLOOKUP(B9,'HFT1'!$B$9:$E$41,3,FALSE),IF(C9="HFT 2",VLOOKUP(B9,'HFT2'!$B$9:$E$16,3,FALSE),IF(C9="FT",VLOOKUP(B9,FT!$B$6:$E$21,3,FALSE),""))) -> 75 | E9: 0.974025974
A10: WIKINGI | B10: Lisowski Grzegorz | C10: =IF(NOT(B10=""),IF(VLOOKUP(B10,DaneZawodnikow!$C$2:$N$81,12,FALSE)<>0,VLOOKUP(B10,DaneZawodnikow!$C$2:$N$81,12,FALSE),""),"") -> HFT 1 | D10: =IF(C10="HFT 1",VLOOKUP(B10,'HFT1'!$B$9:$E$41,3,FALSE),IF(C10="HFT 2",VLOOKUP(B10,'HFT2'!$B$9:$E$16,3,FALSE),IF(C10="FT",VLOOKUP(B10,FT!$B$6:$E$21,3,FALSE),""))) -> 75 | E10: 0.974025974
A11: WIKINGI | B11: Szałkowski Krzysztof | C11: =IF(NOT(B11=""),IF(VLOOKUP(B11,DaneZawodnikow!$C$2:$N$81,12,FALSE)<>0,VLOOKUP(B11,DaneZawodnikow!$C$2:$N$81,12,FALSE),""),"") -> HFT 1 | D11: =IF(C11="HFT 1",VLOOKUP(B11,'HFT1'!$B$9:$E$41,3,FALSE),IF(C11="HFT 2",VLOOKUP(B11,'HFT2'!$B$9:$E$16,3,FALSE),IF(C11="FT",VLOOKUP(B11,FT!$B$6:$E$21,3,FALSE),""))) -> 72 | E11: 0.9350649351
A12: WIKINGI | B12: Kaczmarek Mariusz | C12: =IF(NOT(B12=""),IF(VLOOKUP(B12,DaneZawodnikow!$C$2:$N$81,12,FALSE)<>0,VLOOKUP(B12,DaneZawodnikow!$C$2:$N$81,12,FALSE),""),"") -> HFT 1 | D12: =IF(C12="HFT 1",VLOOKUP(B12,'HFT1'!$B$9:$E$41,3,FALSE),IF(C12="HFT 2",VLOOKUP(B12,'HFT2'!$B$9:$E$16,3,FALSE),IF(C12="FT",VLOOKUP(B12,FT!$B$6:$E$21,3,FALSE),""))) -> 69 | E12: 0.8961038961
A13: WIKINGI | B13: Maciejewicz Mirosław | C13: =IF(NOT(B13=""),IF(VLOOKUP(B13,DaneZawodnikow!$C$2:$N$81,12,FALSE)<>0,VLOOKUP(B13,DaneZawodnikow!$C$2:$N$81,12,FALSE),""),"") -> HFT 1 | D13: =IF(C13="HFT 1",VLOOKUP(B13,'HFT1'!$B$9:$E$41,3,FALSE),IF(C13="HFT 2",VLOOKUP(B13,'HFT2'!$B$9:$E$16,3,FALSE),IF(C13="FT",VLOOKUP(B13,FT!$B$6:$E$21,3,FALSE),""))) -> 67 | E13: 0.8701298701
A14: WIKINGI WYNIK | C14: =IF(NOT(B14=""),IF(VLOOKUP(B14,DaneZawodnikow!$C$2:$N$81,12,FALSE)<>0,VLOOKUP(B14,DaneZawodnikow!$C$2:$N$81,12,FALSE),""),"") ->  | E14: =SUM(LARGE(E9:E13,{1;2;3})) -> 2.883116883
A15: WKFT | B15: Rozum Radosław | C15: =IF(NOT(B15=""),IF(VLOOKUP(B15,DaneZawodnikow!$C$2:$N$81,12,FALSE)<>0,VLOOKUP(B15,DaneZawodnikow!$C$2:$N$81,12,FALSE),""),"") -> FT | D15: 74 | E15: =D15/$H$6 -> 0.9736842105
A16: WKFT | B16: Budny Artur | C16: =IF(NOT(B16=""),IF(VLOOKUP(B16,DaneZawodnikow!$C$2:$N$81,12,FALSE)<>0,VLOOKUP(B16,DaneZawodnikow!$C$2:$N$81,12,FALSE),""),"") -> HFT 2 | D16: =IF(C16="HFT 1",VLOOKUP(B16,'HFT1'!$B$9:$E$41,3,FALSE),IF(C16="HFT 2",VLOOKUP(B16,'HFT2'!$B$9:$E$16,3,FALSE),IF(C16="FT",VLOOKUP(B16,FT!$B$6:$E$21,3,FALSE),""))) -> 63 | E16: =D16/$H$8 -> 0.9402985075
A17: WKFT | B17: Remiszewski Piotr | C17: =IF(NOT(B17=""),IF(VLOOKUP(B17,DaneZawodnikow!$C$2:$N$81,12,FALSE)<>0,VLOOKUP(B17,DaneZawodnikow!$C$2:$N$81,12,FALSE),""),"") -> HFT 1 | D17: =IF(C17="HFT 1",VLOOKUP(B17,'HFT1'!$B$9:$E$41,3,FALSE),IF(C17="HFT 2",VLOOKUP(B17,'HFT2'!$B$9:$E$16,3,FALSE),IF(C17="FT",VLOOKUP(B17,FT!$B$6:$E$21,3,FALSE),""))) -> 71 | E17: =D17/$H$7 -> 0.9220779221
A18: WKFT | B18: Pachnik Rafał | C18: =IF(NOT(B18=""),IF(VLOOKUP(B18,DaneZawodnikow!$C$2:$N$81,12,FALSE)<>0,VLOOKUP(B18,DaneZawodnikow!$C$2:$N$81,12,FALSE),""),"") -> FT | D18: 72 | E18: =D18/$H$6 -> 0.9473684211
A19: WKFT | B19: Drabik Marcin | C19: =IF(NOT(B19=""),IF(VLOOKUP(B19,DaneZawodnikow!$C$2:$N$81,12,FALSE)<>0,VLOOKUP(B19,DaneZawodnikow!$C$2:$N$81,12,FALSE),""),"") -> FT | D19: 70 | E19: =D19/$H$6 -> 0.9210526316
A20: WKFT WYNIK | C20: =IF(NOT(B20=""),IF(VLOOKUP(B20,DaneZawodnikow!$C$2:$N$81,12,FALSE)<>0,VLOOKUP(B20,DaneZawodnikow!$C$2:$N$81,12,FALSE),""),"") ->  | E20: =SUM(LARGE(E15:E19,{1;2;3})) -> 2.861351139
A21: SG3M | B21: Nachman Norbert | C21: =IF(NOT(B21=""),IF(VLOOKUP(B21,DaneZawodnikow!$C$2:$N$81,12,FALSE)<>0,VLOOKUP(B21,DaneZawodnikow!$C$2:$N$81,12,FALSE),""),"") -> HFT 1 | D21: =IF(C21="HFT 1",VLOOKUP(B21,'HFT1'!$B$9:$E$41,3,FALSE),IF(C21="HFT 2",VLOOKUP(B21,'HFT2'!$B$9:$E$16,3,FALSE),IF(C21="FT",VLOOKUP(B21,FT!$B$6:$E$21,3,FALSE),""))) -> 76 | E21: =D21/$H$7 -> 0.987012987
A22: SG3M | B22: Chojnicki Janusz | C22: =IF(NOT(B22=""),IF(VLOOKUP(B22,DaneZawodnikow!$C$2:$N$81,12,FALSE)<>0,VLOOKUP(B22,DaneZawodnikow!$C$2:$N$81,12,FALSE),""),"") -> HFT 2 | D22: =IF(C22="HFT 1",VLOOKUP(B22,'HFT1'!$B$9:$E$41,3,FALSE),IF(C22="HFT 2",VLOOKUP(B22,'HFT2'!$B$9:$E$16,3,FALSE),IF(C22="FT",VLOOKUP(B22,FT!$B$6:$E$21,3,FALSE),""))) -> 61 | E22: =D22/$H$8 -> 0.9104477612
A23: SG3M | B23: Zacharzewski Arkadiusz | C23: =IF(NOT(B23=""),IF(VLOOKUP(B23,DaneZawodnikow!$C$2:$N$81,12,FALSE)<>0,VLOOKUP(B23,DaneZawodnikow!$C$2:$N$81,12,FALSE),""),"") -> HFT 1 | D23: =IF(C23="HFT 1",VLOOKUP(B23,'HFT1'!$B$9:$E$41,3,FALSE),IF(C23="HFT 2",VLOOKUP(B23,'HFT2'!$B$9:$E$16,3,FALSE),IF(C23="FT",VLOOKUP(B23,FT!$B$6:$E$21,3,FALSE),""))) -> 68 | E23: =D23/$H$7 -> 0.8831168831
A24: SG3M | B24: Tałaj Szymon | C24: =IF(NOT(B24=""),IF(VLOOKUP(B24,DaneZawodnikow!$C$2:$N$81,12,FALSE)<>0,VLOOKUP(B24,DaneZawodnikow!$C$2:$N$81,12,FALSE),""),"") -> FT | D24: 69 | E24: =D24/$H$6 -> 0.9078947368
A25: SG3M WYNIK | C25: =IF(NOT(B25=""),IF(VLOOKUP(B25,DaneZawodnikow!$C$2:$N$81,12,FALSE)<>0,VLOOKUP(B25,DaneZawodnikow!$C$2:$N$81,12,FALSE),""),"") ->  | E25: =SUM(LARGE(E21:E24,{1;2;3})) -> 2.805355485
A26: DGST BEAVER | B26: Opiela Sławomir | C26: =IF(NOT(B26=""),IF(VLOOKUP(B26,DaneZawodnikow!$C$2:$N$81,12,FALSE)<>0,VLOOKUP(B26,DaneZawodnikow!$C$2:$N$81,12,FALSE),""),"") -> HFT 2 | D26: =IF(C26="HFT 1",VLOOKUP(B26,'HFT1'!$B$9:$E$41,3,FALSE),IF(C26="HFT 2",VLOOKUP(B26,'HFT2'!$B$9:$E$16,3,FALSE),IF(C26="FT",VLOOKUP(B26,FT!$B$6:$E$21,3,FALSE),""))) -> 67 | E26: =D26/$H$8 -> 1
A27: DGST BEAVER | B27: Markisz Marcin | C27: =IF(NOT(B27=""),IF(VLOOKUP(B27,DaneZawodnikow!$C$2:$N$81,12,FALSE)<>0,VLOOKUP(B27,DaneZawodnikow!$C$2:$N$81,12,FALSE),""),"") -> FT | D27: 70 | E27: =D27/$H$6 -> 0.9210526316
A28: DGST BEAVER | B28: Wietrzykowski Paweł | C28: =IF(NOT(B28=""),IF(VLOOKUP(B28,DaneZawodnikow!$C$2:$N$81,12,FALSE)<>0,VLOOKUP(B28,DaneZawodnikow!$C$2:$N$81,12,FALSE),""),"") -> HFT 1 | D28: =IF(C28="HFT 1",VLOOKUP(B28,'HFT1'!$B$9:$E$41,3,FALSE),IF(C28="HFT 2",VLOOKUP(B28,'HFT2'!$B$9:$E$16,3,FALSE),IF(C28="FT",VLOOKUP(B28,FT!$B$6:$E$21,3,FALSE),""))) -> 66 | E28: =D28/$H$7 -> 0.8571428571
A29: DGST BEAVER | B29: Brandys Piotr | C29: =IF(NOT(B29=""),IF(VLOOKUP(B29,DaneZawodnikow!$C$2:$N$81,12,FALSE)<>0,VLOOKUP(B29,DaneZawodnikow!$C$2:$N$81,12,FALSE),""),"") -> HFT 1 | D29: =IF(C29="HFT 1",VLOOKUP(B29,'HFT1'!$B$9:$E$41,3,FALSE),IF(C29="HFT 2",VLOOKUP(B29,'HFT2'!$B$9:$E$16,3,FALSE),IF(C29="FT",VLOOKUP(B29,FT!$B$6:$E$21,3,FALSE),""))) -> 64 | E29: 0.8311688312
A30: DGST BEAVER | B30: Merski Tomasz | C30: =IF(NOT(B30=""),IF(VLOOKUP(B30,DaneZawodnikow!$C$2:$N$81,12,FALSE)<>0,VLOOKUP(B30,DaneZawodnikow!$C$2:$N$81,12,FALSE),""),"") -> FT | D30: 64 | E30: =D30/$H$6 -> 0.8421052632
A31: DGST BEAVER WYNIK | C31: =IF(NOT(B31=""),IF(VLOOKUP(B31,DaneZawodnikow!$C$2:$N$81,12,FALSE)<>0,VLOOKUP(B31,DaneZawodnikow!$C$2:$N$81,12,FALSE),""),"") ->  | E31: =SUM(LARGE(E26:E30,{1;2;3})) -> 2.778195489
B32: =IF(NOT(A32=""),IF(VLOOKUP(A32,DaneZawodnikow!$C$2:$N$81,12,FALSE)<>0,VLOOKUP(A32,DaneZawodnikow!$C$2:$N$81,12,FALSE),""),"") ->  | C32: =IF(B32="HFT 1",VLOOKUP(A32,'HFT1'!$B$9:$E$41,4,FALSE),IF(B32="HFT 2",VLOOKUP(A32,'HFT2'!$B$9:$E$16,4,FALSE),IF(B32="FT",VLOOKUP(A32,FT!$B$6:$E$21,4,FALSE),""))) -> 
B33: =IF(NOT(A33=""),IF(VLOOKUP(A33,DaneZawodnikow!$C$2:$N$81,12,FALSE)<>0,VLOOKUP(A33,DaneZawodnikow!$C$2:$N$81,12,FALSE),""),"") ->  | C33: =IF(B33="HFT 1",VLOOKUP(A33,'HFT1'!$B$9:$E$41,4,FALSE),IF(B33="HFT 2",VLOOKUP(A33,'HFT2'!$B$9:$E$16,4,FALSE),IF(B33="FT",VLOOKUP(A33,FT!$B$6:$E$21,4,FALSE),""))) -> 
B34: =IF(NOT(A34=""),IF(VLOOKUP(A34,DaneZawodnikow!$C$2:$N$81,12,FALSE)<>0,VLOOKUP(A34,DaneZawodnikow!$C$2:$N$81,12,FALSE),""),"") ->  | C34: =IF(B34="HFT 1",VLOOKUP(A34,'HFT1'!$B$9:$E$41,4,FALSE),IF(B34="HFT 2",VLOOKUP(A34,'HFT2'!$B$9:$E$16,4,FALSE),IF(B34="FT",VLOOKUP(A34,FT!$B$6:$E$21,4,FALSE),""))) -> 
B35: =IF(NOT(A35=""),IF(VLOOKUP(A35,DaneZawodnikow!$C$2:$N$81,12,FALSE)<>0,VLOOKUP(A35,DaneZawodnikow!$C$2:$N$81,12,FALSE),""),"") ->  | C35: =IF(B35="HFT 1",VLOOKUP(A35,'HFT1'!$B$9:$E$41,4,FALSE),IF(B35="HFT 2",VLOOKUP(A35,'HFT2'!$B$9:$E$16,4,FALSE),IF(B35="FT",VLOOKUP(A35,FT!$B$6:$E$21,4,FALSE),""))) -> 
B36: =IF(NOT(A36=""),IF(VLOOKUP(A36,DaneZawodnikow!$C$2:$N$81,12,FALSE)<>0,VLOOKUP(A36,DaneZawodnikow!$C$2:$N$81,12,FALSE),""),"") ->  | C36: =IF(B36="HFT 1",VLOOKUP(A36,'HFT1'!$B$9:$E$41,4,FALSE),IF(B36="HFT 2",VLOOKUP(A36,'HFT2'!$B$9:$E$16,4,FALSE),IF(B36="FT",VLOOKUP(A36,FT!$B$6:$E$21,4,FALSE),""))) -> 
B37: =IF(NOT(A37=""),IF(VLOOKUP(A37,DaneZawodnikow!$C$2:$N$81,12,FALSE)<>0,VLOOKUP(A37,DaneZawodnikow!$C$2:$N$81,12,FALSE),""),"") ->  | C37: =IF(B37="HFT 1",VLOOKUP(A37,'HFT1'!$B$9:$E$41,4,FALSE),IF(B37="HFT 2",VLOOKUP(A37,'HFT2'!$B$9:$E$16,4,FALSE),IF(B37="FT",VLOOKUP(A37,FT!$B$6:$E$21,4,FALSE),""))) -> 
B38: =IF(NOT(A38=""),IF(VLOOKUP(A38,DaneZawodnikow!$C$2:$N$81,12,FALSE)<>0,VLOOKUP(A38,DaneZawodnikow!$C$2:$N$81,12,FALSE),""),"") ->  | C38: =IF(B38="HFT 1",VLOOKUP(A38,'HFT1'!$B$9:$E$41,4,FALSE),IF(B38="HFT 2",VLOOKUP(A38,'HFT2'!$B$9:$E$16,4,FALSE),IF(B38="FT",VLOOKUP(A38,FT!$B$6:$E$21,4,FALSE),""))) -> 
B39: =IF(NOT(A39=""),IF(VLOOKUP(A39,DaneZawodnikow!$C$2:$N$81,12,FALSE)<>0,VLOOKUP(A39,DaneZawodnikow!$C$2:$N$81,12,FALSE),""),"") ->  | C39: =IF(B39="HFT 1",VLOOKUP(A39,'HFT1'!$B$9:$E$41,4,FALSE),IF(B39="HFT 2",VLOOKUP(A39,'HFT2'!$B$9:$E$16,4,FALSE),IF(B39="FT",VLOOKUP(A39,FT!$B$6:$E$21,4,FALSE),""))) -> 
B40: =IF(NOT(A40=""),IF(VLOOKUP(A40,DaneZawodnikow!$C$2:$N$81,12,FALSE)<>0,VLOOKUP(A40,DaneZawodnikow!$C$2:$N$81,12,FALSE),""),"") ->  | C40: =IF(B40="HFT 1",VLOOKUP(A40,'HFT1'!$B$9:$E$41,4,FALSE),IF(B40="HFT 2",VLOOKUP(A40,'HFT2'!$B$9:$E$16,4,FALSE),IF(B40="FT",VLOOKUP(A40,FT!$B$6:$E$21,4,FALSE),""))) -> 
B41: =IF(NOT(A41=""),IF(VLOOKUP(A41,DaneZawodnikow!$C$2:$N$81,12,FALSE)<>0,VLOOKUP(A41,DaneZawodnikow!$C$2:$N$81,12,FALSE),""),"") ->  | C41: =IF(B41="HFT 1",VLOOKUP(A41,'HFT1'!$B$9:$E$41,4,FALSE),IF(B41="HFT 2",VLOOKUP(A41,'HFT2'!$B$9:$E$16,4,FALSE),IF(B41="FT",VLOOKUP(A41,FT!$B$6:$E$21,4,FALSE),""))) -> 
B42: =IF(NOT(A42=""),IF(VLOOKUP(A42,DaneZawodnikow!$C$2:$N$81,12,FALSE)<>0,VLOOKUP(A42,DaneZawodnikow!$C$2:$N$81,12,FALSE),""),"") ->  | C42: =IF(B42="HFT 1",VLOOKUP(A42,'HFT1'!$B$9:$E$41,4,FALSE),IF(B42="HFT 2",VLOOKUP(A42,'HFT2'!$B$9:$E$16,4,FALSE),IF(B42="FT",VLOOKUP(A42,FT!$B$6:$E$21,4,FALSE),""))) -> 
B43: =IF(NOT(A43=""),IF(VLOOKUP(A43,DaneZawodnikow!$C$2:$N$81,12,FALSE)<>0,VLOOKUP(A43,DaneZawodnikow!$C$2:$N$81,12,FALSE),""),"") ->  | C43: =IF(B43="HFT 1",VLOOKUP(A43,'HFT1'!$B$9:$E$41,4,FALSE),IF(B43="HFT 2",VLOOKUP(A43,'HFT2'!$B$9:$E$16,4,FALSE),IF(B43="FT",VLOOKUP(A43,FT!$B$6:$E$21,4,FALSE),""))) -> 
B44: =IF(NOT(A44=""),IF(VLOOKUP(A44,DaneZawodnikow!$C$2:$N$81,12,FALSE)<>0,VLOOKUP(A44,DaneZawodnikow!$C$2:$N$81,12,FALSE),""),"") ->  | C44: =IF(B44="HFT 1",VLOOKUP(A44,'HFT1'!$B$9:$E$41,4,FALSE),IF(B44="HFT 2",VLOOKUP(A44,'HFT2'!$B$9:$E$16,4,FALSE),IF(B44="FT",VLOOKUP(A44,FT!$B$6:$E$21,4,FALSE),""))) -> 

Sheet Sylwetki Karabin
A1: Celów: | B1: 40
D2: % trafień | G2: =(COUNTIF(G9:G74,1)/COUNTA(G9:G74))*100 -> 45 | H2: =(COUNTIF(H9:H74,1)/COUNTA(H9:H74))*100 -> 40 | I2: 45 | J2: 40 | K2: 55 | L2: 35 | M2: 60 | N2: 50 | O2: 60 | P2: 45 | Q2: 25 | R2: 30 | S2: 40 | T2: 55 | U2: 40 | V2: 30 | W2: 45 | X2: 45 | Y2: 55 | Z2: 50 | AA2: 55 | AB2: 50 | AC2: 60 | AD2: 50 | AE2: 65 | AF2: 80 | AG2: 50 | AH2: 40 | AI2: 75 | AJ2: 65 | AK2: 35 | AL2: 35 | AM2: 20 | AN2: 40 | AO2: 40 | AP2: 50 | AQ2: 50 | AR2: 45 | AS2: 50 | AT2: 60
D3: % pudło | G3: =(COUNTIF(G9:G74,0)/COUNTA(G9:G74))*100 -> 55 | H3: =(COUNTIF(H9:H74,0)/COUNTA(H9:H74))*100 -> 60 | I3: 55 | J3: 60 | K3: 45 | L3: 65 | M3: 40 | N3: 50 | O3: 40 | P3: 55 | Q3: 75 | R3: 70 | S3: 60 | T3: 45 | U3: 60 | V3: 70 | W3: 55 | X3: 55 | Y3: 45 | Z3: 50 | AA3: 45 | AB3: 50 | AC3: 40 | AD3: 50 | AE3: 35 | AF3: 20 | AG3: 50 | AH3: 60 | AI3: 25 | AJ3: 35 | AK3: 65 | AL3: 65 | AM3: 80 | AN3: 60 | AO3: 60 | AP3: 50 | AQ3: 50 | AR3: 55 | AS3: 50 | AT3: 40
G4: Przejście pierwsze | AA4: Przejście drugie
F5: nr | G5: 1 | H5: 2 | I5: 3 | J5: 4 | K5: 5 | L5: 6 | M5: 7 | N5: 8 | O5: 9 | P5: 10 | Q5: 11 | R5: 12 | S5: 13 | T5: 14 | U5: 15 | V5: 16 | W5: 17 | X5: 18 | Y5: 19 | Z5: 20 | AA5: 1 | AB5: 2 | AC5: 3 | AD5: 4 | AE5: 5 | AF5: 6 | AG5: 7 | AH5: 8 | AI5: 9 | AJ5: 10 | AK5: 11 | AL5: 12 | AM5: 13 | AN5: 14 | AO5: 15 | AP5: 16 | AQ5: 17 | AR5: 18 | AS5: 19 | AT5: 20 | AU5: D
A6: Data: | C6: 43611 | F6: sylwetka | G6: kurczak | L6: dzik | Q6: indyk | V6: muflon | AA6: kurczak | AF6: dzik | AK6: indyk | AP6: muflon
A7: Kategoria: | C7: Sylwetki Karabin
A8: Miejsce | B8: Imię, nazwisko | C8: Nick | D8: Suma punktów | E8: % do zwycięzcy | F8: postawa/ uwagi
A9: 1 | B9: Wietrzykowski Krzysztof | C9: =IF(NOT(B9=""),IF(VLOOKUP(B9,Tabela1[[Nick]:[Imię + Nazwisko]],2,FALSE)<>0,VLOOKUP(B9,Tabela1[[Nick]:[Imię + Nazwisko]],2,FALSE),""),"") -> Krzysztof W. | D9: =SUM(G9:AT9) -> 28 | E9: =IF(A9=1,100,IF($D$9<>0,D9/$D$9*100,"")) -> 100 | F9: =IF(B9<>"",IF(VLOOKUP(B9,Tabela1[[#All],[Imię + Nazwisko]:[K]],11,FALSE)=1,"K","")&IF(VLOOKUP(B9,Tabela1[[#All],[Imię + Nazwisko]:[K]],10,FALSE)=1,"W",""),"") ->  | G9: 1 | H9: 1 | I9: 1 | J9: 0 | K9: 1 | L9: 0 | M9: 1 | N9: 1 | O9: 1 | P9: 1 | Q9: 1 | R9: 0 | S9: 1 | T9: 0 | U9: 1 | V9: 1 | W9: 1 | X9: 1 | Y9: 0 | Z9: 0 | AA9: 1 | AB9: 1 | AC9: 1 | AD9: 1 | AE9: 1 | AF9: 1 | AG9: 1 | AH9: 1 | AI9: 1 | AJ9: 0 | AK9: 0 | AL9: 1 | AM9: 1 | AN9: 1 | AO9: 0 | AP9: 1 | AQ9: 0 | AR9: 0 | AS9: 0 | AT9: 1
A10: 2 | B10: Cielepak Tomasz | C10: =IF(NOT(B10=""),IF(VLOOKUP(B10,Tabela1[[Nick]:[Imię + Nazwisko]],2,FALSE)<>0,VLOOKUP(B10,Tabela1[[Nick]:[Imię + Nazwisko]],2,FALSE),""),"") -> MASZOT | D10: 26 | E10: 92.85714286 | F10: =IF(B10<>"",IF(VLOOKUP(B10,Tabela1[[#All],[Imię + Nazwisko]:[K]],11,FALSE)=1,"K","")&IF(VLOOKUP(B10,Tabela1[[#All],[Imię + Nazwisko]:[K]],10,FALSE)=1,"W",""),"") ->  | G10: 0 | H10: 1 | I10: 1 | J10: 1 | K10: 1 | L10: 0 | M10: 1 | N10: 1 | O10: 1 | P10: 1 | Q10: 0 | R10: 0 | S10: 0 | T10: 1 | U10: 0 | V10: 1 | W10: 1 | X10: 1 | Y10: 1 | Z10: 1 | AA10: 1 | AB10: 1 | AC10: 1 | AD10: 0 | AE10: 1 | AF10: 1 | AG10: 0 | AH10: 1 | AI10: 0 | AJ10: 1 | AK10: 1 | AL10: 1 | AM10: 0 | AN10: 0 | AO10: 1 | AP10: 0 | AQ10: 1 | AR10: 0 | AS10: 0 | AT10: 1
A11: 3 | B11: Wróbel Robert | C11: =IF(NOT(B11=""),IF(VLOOKUP(B11,Tabela1[[Nick]:[Imię + Nazwisko]],2,FALSE)<>0,VLOOKUP(B11,Tabela1[[Nick]:[Imię + Nazwisko]],2,FALSE),""),"") -> Photomaker | D11: 25 | E11: 89.28571429 | F11: =IF(B11<>"",IF(VLOOKUP(B11,Tabela1[[#All],[Imię + Nazwisko]:[K]],11,FALSE)=1,"K","")&IF(VLOOKUP(B11,Tabela1[[#All],[Imię + Nazwisko]:[K]],10,FALSE)=1,"W",""),"") ->  | G11: 1 | H11: 1 | I11: 1 | J11: 0 | K11: 1 | L11: 0 | M11: 1 | N11: 1 | O11: 1 | P11: 0 | Q11: 0 | R11: 0 | S11: 0 | T11: 0 | U11: 0 | V11: 1 | W11: 1 | X11: 0 | Y11: 1 | Z11: 1 | AA11: 1 | AB11: 1 | AC11: 1 | AD11: 1 | AE11: 1 | AF11: 0 | AG11: 1 | AH11: 0 | AI11: 1 | AJ11: 1 | AK11: 0 | AL11: 1 | AM11: 0 | AN11: 0 | AO11: 1 | AP11: 1 | AQ11: 0 | AR11: 1 | AS11: 1 | AT11: 1
A12: 4 | B12: Szałkowski Krzysztof | C12: =IF(NOT(B12=""),IF(VLOOKUP(B12,Tabela1[[Nick]:[Imię + Nazwisko]],2,FALSE)<>0,VLOOKUP(B12,Tabela1[[Nick]:[Imię + Nazwisko]],2,FALSE),""),"") -> Kris | D12: 23 | E12: 82.14285714 | F12: =IF(B12<>"",IF(VLOOKUP(B12,Tabela1[[#All],[Imię + Nazwisko]:[K]],11,FALSE)=1,"K","")&IF(VLOOKUP(B12,Tabela1[[#All],[Imię + Nazwisko]:[K]],10,FALSE)=1,"W",""),"") ->  | G12: 1 | H12: 1 | I12: 1 | J12: 1 | K12: 0 | L12: 1 | M12: 0 | N12: 0 | O12: 0 | P12: 0 | Q12: 0 | R12: 1 | S12: 0 | T12: 1 | U12: 1 | V12: 1 | W12: 0 | X12: 1 | Y12: 1 | Z12: 1 | AA12: 1 | AB12: 0 | AC12: 0 | AD12: 1 | AE12: 0 | AF12: 1 | AG12: 0 | AH12: 1 | AI12: 1 | AJ12: 1 | AK12: 0 | AL12: 1 | AM12: 0 | AN12: 1 | AO12: 0 | AP12: 1 | AQ12: 0 | AR12: 1 | AS12: 0 | AT12: 1
A13: 5 | B13: Król Andrzej | C13: =IF(NOT(B13=""),IF(VLOOKUP(B13,Tabela1[[Nick]:[Imię + Nazwisko]],2,FALSE)<>0,VLOOKUP(B13,Tabela1[[Nick]:[Imię + Nazwisko]],2,FALSE),""),"") -> kombatant | D13: 23 | E13: 82.14285714 | F13: =IF(B13<>"",IF(VLOOKUP(B13,Tabela1[[#All],[Imię + Nazwisko]:[K]],11,FALSE)=1,"K","")&IF(VLOOKUP(B13,Tabela1[[#All],[Imię + Nazwisko]:[K]],10,FALSE)=1,"W",""),"") -> W | G13: 0 | H13: 1 | I13: 1 | J13: 1 | K13: 1 | L13: 1 | M13: 1 | N13: 0 | O13: 1 | P13: 1 | Q13: 0 | R13: 0 | S13: 0 | T13: 0 | U13: 0 | V13: 0 | W13: 0 | X13: 0 | Y13: 0 | Z13: 1 | AA13: 0 | AB13: 1 | AC13: 1 | AD13: 1 | AE13: 1 | AF13: 1 | AG13: 0 | AH13: 0 | AI13: 1 | AJ13: 1 | AK13: 1 | AL13: 0 | AM13: 0 | AN13: 1 | AO13: 0 | AP13: 1 | AQ13: 1 | AR13: 1 | AS13: 1 | AT13: 1
A14: 6 | B14: Słowik Piotr | C14: =IF(NOT(B14=""),IF(VLOOKUP(B14,Tabela1[[Nick]:[Imię + Nazwisko]],2,FALSE)<>0,VLOOKUP(B14,Tabela1[[Nick]:[Imię + Nazwisko]],2,FALSE),""),"") -> Włamywacz | D14: 21 | E14: 75 | F14: =IF(B14<>"",IF(VLOOKUP(B14,Tabela1[[#All],[Imię + Nazwisko]:[K]],11,FALSE)=1,"K","")&IF(VLOOKUP(B14,Tabela1[[#All],[Imię + Nazwisko]:[K]],10,FALSE)=1,"W",""),"") ->  | G14: 1 | H14: 1 | I14: 0 | J14: 1 | K14: 1 | L14: 0 | M14: 0 | N14: 1 | O14: 0 | P14: 0 | Q14: 0 | R14: 1 | S14: 0 | T14: 1 | U14: 0 | V14: 0 | W14: 1 | X14: 0 | Y14: 1 | Z14: 0 | AA14: 1 | AB14: 1 | AC14: 1 | AD14: 1 | AE14: 0 | AF14: 1 | AG14: 1 | AH14: 1 | AI14: 1 | AJ14: 1 | AK14: 0 | AL14: 0 | AM14: 0 | AN14: 1 | AO14: 0 | AP14: 1 | AQ14: 0 | AR14: 0 | AS14: 1 | AT14: 0
A15: 7 | B15: Wolski Robert | C15: =IF(NOT(B15=""),IF(VLOOKUP(B15,Tabela1[[Nick]:[Imię + Nazwisko]],2,FALSE)<>0,VLOOKUP(B15,Tabela1[[Nick]:[Imię + Nazwisko]],2,FALSE),""),"") -> Wola | D15: 21 | E15: 75 | F15: =IF(B15<>"",IF(VLOOKUP(B15,Tabela1[[#All],[Imię + Nazwisko]:[K]],11,FALSE)=1,"K","")&IF(VLOOKUP(B15,Tabela1[[#All],[Imię + Nazwisko]:[K]],10,FALSE)=1,"W",""),"") ->  | G15: 1 | H15: 0 | I15: 1 | J15: 0 | K15: 1 | L15: 1 | M15: 1 | N15: 1 | O15: 0 | P15: 0 | Q15: 1 | R15: 0 | S15: 1 | T15: 1 | U15: 1 | V15: 0 | W15: 1 | X15: 0 | Y15: 0 | Z15: 0 | AA15: 0 | AB15: 1 | AC15: 0 | AD15: 0 | AE15: 0 | AF15: 1 | AG15: 0 | AH15: 0 | AI15: 1 | AJ15: 1 | AK15: 1 | AL15: 0 | AM15: 0 | AN15: 1 | AO15: 0 | AP15: 0 | AQ15: 1 | AR15: 1 | AS15: 1 | AT15: 1
A16: 8 | B16: Rose Piotr | C16: =IF(NOT(B16=""),IF(VLOOKUP(B16,Tabela1[[Nick]:[Imię + Nazwisko]],2,FALSE)<>0,VLOOKUP(B16,Tabela1[[Nick]:[Imię + Nazwisko]],2,FALSE),""),"") -> box555 | D16: 21 | E16: 75 | F16: =IF(B16<>"",IF(VLOOKUP(B16,Tabela1[[#All],[Imię + Nazwisko]:[K]],11,FALSE)=1,"K","")&IF(VLOOKUP(B16,Tabela1[[#All],[Imię + Nazwisko]:[K]],10,FALSE)=1,"W",""),"") ->  | G16: 0 | H16: 0 | I16: 0 | J16: 0 | K16: 0 | L16: 0 | M16: 0 | N16: 0 | O16: 1 | P16: 1 | Q16: 0 | R16: 0 | S16: 0 | T16: 1 | U16: 0 | V16: 0 | W16: 1 | X16: 1 | Y16: 1 | Z16: 1 | AA16: 0 | AB16: 0 | AC16: 1 | AD16: 1 | AE16: 1 | AF16: 1 | AG16: 1 | AH16: 0 | AI16: 1 | AJ16: 0 | AK16: 1 | AL16: 1 | AM16: 0 | AN16: 0 | AO16: 1 | AP16: 1 | AQ16: 1 | AR16: 1 | AS16: 1 | AT16: 1
A17: 9 | B17: Wieloszyńska Aleksandra | C17: =IF(NOT(B17=""),IF(VLOOKUP(B17,Tabela1[[Nick]:[Imię + Nazwisko]],2,FALSE)<>0,VLOOKUP(B17,Tabela1[[Nick]:[Imię + Nazwisko]],2,FALSE),""),"") -> `=Ola= | D17: 20 | E17: 71.42857143 | F17: =IF(B17<>"",IF(VLOOKUP(B17,Tabela1[[#All],[Imię + Nazwisko]:[K]],11,FALSE)=1,"K","")&IF(VLOOKUP(B17,Tabela1[[#All],[Imię + Nazwisko]:[K]],10,FALSE)=1,"W",""),"") -> K | G17: 0 | H17: 0 | I17: 0 | J17: 1 | K17: 0 | L17: 1 | M17: 1 | N17: 0 | O17: 1 | P17: 1 | Q17: 0 | R17: 1 | S17: 0 | T17: 0 | U17: 1 | V17: 0 | W17: 1 | X17: 0 | Y17: 1 | Z17: 1 | AA17: 0 | AB17: 0 | AC17: 0 | AD17: 0 | AE17: 1 | AF17: 1 | AG17: 1 | AH17: 0 | AI17: 1 | AJ17: 1 | AK17: 0 | AL17: 0 | AM17: 0 | AN17: 1 | AO17: 0 | AP17: 1 | AQ17: 1 | AR17: 1 | AS17: 1 | AT17: 0
A18: 10 | B18: Rybarczyk Artur | C18: =IF(NOT(B18=""),IF(VLOOKUP(B18,Tabela1[[Nick]:[Imię + Nazwisko]],2,FALSE)<>0,VLOOKUP(B18,Tabela1[[Nick]:[Imię + Nazwisko]],2,FALSE),""),"") -> ArturR | D18: 20 | E18: 71.42857143 | F18: =IF(B18<>"",IF(VLOOKUP(B18,Tabela1[[#All],[Imię + Nazwisko]:[K]],11,FALSE)=1,"K","")&IF(VLOOKUP(B18,Tabela1[[#All],[Imię + Nazwisko]:[K]],10,FALSE)=1,"W",""),"") ->  | G18: 1 | H18: 0 | I18: 0 | J18: 0 | K18: 0 | L18: 1 | M18: 0 | N18: 1 | O18: 1 | P18: 0 | Q18: 1 | R18: 0 | S18: 0 | T18: 0 | U18: 0 | V18: 1 | W18: 0 | X18: 1 | Y18: 0 | Z18: 1 | AA18: 1 | AB18: 1 | AC18: 0 | AD18: 0 | AE18: 1 | AF18: 1 | AG18: 0 | AH18: 1 | AI18: 1 | AJ18: 0 | AK18: 1 | AL18: 0 | AM18: 1 | AN18: 0 | AO18: 1 | AP18: 1 | AQ18: 0 | AR18: 1 | AS18: 1 | AT18: 0
A19: 11 | B19: Tałaj Szymon | C19: =IF(NOT(B19=""),IF(VLOOKUP(B19,Tabela1[[Nick]:[Imię + Nazwisko]],2,FALSE)<>0,VLOOKUP(B19,Tabela1[[Nick]:[Imię + Nazwisko]],2,FALSE),""),"") -> slowroots | D19: 19 | E19: 67.85714286 | F19: =IF(B19<>"",IF(VLOOKUP(B19,Tabela1[[#All],[Imię + Nazwisko]:[K]],11,FALSE)=1,"K","")&IF(VLOOKUP(B19,Tabela1[[#All],[Imię + Nazwisko]:[K]],10,FALSE)=1,"W",""),"") ->  | G19: 1 | H19: 0 | I19: 1 | J19: 0 | K19: 0 | L19: 1 | M19: 1 | N19: 1 | O19: 0 | P19: 0 | Q19: 1 | R19: 0 | S19: 1 | T19: 1 | U19: 1 | V19: 0 | W19: 1 | X19: 1 | Y19: 0 | Z19: 1 | AA19: 0 | AB19: 0 | AC19: 1 | AD19: 0 | AE19: 0 | AF19: 0 | AG19: 0 | AH19: 0 | AI19: 1 | AJ19: 1 | AK19: 0 | AL19: 0 | AM19: 1 | AN19: 0 | AO19: 0 | AP19: 1 | AQ19: 0 | AR19: 1 | AS19: 0 | AT19: 1
A20: 12 | B20: Remiszewski Piotr | C20: =IF(NOT(B20=""),IF(VLOOKUP(B20,Tabela1[[Nick]:[Imię + Nazwisko]],2,FALSE)<>0,VLOOKUP(B20,Tabela1[[Nick]:[Imię + Nazwisko]],2,FALSE),""),"") -> red5555 | D20: 19 | E20: 67.85714286 | F20: =IF(B20<>"",IF(VLOOKUP(B20,Tabela1[[#All],[Imię + Nazwisko]:[K]],11,FALSE)=1,"K","")&IF(VLOOKUP(B20,Tabela1[[#All],[Imię + Nazwisko]:[K]],10,FALSE)=1,"W",""),"") ->  | G20: 1 | H20: 0 | I20: 0 | J20: 0 | K20: 0 | L20: 1 | M20: 0 | N20: 1 | O20: 1 | P20: 1 | Q20: 0 | R20: 1 | S20: 1 | T20: 1 | U20: 1 | V20: 0 | W20: 0 | X20: 1 | Y20: 1 | Z20: 0 | AA20: 1 | AB20: 1 | AC20: 1 | AD20: 1 | AE20: 0 | AF20: 1 | AG20: 1 | AH20: 0 | AI20: 0 | AJ20: 0 | AK20: 1 | AL20: 0 | AM20: 0 | AN20: 0 | AO20: 0 | AP20: 0 | AQ20: 0 | AR20: 0 | AS20: 0 | AT20: 1
A21: 13 | B21: Korpalski Artur | C21: =IF(NOT(B21=""),IF(VLOOKUP(B21,Tabela1[[Nick]:[Imię + Nazwisko]],2,FALSE)<>0,VLOOKUP(B21,Tabela1[[Nick]:[Imię + Nazwisko]],2,FALSE),""),"") -> Artkor | D21: 18 | E21: 64.28571429 | F21: =IF(B21<>"",IF(VLOOKUP(B21,Tabela1[[#All],[Imię + Nazwisko]:[K]],11,FALSE)=1,"K","")&IF(VLOOKUP(B21,Tabela1[[#All],[Imię + Nazwisko]:[K]],10,FALSE)=1,"W",""),"") ->  | G21: 0 | H21: 0 | I21: 0 | J21: 1 | K21: 1 | L21: 0 | M21: 1 | N21: 0 | O21: 1 | P21: 0 | Q21: 0 | R21: 0 | S21: 1 | T21: 1 | U21: 0 | V21: 1 | W21: 0 | X21: 0 | Y21: 0 | Z21: 1 | AA21: 1 | AB21: 0 | AC21: 1 | AD21: 0 | AE21: 1 | AF21: 1 | AG21: 0 | AH21: 0 | AI21: 1 | AJ21: 0 | AK21: 0 | AL21: 1 | AM21: 0 | AN21: 1 | AO21: 1 | AP21: 0 | AQ21: 1 | AR21: 0 | AS21: 1 | AT21: 0
A22: 14 | B22: Gacek Tomasz | C22: =IF(NOT(B22=""),IF(VLOOKUP(B22,Tabela1[[Nick]:[Imię + Nazwisko]],2,FALSE)<>0,VLOOKUP(B22,Tabela1[[Nick]:[Imię + Nazwisko]],2,FALSE),""),"") -> WuDe | D22: 17 | E22: 60.71428571 | F22: =IF(B22<>"",IF(VLOOKUP(B22,Tabela1[[#All],[Imię + Nazwisko]:[K]],11,FALSE)=1,"K","")&IF(VLOOKUP(B22,Tabela1[[#All],[Imię + Nazwisko]:[K]],10,FALSE)=1,"W",""),"") ->  | G22: 0 | H22: 0 | I22: 1 | J22: 1 | K22: 1 | L22: 0 | M22: 0 | N22: 0 | O22: 1 | P22: 1 | Q22: 0 | R22: 0 | S22: 1 | T22: 0 | U22: 0 | V22: 0 | W22: 0 | X22: 1 | Y22: 1 | Z22: 0 | AA22: 0 | AB22: 0 | AC22: 1 | AD22: 0 | AE22: 1 | AF22: 1 | AG22: 1 | AH22: 0 | AI22: 1 | AJ22: 0 | AK22: 0 | AL22: 0 | AM22: 1 | AN22: 0 | AO22: 1 | AP22: 0 | AQ22: 1 | AR22: 0 | AS22: 0 | AT22: 1
A23: 15 | B23: Krempczyński Marek | C23: =IF(NOT(B23=""),IF(VLOOKUP(B23,Tabela1[[Nick]:[Imię + Nazwisko]],2,FALSE)<>0,VLOOKUP(B23,Tabela1[[Nick]:[Imię + Nazwisko]],2,FALSE),""),"") -> Łysy | D23: 16 | E23: 57.14285714 | F23: =IF(B23<>"",IF(VLOOKUP(B23,Tabela1[[#All],[Imię + Nazwisko]:[K]],11,FALSE)=1,"K","")&IF(VLOOKUP(B23,Tabela1[[#All],[Imię + Nazwisko]:[K]],10,FALSE)=1,"W",""),"") ->  | G23: 1 | H23: 1 | I23: 1 | J23: 1 | K23: 1 | L23: 0 | M23: 1 | N23: 0 | O23: 1 | P23: 0 | Q23: 1 | R23: 1 | S23: 0 | T23: 1 | U23: 0 | V23: 0 | W23: 0 | X23: 1 | Y23: 1 | Z23: 0 | AA23: 1 | AB23: 0 | AC23: 0 | AD23: 0 | AE23: 1 | AF23: 1 | AG23: 0 | AH23: 0 | AI23: 0 | AJ23: 1 | AK23: 0 | AL23: 0 | AM23: 0 | AN23: 0 | AO23: 0 | AP23: 0 | AQ23: 0 | AR23: 0 | AS23: 0 | AT23: 0
A24: 16 | B24: Kaczmarek Mariusz | C24: =IF(NOT(B24=""),IF(VLOOKUP(B24,Tabela1[[Nick]:[Imię + Nazwisko]],2,FALSE)<>0,VLOOKUP(B24,Tabela1[[Nick]:[Imię + Nazwisko]],2,FALSE),""),"") -> Mario_64 | D24: 15 | E24: 53.57142857 | F24: =IF(B24<>"",IF(VLOOKUP(B24,Tabela1[[#All],[Imię + Nazwisko]:[K]],11,FALSE)=1,"K","")&IF(VLOOKUP(B24,Tabela1[[#All],[Imię + Nazwisko]:[K]],10,FALSE)=1,"W",""),"") ->  | G24: 0 | H24: 0 | I24: 0 | J24: 0 | K24: 1 | L24: 0 | M24: 1 | N24: 0 | O24: 0 | P24: 0 | Q24: 0 | R24: 0 | S24: 0 | T24: 1 | U24: 0 | V24: 0 | W24: 1 | X24: 0 | Y24: 1 | Z24: 0 | AA24: 1 | AB24: 0 | AC24: 0 | AD24: 1 | AE24: 0 | AF24: 1 | AG24: 0 | AH24: 1 | AI24: 1 | AJ24: 0 | AK24: 0 | AL24: 0 | AM24: 0 | AN24: 0 | AO24: 1 | AP24: 1 | AQ24: 1 | AR24: 0 | AS24: 1 | AT24: 1
A25: 17 | B25: Sadowski Eugeniusz | C25: =IF(NOT(B25=""),IF(VLOOKUP(B25,Tabela1[[Nick]:[Imię + Nazwisko]],2,FALSE)<>0,VLOOKUP(B25,Tabela1[[Nick]:[Imię + Nazwisko]],2,FALSE),""),"") -> eugsad | D25: 15 | E25: 53.57142857 | F25: =IF(B25<>"",IF(VLOOKUP(B25,Tabela1[[#All],[Imię + Nazwisko]:[K]],11,FALSE)=1,"K","")&IF(VLOOKUP(B25,Tabela1[[#All],[Imię + Nazwisko]:[K]],10,FALSE)=1,"W",""),"") -> W | G25: 0 | H25: 1 | I25: 0 | J25: 0 | K25: 0 | L25: 0 | M25: 1 | N25: 0 | O25: 1 | P25: 0 | Q25: 0 | R25: 0 | S25: 1 | T25: 0 | U25: 0 | V25: 0 | W25: 0 | X25: 0 | Y25: 0 | Z25: 0 | AA25: 1 | AB25: 0 | AC25: 1 | AD25: 0 | AE25: 1 | AF25: 1 | AG25: 1 | AH25: 1 | AI25: 1 | AJ25: 1 | AK25: 0 | AL25: 1 | AM25: 0 | AN25: 0 | AO25: 1 | AP25: 0 | AQ25: 1 | AR25: 0 | AS25: 0 | AT25: 0
A26: 18 | B26: Maciejewicz Mirosław | C26: =IF(NOT(B26=""),IF(VLOOKUP(B26,Tabela1[[Nick]:[Imię + Nazwisko]],2,FALSE)<>0,VLOOKUP(B26,Tabela1[[Nick]:[Imię + Nazwisko]],2,FALSE),""),"") -> Krauser | D26: 13 | E26: 46.42857143 | F26: =IF(B26<>"",IF(VLOOKUP(B26,Tabela1[[#All],[Imię + Nazwisko]:[K]],11,FALSE)=1,"K","")&IF(VLOOKUP(B26,Tabela1[[#All],[Imię + Nazwisko]:[K]],10,FALSE)=1,"W",""),"") ->  | G26: 0 | H26: 0 | I26: 0 | J26: 0 | K26: 0 | L26: 0 | M26: 0 | N26: 0 | O26: 0 | P26: 1 | Q26: 0 | R26: 0 | S26: 0 | T26: 1 | U26: 1 | V26: 0 | W26: 0 | X26: 0 | Y26: 1 | Z26: 1 | AA26: 0 | AB26: 1 | AC26: 0 | AD26: 1 | AE26: 1 | AF26: 0 | AG26: 1 | AH26: 1 | AI26: 1 | AJ26: 1 | AK26: 0 | AL26: 0 | AM26: 0 | AN26: 0 | AO26: 0 | AP26: 0 | AQ26: 0 | AR26: 0 | AS26: 0 | AT26: 1
A27: 19 | B27: Lisowski Grzegorz | C27: =IF(NOT(B27=""),IF(VLOOKUP(B27,Tabela1[[Nick]:[Imię + Nazwisko]],2,FALSE)<>0,VLOOKUP(B27,Tabela1[[Nick]:[Imię + Nazwisko]],2,FALSE),""),"") -> Lisek | D27: 12 | E27: 42.85714286 | F27: =IF(B27<>"",IF(VLOOKUP(B27,Tabela1[[#All],[Imię + Nazwisko]:[K]],11,FALSE)=1,"K","")&IF(VLOOKUP(B27,Tabela1[[#All],[Imię + Nazwisko]:[K]],10,FALSE)=1,"W",""),"") ->  | G27: 0 | H27: 0 | I27: 0 | J27: 0 | K27: 1 | L27: 0 | M27: 0 | N27: 1 | O27: 0 | P27: 0 | Q27: 0 | R27: 1 | S27: 0 | T27: 0 | U27: 1 | V27: 0 | W27: 0 | X27: 0 | Y27: 0 | Z27: 0 | AA27: 0 | AB27: 0 | AC27: 0 | AD27: 1 | AE27: 1 | AF27: 1 | AG27: 1 | AH27: 0 | AI27: 0 | AJ27: 1 | AK27: 1 | AL27: 0 | AM27: 0 | AN27: 1 | AO27: 0 | AP27: 0 | AQ27: 0 | AR27: 0 | AS27: 1 | AT27: 0
A28: 20 | B28: Śmigaj Łukasz | C28: =IF(NOT(B28=""),IF(VLOOKUP(B28,Tabela1[[Nick]:[Imię + Nazwisko]],2,FALSE)<>0,VLOOKUP(B28,Tabela1[[Nick]:[Imię + Nazwisko]],2,FALSE),""),"") -> Łukasz | D28: 9 | E28: 32.14285714 | F28: =IF(B28<>"",IF(VLOOKUP(B28,Tabela1[[#All],[Imię + Nazwisko]:[K]],11,FALSE)=1,"K","")&IF(VLOOKUP(B28,Tabela1[[#All],[Imię + Nazwisko]:[K]],10,FALSE)=1,"W",""),"") ->  | G28: 0 | H28: 0 | I28: 0 | J28: 0 | K28: 0 | L28: 0 | M28: 1 | N28: 1 | O28: 0 | P28: 1 | Q28: 0 | R28: 0 | S28: 1 | T28: 0 | U28: 0 | V28: 0 | W28: 0 | X28: 0 | Y28: 0 | Z28: 0 | AA28: 0 | AB28: 1 | AC28: 1 | AD28: 0 | AE28: 0 | AF28: 0 | AG28: 0 | AH28: 0 | AI28: 0 | AJ28: 1 | AK28: 0 | AL28: 0 | AM28: 0 | AN28: 0 | AO28: 0 | AP28: 0 | AQ28: 1 | AR28: 1 | AS28: 0 | AT28: 0

Sheet Sylwetki Pistolet
A1: Celów: | B1: 40
D2: % trafień | G2: =(COUNTIF(G9:G74,1)/COUNTA(G9:G74))*100 -> 45.45454545 | H2: =(COUNTIF(H9:H74,1)/COUNTA(H9:H74))*100 -> 54.54545455 | I2: 45.45454545 | J2: 54.54545455 | K2: 36.36363636 | L2: 63.63636364 | M2: 45.45454545 | N2: 63.63636364 | O2: 36.36363636 | P2: 36.36363636 | Q2: 63.63636364 | R2: 36.36363636 | S2: 18.18181818 | T2: 36.36363636 | U2: 27.27272727 | V2: 27.27272727 | W2: 45.45454545 | X2: 63.63636364 | Y2: 63.63636364 | Z2: 36.36363636 | AA2: 63.63636364 | AB2: 63.63636364 | AC2: 54.54545455 | AD2: 72.72727273 | AE2: 45.45454545 | AF2: 45.45454545 | AG2: 36.36363636 | AH2: 45.45454545 | AI2: 63.63636364 | AJ2: 72.72727273 | AK2: 27.27272727 | AL2: 54.54545455 | AM2: 36.36363636 | AN2: 63.63636364 | AO2: 27.27272727 | AP2: 54.54545455 | AQ2: 36.36363636 | AR2: 45.45454545 | AS2: 54.54545455 | AT2: 45.45454545
D3: % pudło | G3: =(COUNTIF(G9:G74,0)/COUNTA(G9:G74))*100 -> 54.54545455 | H3: =(COUNTIF(H9:H74,0)/COUNTA(H9:H74))*100 -> 45.45454545 | I3: 54.54545455 | J3: 45.45454545 | K3: 63.63636364 | L3: 36.36363636 | M3: 54.54545455 | N3: 36.36363636 | O3: 63.63636364 | P3: 63.63636364 | Q3: 36.36363636 | R3: 63.63636364 | S3: 81.81818182 | T3: 63.63636364 | U3: 72.72727273 | V3: 72.72727273 | W3: 54.54545455 | X3: 36.36363636 | Y3: 36.36363636 | Z3: 63.63636364 | AA3: 36.36363636 | AB3: 36.36363636 | AC3: 45.45454545 | AD3: 27.27272727 | AE3: 54.54545455 | AF3: 54.54545455 | AG3: 63.63636364 | AH3: 54.54545455 | AI3: 36.36363636 | AJ3: 27.27272727 | AK3: 72.72727273 | AL3: 45.45454545 | AM3: 63.63636364 | AN3: 36.36363636 | AO3: 72.72727273 | AP3: 45.45454545 | AQ3: 63.63636364 | AR3: 54.54545455 | AS3: 45.45454545 | AT3: 54.54545455
G4: Przejście pierwsze | AA4: Przejście drugie
F5: nr | G5: 1 | H5: 2 | I5: 3 | J5: 4 | K5: 5 | L5: 6 | M5: 7 | N5: 8 | O5: 9 | P5: 10 | Q5: 11 | R5: 12 | S5: 13 | T5: 14 | U5: 15 | V5: 16 | W5: 17 | X5: 18 | Y5: 19 | Z5: 20 | AA5: 1 | AB5: 2 | AC5: 3 | AD5: 4 | AE5: 5 | AF5: 6 | AG5: 7 | AH5: 8 | AI5: 9 | AJ5: 10 | AK5: 11 | AL5: 12 | AM5: 13 | AN5: 14 | AO5: 15 | AP5: 16 | AQ5: 17 | AR5: 18 | AS5: 19 | AT5: 20 | AU5: D
A6: Data: | C6: 43611 | F6: sylwetka | G6: kurczak | L6: dzik | Q6: indyk | V6: muflon | AA6: kurczak | AF6: dzik | AK6: indyk | AP6: muflon
A7: Kategoria: | C7: Sylwetki Pistolet
A8: Miejsce | B8: Imię, nazwisko | C8: Nick | D8: Suma punktów | E8: % do zwycięzcy | F8: postawa/ uwagi
A9: 1 | B9: Wróbel Robert | C9: =IF(NOT(B9=""),IF(VLOOKUP(B9,Tabela1[[Nick]:[Imię + Nazwisko]],2,FALSE)<>0,VLOOKUP(B9,Tabela1[[Nick]:[Imię + Nazwisko]],2,FALSE),""),"") -> Photomaker | D9: =SUM(G9:AT9) -> 26 | E9: =IF(A9=1,100,IF($D$9<>0,D9/$D$9*100,"")) -> 100 | F9: =IF(B9<>"",IF(VLOOKUP(B9,Tabela1[[#All],[Imię + Nazwisko]:[K]],11,FALSE)=1,"K","")&IF(VLOOKUP(B9,Tabela1[[#All],[Imię + Nazwisko]:[K]],10,FALSE)=1,"W",""),"") ->  | G9: 1 | H9: 0 | I9: 0 | J9: 1 | K9: 1 | L9: 1 | M9: 1 | N9: 0 | O9: 1 | P9: 0 | Q9: 1 | R9: 1 | S9: 1 | T9: 1 | U9: 0 | V9: 0 | W9: 0 | X9: 1 | Y9: 1 | Z9: 0 | AA9: 1 | AB9: 1 | AC9: 1 | AD9: 1 | AE9: 1 | AF9: 1 | AG9: 1 | AH9: 1 | AI9: 1 | AJ9: 1 | AK9: 0 | AL9: 0 | AM9: 0 | AN9: 1 | AO9: 0 | AP9: 1 | AQ9: 0 | AR9: 1 | AS9: 1 | AT9: 0 | AU9: 1
A10: 2 | B10: Rose Piotr | C10: =IF(NOT(B10=""),IF(VLOOKUP(B10,Tabela1[[Nick]:[Imię + Nazwisko]],2,FALSE)<>0,VLOOKUP(B10,Tabela1[[Nick]:[Imię + Nazwisko]],2,FALSE),""),"") -> box555 | D10: 26 | E10: 100 | F10: =IF(B10<>"",IF(VLOOKUP(B10,Tabela1[[#All],[Imię + Nazwisko]:[K]],11,FALSE)=1,"K","")&IF(VLOOKUP(B10,Tabela1[[#All],[Imię + Nazwisko]:[K]],10,FALSE)=1,"W",""),"") ->  | G10: 1 | H10: 0 | I10: 0 | J10: 1 | K10: 1 | L10: 1 | M10: 1 | N10: 1 | O10: 0 | P10: 1 | Q10: 1 | R10: 0 | S10: 0 | T10: 1 | U10: 0 | V10: 0 | W10: 1 | X10: 1 | Y10: 1 | Z10: 1 | AA10: 1 | AB10: 1 | AC10: 0 | AD10: 1 | AE10: 1 | AF10: 0 | AG10: 0 | AH10: 1 | AI10: 1 | AJ10: 1 | AK10: 1 | AL10: 1 | AM10: 0 | AN10: 0 | AO10: 0 | AP10: 1 | AQ10: 1 | AR10: 1 | AS10: 0 | AT10: 1 | AU10: 2
A11: 3 | B11: Król Andrzej | C11: =IF(NOT(B11=""),IF(VLOOKUP(B11,Tabela1[[Nick]:[Imię + Nazwisko]],2,FALSE)<>0,VLOOKUP(B11,Tabela1[[Nick]:[Imię + Nazwisko]],2,FALSE),""),"") -> kombatant | D11: 24 | E11: 92.30769231 | F11: =IF(B11<>"",IF(VLOOKUP(B11,Tabela1[[#All],[Imię + Nazwisko]:[K]],11,FALSE)=1,"K","")&IF(VLOOKUP(B11,Tabela1[[#All],[Imię + Nazwisko]:[K]],10,FALSE)=1,"W",""),"") -> W | G11: 0 | H11: 1 | I11: 1 | J11: 0 | K11: 0 | L11: 1 | M11: 0 | N11: 1 | O11: 1 | P11: 1 | Q11: 1 | R11: 0 | S11: 0 | T11: 0 | U11: 0 | V11: 1 | W11: 1 | X11: 1 | Y11: 0 | Z11: 1 | AA11: 1 | AB11: 1 | AC11: 1 | AD11: 1 | AE11: 1 | AF11: 1 | AG11: 0 | AH11: 1 | AI11: 0 | AJ11: 1 | AK11: 1 | AL11: 0 | AM11: 0 | AN11: 1 | AO11: 1 | AP11: 1 | AQ11: 0 | AR11: 0 | AS11: 1 | AT11: 0
A12: 4 | B12: Majda Jarosław | C12: =IF(NOT(B12=""),IF(VLOOKUP(B12,Tabela1[[Nick]:[Imię + Nazwisko]],2,FALSE)<>0,VLOOKUP(B12,Tabela1[[Nick]:[Imię + Nazwisko]],2,FALSE),""),"") -> czaputek | D12: 22 | E12: 84.61538462 | F12: =IF(B12<>"",IF(VLOOKUP(B12,Tabela1[[#All],[Imię + Nazwisko]:[K]],11,FALSE)=1,"K","")&IF(VLOOKUP(B12,Tabela1[[#All],[Imię + Nazwisko]:[K]],10,FALSE)=1,"W",""),"") ->  | G12: 1 | H12: 0 | I12: 1 | J12: 1 | K12: 1 | L12: 1 | M12: 0 | N12: 1 | O12: 0 | P12: 1 | Q12: 1 | R12: 0 | S12: 1 | T12: 0 | U12: 1 | V12: 1 | W12: 1 | X12: 0 | Y12: 1 | Z12: 0 | AA12: 1 | AB12: 1 | AC12: 0 | AD12: 1 | AE12: 0 | AF12: 0 | AG12: 0 | AH12: 0 | AI12: 1 | AJ12: 1 | AK12: 0 | AL12: 1 | AM12: 0 | AN12: 1 | AO12: 0 | AP12: 0 | AQ12: 0 | AR12: 1 | AS12: 0 | AT12: 1
A13: 5 | B13: Krempczyński Marek | C13: =IF(NOT(B13=""),IF(VLOOKUP(B13,Tabela1[[Nick]:[Imię + Nazwisko]],2,FALSE)<>0,VLOOKUP(B13,Tabela1[[Nick]:[Imię + Nazwisko]],2,FALSE),""),"") -> Łysy | D13: 20 | E13: 76.92307692 | F13: =IF(B13<>"",IF(VLOOKUP(B13,Tabela1[[#All],[Imię + Nazwisko]:[K]],11,FALSE)=1,"K","")&IF(VLOOKUP(B13,Tabela1[[#All],[Imię + Nazwisko]:[K]],10,FALSE)=1,"W",""),"") ->  | G13: 0 | H13: 1 | I13: 1 | J13: 1 | K13: 1 | L13: 1 | M13: 0 | N13: 0 | O13: 0 | P13: 0 | Q13: 1 | R13: 1 | S13: 0 | T13: 1 | U13: 1 | V13: 0 | W13: 0 | X13: 1 | Y13: 0 | Z13: 0 | AA13: 1 | AB13: 1 | AC13: 1 | AD13: 1 | AE13: 0 | AF13: 0 | AG13: 0 | AH13: 0 | AI13: 1 | AJ13: 0 | AK13: 1 | AL13: 1 | AM13: 0 | AN13: 0 | AO13: 0 | AP13: 0 | AQ13: 0 | AR13: 1 | AS13: 1 | AT13: 1
A14: 5 | B14: Wieloszyńska Aleksandra | C14: =IF(NOT(B14=""),IF(VLOOKUP(B14,Tabela1[[Nick]:[Imię + Nazwisko]],2,FALSE)<>0,VLOOKUP(B14,Tabela1[[Nick]:[Imię + Nazwisko]],2,FALSE),""),"") -> `=Ola= | D14: 20 | E14: 76.92307692 | F14: =IF(B14<>"",IF(VLOOKUP(B14,Tabela1[[#All],[Imię + Nazwisko]:[K]],11,FALSE)=1,"K","")&IF(VLOOKUP(B14,Tabela1[[#All],[Imię + Nazwisko]:[K]],10,FALSE)=1,"W",""),"") -> K | G14: 0 | H14: 1 | I14: 1 | J14: 1 | K14: 0 | L14: 1 | M14: 1 | N14: 1 | O14: 0 | P14: 0 | Q14: 1 | R14: 1 | S14: 0 | T14: 1 | U14: 0 | V14: 0 | W14: 1 | X14: 0 | Y14: 0 | Z14: 0 | AA14: 1 | AB14: 0 | AC14: 1 | AD14: 1 | AE14: 1 | AF14: 0 | AG14: 0 | AH14: 1 | AI14: 0 | AJ14: 0 | AK14: 0 | AL14: 1 | AM14: 1 | AN14: 1 | AO14: 1 | AP14: 1 | AQ14: 0 | AR14: 0 | AS14: 0 | AT14: 0
A15: 7 | B15: Kaczmarek Mariusz | C15: =IF(NOT(B15=""),IF(VLOOKUP(B15,Tabela1[[Nick]:[Imię + Nazwisko]],2,FALSE)<>0,VLOOKUP(B15,Tabela1[[Nick]:[Imię + Nazwisko]],2,FALSE),""),"") -> Mario_64 | D15: 16 | E15: 61.53846154 | F15: =IF(B15<>"",IF(VLOOKUP(B15,Tabela1[[#All],[Imię + Nazwisko]:[K]],11,FALSE)=1,"K","")&IF(VLOOKUP(B15,Tabela1[[#All],[Imię + Nazwisko]:[K]],10,FALSE)=1,"W",""),"") ->  | G15: 0 | H15: 1 | I15: 0 | J15: 1 | K15: 0 | L15: 0 | M15: 0 | N15: 1 | O15: 0 | P15: 0 | Q15: 0 | R15: 1 | S15: 0 | T15: 0 | U15: 1 | V15: 0 | W15: 0 | X15: 1 | Y15: 1 | Z15: 0 | AA15: 0 | AB15: 1 | AC15: 0 | AD15: 1 | AE15: 0 | AF15: 1 | AG15: 1 | AH15: 0 | AI15: 1 | AJ15: 0 | AK15: 0 | AL15: 0 | AM15: 1 | AN15: 0 | AO15: 0 | AP15: 1 | AQ15: 1 | AR15: 0 | AS15: 0 | AT15: 1
A16: 7 | B16: Remiszewski Piotr | C16: =IF(NOT(B16=""),IF(VLOOKUP(B16,Tabela1[[Nick]:[Imię + Nazwisko]],2,FALSE)<>0,VLOOKUP(B16,Tabela1[[Nick]:[Imię + Nazwisko]],2,FALSE),""),"") -> red5555 | D16: 16 | E16: 61.53846154 | F16: =IF(B16<>"",IF(VLOOKUP(B16,Tabela1[[#All],[Imię + Nazwisko]:[K]],11,FALSE)=1,"K","")&IF(VLOOKUP(B16,Tabela1[[#All],[Imię + Nazwisko]:[K]],10,FALSE)=1,"W",""),"") ->  | G16: 1 | H16: 1 | I16: 1 | J16: 0 | K16: 0 | L16: 0 | M16: 1 | N16: 1 | O16: 1 | P16: 1 | Q16: 1 | R16: 0 | S16: 0 | T16: 0 | U16: 0 | V16: 0 | W16: 0 | X16: 0 | Y16: 1 | Z16: 0 | AA16: 0 | AB16: 0 | AC16: 1 | AD16: 1 | AE16: 0 | AF16: 1 | AG16: 0 | AH16: 0 | AI16: 0 | AJ16: 1 | AK16: 0 | AL16: 1 | AM16: 0 | AN16: 0 | AO16: 0 | AP16: 0 | AQ16: 1 | AR16: 0 | AS16: 1 | AT16: 0
A17: 9 | B17: Lisowski Grzegorz | C17: =IF(NOT(B17=""),IF(VLOOKUP(B17,Tabela1[[Nick]:[Imię + Nazwisko]],2,FALSE)<>0,VLOOKUP(B17,Tabela1[[Nick]:[Imię + Nazwisko]],2,FALSE),""),"") -> Lisek | D17: 14 | E17: 53.84615385 | F17: =IF(B17<>"",IF(VLOOKUP(B17,Tabela1[[#All],[Imię + Nazwisko]:[K]],11,FALSE)=1,"K","")&IF(VLOOKUP(B17,Tabela1[[#All],[Imię + Nazwisko]:[K]],10,FALSE)=1,"W",""),"") ->  | G17: 0 | H17: 1 | I17: 0 | J17: 0 | K17: 0 | L17: 1 | M17: 0 | N17: 0 | O17: 1 | P17: 0 | Q17: 0 | R17: 0 | S17: 0 | T17: 0 | U17: 0 | V17: 0 | W17: 0 | X17: 1 | Y17: 1 | Z17: 1 | AA17: 0 | AB17: 1 | AC17: 0 | AD17: 0 | AE17: 1 | AF17: 1 | AG17: 1 | AH17: 0 | AI17: 1 | AJ17: 1 | AK17: 0 | AL17: 0 | AM17: 0 | AN17: 1 | AO17: 0 | AP17: 0 | AQ17: 0 | AR17: 0 | AS17: 1 | AT17: 0
A18: 9 | B18: Korpalski Artur | C18: =IF(NOT(B18=""),IF(VLOOKUP(B18,Tabela1[[Nick]:[Imię + Nazwisko]],2,FALSE)<>0,VLOOKUP(B18,Tabela1[[Nick]:[Imię + Nazwisko]],2,FALSE),""),"") -> Artkor | D18: 14 | E18: 53.84615385 | F18: =IF(B18<>"",IF(VLOOKUP(B18,Tabela1[[#All],[Imię + Nazwisko]:[K]],11,FALSE)=1,"K","")&IF(VLOOKUP(B18,Tabela1[[#All],[Imię + Nazwisko]:[K]],10,FALSE)=1,"W",""),"") ->  | G18: 1 | H18: 0 | I18: 0 | J18: 0 | K18: 0 | L18: 0 | M18: 1 | N18: 1 | O18: 0 | P18: 0 | Q18: 0 | R18: 0 | S18: 0 | T18: 0 | U18: 0 | V18: 0 | W18: 0 | X18: 0 | Y18: 1 | Z18: 1 | AA18: 0 | AB18: 0 | AC18: 0 | AD18: 0 | AE18: 0 | AF18: 0 | AG18: 1 | AH18: 0 | AI18: 1 | AJ18: 1 | AK18: 0 | AL18: 1 | AM18: 1 | AN18: 1 | AO18: 0 | AP18: 1 | AQ18: 0 | AR18: 0 | AS18: 1 | AT18: 1
A19: 11 | B19: Maciejewicz Mirosław | C19: =IF(NOT(B19=""),IF(VLOOKUP(B19,Tabela1[[Nick]:[Imię + Nazwisko]],2,FALSE)<>0,VLOOKUP(B19,Tabela1[[Nick]:[Imię + Nazwisko]],2,FALSE),""),"") -> Krauser | D19: 12 | E19: 46.15384615 | F19: =IF(B19<>"",IF(VLOOKUP(B19,Tabela1[[#All],[Imię + Nazwisko]:[K]],11,FALSE)=1,"K","")&IF(VLOOKUP(B19,Tabela1[[#All],[Imię + Nazwisko]:[K]],10,FALSE)=1,"W",""),"") ->  | G19: 0 | H19: 0 | I19: 0 | J19: 0 | K19: 0 | L19: 0 | M19: 0 | N19: 0 | O19: 0 | P19: 0 | Q19: 0 | R19: 0 | S19: 0 | T19: 0 | U19: 0 | V19: 1 | W19: 1 | X19: 1 | Y19: 0 | Z19: 0 | AA19: 1 | AB19: 0 | AC19: 1 | AD19: 0 | AE19: 0 | AF19: 0 | AG19: 0 | AH19: 1 | AI19: 0 | AJ19: 1 | AK19: 0 | AL19: 0 | AM19: 1 | AN19: 1 | AO19: 1 | AP19: 0 | AQ19: 1 | AR19: 1 | AS19: 0 | AT19: 0

Sheet Weterani i Kobiety
A1: Klasyfikacja weteranów
A2: Nazwisko, Imię | B2: kategoria | C2: przeliczone punkty | D2: %
A3: Chojnicki Janusz | B3: HFT2 | C3: 61 | D3: =C3/$Q$12 -> 0.9104477612
A4: Winiarek Mirosław | B4: FT | C4: 67 | D4: =C4/$Q$10 -> 0.8815789474
A5: Białek Józef | B5: HFT1 | C5: 66 | D5: =C5/$Q$11 -> 0.8571428571
A6: Sadowski Eugeniusz | B6: HFT1 | C6: 64 | D6: =C6/$Q$11 -> 0.8311688312
A7: Floryn Marek | B7: HFT2 | C7: 55 | D7: =C7/$Q$12 -> 0.8208955224
A8: Domagała Leszek | B8: FT | C8: 60 | D8: =C8/$Q$10 -> 0.7894736842
P10: FT max | Q10: 76
A11: Klasyfikacja kobiet | P11: HFT1 max | Q11: 77
A12: Nazwisko, Imię | B12: kategoria | C12: przeliczone punkty | D12: % | P12: HFT2 max | Q12: 67
A13: Machowicz Anna | B13: HFT1 | C13: 62 | D13: =C13/$Q$11 -> 0.8051948052
A14: Frasińska Katarzyna | B14: FT | C14: 61 | D14: =C14/$Q$10 -> 0.8026315789
A15: Czorny Magdalena | B15: FT | C15: 59 | D15: =C15/$Q$10 -> 0.7763157895
A16: Dębecka Marta | B16: HFT1 | C16: 54 | D16: =C16/$Q$11 -> 0.7012987013

Sheet DaneZawodnikow
A1: Imię | B1: Nazwisko | C1: Imię + Nazwisko | D1: Nick | E1: FT | F1: HFT 1 | G1: HFT 2 | H1: JUNIOR | I1: SP | J1: SK | K1: nHFT | L1: W | M1: K | N1: katG | O1: katDod | P1: katW
A2: Krzysztof | B2: Adamczak | C2: =B2&" "&A2 -> Adamczak Krzysztof | D2: krzysieka | E2: =IF($N2="FT",1,"") -> 1 | F2: =IF($N2="HFT 1",1,"") ->  | G2: =IF($N2="HFT 2",1,"") ->  | H2: =IF(ISNUMBER(SEARCH("Junior",$P2)),1,"") ->  | I2: =IF(ISNUMBER(SEARCH("Sylwetki pistolet",$O2)),1,"") ->  | J2: =IF(ISNUMBER(SEARCH("Sylwetki karabin",$O2)),1,"") ->  | K2: =IF(ISNUMBER(SEARCH("nHFT",$O2)),1,"") ->  | L2: =IF(ISNUMBER(SEARCH("Weteran",$P2)),1,"") ->  | M2: =IF(RIGHT(A2,1)="a",1,"") ->  | N2: FT | P2: Senior
A3: Piotr | B3: Augustyniak | C3: Augustyniak Piotr | D3: Augustyn | E3: 1 | N3: FT | P3: Senior
A4: Sławomir | B4: Badziński | C4: Badziński Sławomir | D4: slawol75 | G4: 1 | N4: HFT 2 | P4: Senior
A5: Józef | B5: Białek | C5: Białek Józef | D5: Josef | F5: 1 | L5: 1 | N5: HFT 1 | P5: Weteran (od 60 lat)
A6: Piotr | B6: Brandys | C6: Brandys Piotr | D6: Brandon | F6: 1 | N6: HFT 1 | P6: Senior
A7: Artur | B7: Budny | C7: Budny Artur | D7: Artur555 | G7: 1 | N7: HFT 2 | P7: Senior
A8: Teresa | B8: Chojnicka | C8: Chojnicka Teresa | D8: T-1000 | M8: 1 | N8: Piknikowiec | P8: Piknikowiec
A9: Janusz | B9: Chojnicki | C9: Chojnicki Janusz | D9: Spinner | G9: 1 | L9: 1 | N9: HFT 2 | P9: Weteran (od 60 lat)
A10: Tomasz | B10: Cielepak | C10: Cielepak Tomasz | D10: MASZOT | F10: 1 | J10: 1 | K10: 1 | N10: HFT 1 | O10: Sylwetki karabin, nHFT | P10: Senior
A11: Maciej | B11: Dąbrowski | C11: Dąbrowski Maciej | D11: Maciej Alfa | F11: 1 | K11: 1 | N11: HFT 1 | O11: nHFT | P11: Senior
A12: Michał | B12: Dąbrowski | C12: Dąbrowski Michał | D12: Michał Alfa | F12: 1 | H12: 1 | K12: 1 | N12: HFT 1 | O12: nHFT | P12: Junior Open ( 9-16 lat)
A13: Marta | B13: Dębecka | C13: Dębecka Marta | D13: Lennox | F13: 1 | M13: 1 | N13: HFT 1 | P13: Senior
A14: Leszek | B14: Domagała | C14: Domagała Leszek | D14: Willi | E14: 1 | L14: 1 | N14: FT | P14: Weteran (od 60 lat)
A15: Mateusz | B15: Dominiak | C15: Dominiak Mateusz | D15: Domin | F15: 1 | N15: HFT 1 | P15: Senior
A16: Marcin | B16: Drabik | C16: Drabik Marcin | D16: DrA | E16: 1 | N16: FT | P16: Senior
A17: Andrzej | B17: Dylewski | C17: Dylewski Andrzej | D17: Andrzej | E17: 1 | N17: FT | P17: Senior
A18: Marek | B18: Floryn | C18: Floryn Marek | D18: StgMechanik | G18: 1 | L18: 1 | N18: HFT 2 | P18: Weteran (od 60 lat)
A19: Katarzyna | B19: Frasińska | C19: Frasińska Katarzyna | D19: Kasia F | E19: 1 | M19: 1 | N19: FT | P19: Senior
A20: Julia | B20: Gacek | C20: Gacek Julia | D20: Julcia | F20: 1 | H20: 1 | M20: 1 | N20: HFT 1 | P20: Junior Open ( 9-16 lat)
A21: Tomasz | B21: Gacek | C21: Gacek Tomasz | D21: WuDe | F21: 1 | J21: 1 | K21: 1 | N21: HFT 1 | O21: Sylwetki karabin, nHFT | P21: Senior
A22: Janusz | B22: Gawęda | C22: Gawęda Janusz | D22: pitus5 | I22: 1 | J22: 1 | L22: 1 | N22: Piknikowiec | O22: Sylwetki karabin, Sylwetki pistolet | P22: Weteran (od 60 lat)
A23: Mariusz | B23: Kaczmarek | C23: Kaczmarek Mariusz | D23: Mario_64 | F23: 1 | I23: 1 | J23: 1 | N23: HFT 1 | O23: Sylwetki karabin, Sylwetki pistolet | P23: Senior
A24: Piotr | B24: Kaczmarek | C24: Kaczmarek Piotr | D24: Silart | G24: 1 | N24: HFT 2 | P24: Senior
A25: Bartłomiej | B25: Kaźmierczak | C25: Kaźmierczak Bartłomiej | D25: BARTEZZ | F25: 1 | K25: 1 | N25: HFT 1 | O25: nHFT | P25: Senior
A26: Jakub | B26: Kerber | C26: Kerber Jakub | D26: Lord Rzeźnik | F26: 1 | K26: 1 | N26: HFT 1 | O26: nHFT | P26: Senior
A27: Antoni | B27: Korczyński | C27: Korczyński Antoni | D27: Antek | F27: 1 | H27: 1 | K27: 1 | N27: HFT 1 | O27: nHFT | P27: Junior Open ( 9-16 lat)
A28: Dariusz | B28: Korczyński | C28: Korczyński Dariusz | D28: - | N28: Piknikowiec | P28: Piknikowiec
A29: Artur | B29: Korpalski | C29: Korpalski Artur | D29: Artkor | F29: 1 | J29: 1 | N29: HFT 1 | O29: Sylwetki karabin | P29: Senior
A30: Artur | B30: Korpalski | C30: Korpalski Artur | D30: Artkor | F30: 1 | I30: 1 | J30: 1 | N30: HFT 1 | O30: Sylwetki karabin, Sylwetki pistolet | P30: Senior
A31: Jacek | B31: Kostowski | C31: Kostowski Jacek | D31: pilot68 | F31: 1 | N31: HFT 1 | P31: Senior
A32: Krzysztof | B32: Kowalczyk | C32: Kowalczyk Krzysztof | D32: krzysztofk | F32: 1 | K32: 1 | N32: HFT 1 | O32: nHFT | P32: Senior
A33: Marek | B33: Krempczyński | C33: Krempczyński Marek | D33: Łysy | F33: 1 | I33: 1 | J33: 1 | K33: 1 | N33: HFT 1 | O33: Sylwetki karabin, Sylwetki pistolet, nHFT | P33: Senior
A34: Andrzej | B34: Król | C34: =B34&" "&A34 -> Król Andrzej | D34: kombatant | E34: =IF($N34="FT",1,"") ->  | F34: =IF($N34="HFT 1",1,"") ->  | G34: =IF($N34="HFT 2",1,"") ->  | H34: =IF(ISNUMBER(SEARCH("Junior",$P34)),1,"") ->  | I34: =IF(ISNUMBER(SEARCH("Sylwetki pistolet",$O34)),1,"") -> 1 | J34: =IF(ISNUMBER(SEARCH("Sylwetki karabin",$O34)),1,"") -> 1 | K34: =IF(ISNUMBER(SEARCH("nHFT",$O34)),1,"") ->  | L34: =IF(ISNUMBER(SEARCH("Weteran",$P34)),1,"") -> 1 | M34: =IF(RIGHT(A34,1)="a",1,"") ->  | N34: Piknikowiec | O34: Sylwetki karabin, Sylwetki pistolet | P34: Weteran (od 60 lat)
A35: Jacek | B35: Krystek | C35: Krystek Jacek | D35: zantara | F35: 1 | N35: HFT 1 | P35: Senior
A36: Kostek | B36: Lamcha | C36: Lamcha Kostek | D36: Kostek | G36: 1 | H36: 1 | N36: HFT 2 | P36: Junior Open ( 9-16 lat)
A37: Marcin | B37: Lamcha | C37: Lamcha Marcin | D37: Lamus | G37: 1 | N37: HFT 2 | P37: Senior
A38: Grzegorz | B38: Lisowski | C38: Lisowski Grzegorz | D38: Lisek | F38: 1 | I38: 1 | K38: 1 | N38: HFT 1 | O38: Sylwetki pistolet, nHFT | P38: Senior
A39: Anna | B39: Machowicz | C39: Machowicz Anna | D39: Anna | F39: 1 | M39: 1 | N39: HFT 1 | P39: Senior
A40: Krzysztof | B40: Machowicz | C40: Machowicz Krzysztof | D40: yamrt | F40: 1 | N40: HFT 1 | P40: Senior
A41: Mirosław | B41: Maciejewicz | C41: Maciejewicz Mirosław | D41: Krauser | F41: 1 | K41: 1 | N41: HFT 1 | O41: nHFT
A42: Marcin | B42: Markisz | C42: Markisz Marcin | D42: MarcinMM | E42: 1 | H42: 1 | N42: FT | P42: Junior Open ( 9-16 lat)
A43: Karol | B43: Mazurek | C43: Mazurek Karol | D43: lupus | F43: 1 | N43: HFT 1 | P43: Senior
A44: Tomasz | B44: Merski | C44: Merski Tomasz | D44: Jester | E44: 1 | N44: FT | P44: Senior
A45: Norbert | B45: Nachman | C45: Nachman Norbert | D45: Groul | F45: 1 | N45: HFT 1 | P45: Senior
A46: Jarosław | B46: Narbut | C46: Narbut Jarosław | D46: Jarn | F46: 1 | N46: HFT 1 | P46: Senior
A47: Sławomir | B47: Opiela | C47: Opiela Sławomir | D47: AJU | G47: 1 | N47: HFT 2 | P47: Senior
A48: Rafał | B48: Pachnik | C48: Pachnik Rafał | D48: ralph | E48: 1 | N48: FT | P48: Senior
A49: Adam | B49: Poliński | C49: Poliński Adam | D49: kadzislaw | E49: 1 | N49: FT | P49: Senior
A50: Piotr | B50: Remiszewski | C50: Remiszewski Piotr | D50: red5555 | F50: 1 | I50: 1 | J50: 1 | K50: 1 | N50: HFT 1 | O50: Sylwetki karabin, Sylwetki pistolet, nHFT | P50: Senior
A51: Piotr | B51: Rose | C51: Rose Piotr | D51: box555 | I51: 1 | J51: 1 | N51: Piknikowiec | O51: Sylwetki karabin, Sylwetki pistolet | P51: Senior
A52: Radosław | B52: Rozum | C52: Rozum Radosław | D52: Roar | E52: 1 | N52: FT | P52: Senior
A53: Dariusz | B53: Rup | C53: Rup Dariusz | D53: Zapp | E53: 1 | N53: FT | P53: Senior
A54: Artur | B54: Rybarczyk | C54: Rybarczyk Artur | D54: ArturR | J54: 1 | N54: Piknikowiec | O54: Sylwetki karabin | P54: Senior
A55: Eugeniusz | B55: Sadowski | C55: Sadowski Eugeniusz | D55: eugsad | F55: 1 | J55: 1 | K55: 1 | L55: 1 | N55: HFT 1 | O55: Sylwetki karabin, nHFT | P55: Weteran (od 60 lat)
A56: Piotr | B56: Słowik | C56: Słowik Piotr | D56: Włamywacz | J56: 1 | N56: Piknikowiec | O56: Sylwetki karabin | P56: Senior
A57: Mikołaj | B57: Soloch | C57: Soloch Mikołaj | D57: Mikuś | N57: Piknikowiec | P57: Senior
A58: Michał | B58: Sroczyński | C58: Sroczyński Michał | D58: Michał | F58: 1 | K58: 1 | N58: HFT 1 | O58: nHFT | P58: Senior
A59: Krzysztof | B59: Szałkowski | C59: Szałkowski Krzysztof | D59: Kris | F59: 1 | J59: 1 | K59: 1 | N59: HFT 1 | O59: Sylwetki karabin, nHFT | P59: Senior
A60: Krzysztof | B60: Szeszuła | C60: Szeszuła Krzysztof | D60: Megabos | F60: 1 | J60: 1 | K60: 1 | N60: HFT 1 | O60: Sylwetki karabin, nHFT | P60: Senior
A61: Maciej | B61: Szłapka | C61: Szłapka Maciej | D61: MaciejSz | F61: 1 | K61: 1 | N61: HFT 1 | O61: nHFT | P61: Senior
A62: Darek | B62: Szymanowski | C62: Szymanowski Darek | D62: sindbad | F62: 1 | N62: HFT 1 | P62: Senior
A63: Łukasz | B63: Śmigaj | C63: Śmigaj Łukasz | D63: Łukasz | J63: 1 | N63: Piknikowiec | O63: Sylwetki karabin | P63: Senior
A64: Magdalena | B64: Tałaj | C64: Tałaj Magdalena | D64: Maja | M64: 1 | N64: Piknikowiec | P64: Piknikowiec
A65: Szymon | B65: Tałaj | C65: Tałaj Szymon | D65: slowroots | E65: 1 | J65: 1 | N65: FT | O65: Sylwetki karabin | P65: Senior
A66: Aleksandra | B66: Wieloszyńska | C66: =B66&" "&A66 -> Wieloszyńska Aleksandra | D66: `=Ola= | E66: =IF($N66="FT",1,"") ->  | F66: =IF($N66="HFT 1",1,"") ->  | G66: =IF($N66="HFT 2",1,"") ->  | H66: =IF(ISNUMBER(SEARCH("Junior",$P66)),1,"") ->  | I66: =IF(ISNUMBER(SEARCH("Sylwetki pistolet",$O66)),1,"") -> 1 | J66: =IF(ISNUMBER(SEARCH("Sylwetki karabin",$O66)),1,"") -> 1 | K66: =IF(ISNUMBER(SEARCH("nHFT",$O66)),1,"") ->  | L66: =IF(ISNUMBER(SEARCH("Weteran",$P66)),1,"") ->  | M66: =IF(RIGHT(A66,1)="a",1,"") -> 1 | N66: Piknikowiec | O66: Sylwetki karabin, Sylwetki pistolet | P66: Senior
A67: Krzysztof | B67: Wietrzykowski | C67: Wietrzykowski Krzysztof | D67: Krzysztof W. | F67: 1 | J67: 1 | N67: HFT 1 | O67: Sylwetki karabin | P67: Senior
A68: Paweł | B68: Wietrzykowski | C68: Wietrzykowski Paweł | D68: PawełW | F68: 1 | N68: HFT 1 | P68: Senior
A69: Mirosław | B69: Winiarek | C69: Winiarek Mirosław | D69: wirek | E69: 1 | L69: 1 | N69: FT | P69: Weteran (od 60 lat)
A70: Robert | B70: Wolski | C70: Wolski Robert | D70: Wola | F70: 1 | J70: 1 | K70: 1 | N70: HFT 1 | O70: Sylwetki karabin, nHFT | P70: Senior
A71: Robert | B71: Wróbel | C71: Wróbel Robert | D71: Photomaker | I71: 1 | J71: 1 | N71: Piknikowiec | O71: Sylwetki karabin, Sylwetki pistolet | P71: Senior
A72: Marek | B72: Wziętek | C72: Wziętek Marek | D72: Maruch | F72: 1 | N72: HFT 1 | P72: Senior
A73: Arkadiusz | B73: Zacharzewski | C73: Zacharzewski Arkadiusz | D73: Rek | F73: 1 | N73: HFT 1 | P73: Senior
A74: Jan | B74: Zataj | C74: Zataj Jan | D74: JZ | E74: 1 | H74: 1 | N74: FT | P74: Junior Open ( 9-16 lat)
A75: Tomasz | B75: Zataj | C75: Zataj Tomasz | D75: TZ | E75: 1 | N75: FT | P75: Senior
A76: Marcin | B76: Zgiernicki | C76: Zgiernicki Marcin | D76: Mazgier | G76: 1 | K76: 1 | N76: HFT 2 | O76: nHFT | P76: Senior
A77: Rafał | B77: Zych | C77: Zych Rafał | D77: Snajper | F77: 1 | N77: HFT 1 | P77: Senior
A78: Krzysztof | B78: Wołowicz | C78: =B78&" "&A78 -> Wołowicz Krzysztof | D78: Piżol | E78: =IF($N78="FT",1,"") ->  | F78: =IF($N78="HFT 1",1,"") -> 1 | G78: =IF($N78="HFT 2",1,"") ->  | H78: =IF(ISNUMBER(SEARCH("Junior",$P78)),1,"") ->  | I78: =IF(ISNUMBER(SEARCH("Sylwetki pistolet",$O78)),1,"") ->  | J78: =IF(ISNUMBER(SEARCH("Sylwetki karabin",$O78)),1,"") ->  | K78: =IF(ISNUMBER(SEARCH("nHFT",$O78)),1,"") ->  | L78: =IF(ISNUMBER(SEARCH("Weteran",$P78)),1,"") ->  | M78: =IF(RIGHT(A78,1)="a",1,"") ->  | N78: HFT 1
A79: Leszek | B79: Sawicki | C79: Sawicki Leszek | D79: PaPaj | F79: 1 | N79: HFT 1
A80: Jarosław | B80: Majda | C80: Majda Jarosław | D80: czaputek | E80: 1 | N80: FT
A81: Magdalena | B81: Czorny | C81: Czorny Magdalena | D81: Czorna | E81: 1 | M81: 1 | N81: FT
C82: =B82&" "&A82 ->  | E82: =IF($N82="FT",1,"") ->  | F82: =IF($N82="HFT 1",1,"") ->  | G82: =IF($N82="HFT 2",1,"") ->  | H82: =IF(ISNUMBER(SEARCH("Junior",$P82)),1,"") ->  | I82: =IF(ISNUMBER(SEARCH("Sylwetki pistolet",$O82)),1,"") ->  | J82: =IF(ISNUMBER(SEARCH("Sylwetki karabin",$O82)),1,"") ->  | K82: =IF(ISNUMBER(SEARCH("nHFT",$O82)),1,"") ->  | L82: =IF(ISNUMBER(SEARCH("Weteran",$P82)),1,"") ->  | M82: =IF(RIGHT(A82,1)="a",1,"") -> 
